date,department/service,beneficiary,amount,summary of purpose,category,transaction number,SAP vendor number
01.06.2022,CHILDREN AND FAMILIES,MAGIC ROUNDABOUT NURSERIES LTD,580.32,TEAM D,OTHER PAYMENTS FOR CLIENTS,5902526232,1000045128
01.06.2022,CUSTOMER EXPERIENCE HGF,NRC PATHOLOGY SERVICES LIMITED,360,CORONER'S,PROFESSIONAL FEES,5902527067,1000085798
01.06.2022,CUSTOMER EXPERIENCE HGF,NRC PATHOLOGY SERVICES LIMITED,360,CORONER'S,PROFESSIONAL FEES,5902527070,1000085798
01.06.2022,HSG & MOD,PANORAMA SOFTWARE (ISRAEL 2002) LTD,"11,000.00",APPLICATIONS,SOFTWARE,6102030285,INTERNATIONAL PAYMENT
01.06.2022,RESIDENT SERVICES,BRITISH GAS TRADING LTD,330.55,OPERATIONS/OFFICES ACCOMMODATION,ELECTRICITY,5902521689,1000055977
01.06.2022,RESIDENT SERVICES,BRITISH GAS TRADING LTD,"1,481.08",OPERATIONS/OFFICES ACCOMMODATION,ELECTRICITY,5902521689,1000055977
02.06.2022,ADULT SOCIAL CARE,REDACTED PERSONAL DATA,279.85,APPOINTEESHIPS,OTHER PAYMENTS FOR CLIENTS,REDACTED,REDACTED
02.06.2022,ADULT SOCIAL CARE,THE NEW SHOOTS,300,LD LTS 18-64,DAYCARE,2103492003,1000073970
02.06.2022,ADULT SOCIAL CARE,METRO HOMECARE LTD,528,LD LTS 18-64,HOMECARE - SPOT,2103491995,1000070695
02.06.2022,ADULT SOCIAL CARE,METRO HOMECARE LTD,528,LD LTS 18-64,HOMECARE - SPOT,2103492004,1000070695
02.06.2022,ADULT SOCIAL CARE,CHOICE SUPPORT,661.32,LD LTS 18-64,SUPPORTED LIVING,2103491981,1104183
02.06.2022,ADULT SOCIAL CARE,CHOICE SUPPORT,661.32,LD LTS 18-64,SUPPORTED LIVING,2103491988,1104183
02.06.2022,ADULT SOCIAL CARE,CHOICE SUPPORT,734.8,LD LTS 18-64,SUPPORTED LIVING,2103491997,1104183
02.06.2022,ADULT SOCIAL CARE,CARE DIRECT UK LTD,486,LD LTS 18-64,SUPPORTED LIVING,2103492026,1000066322
02.06.2022,ADULT SOCIAL CARE,AGE CONCERN LEWISHAM & SOUTHWARK,325,MEM LTS 65+,DAYCARE,2103491954,1000057586
02.06.2022,ADULT SOCIAL CARE,LONDON CARE LTD,567.51,MH LTS 65+,HOMECARE - C&V,2103491841,1000003398
02.06.2022,ADULT SOCIAL CARE,CARE DIRECT UK LTD,381.44,PHY LTS 18-64,HOMECARE - SPOT,2103492029,1000066322
02.06.2022,ADULT SOCIAL CARE,METRO HOMECARE LTD,280.5,PHY LTS 18-64,HOMECARE - SPOT,2103491972,1000070695
02.06.2022,ADULT SOCIAL CARE,METRO HOMECARE LTD,280.5,PHY LTS 18-64,HOMECARE - SPOT,2103491989,1000070695
02.06.2022,ADULT SOCIAL CARE,METRO HOMECARE LTD,478.5,PHY LTS 18-64,HOMECARE - SPOT,2103492010,1000070695
02.06.2022,ADULT SOCIAL CARE,METRO HOMECARE LTD,478.5,PHY LTS 18-64,HOMECARE - SPOT,2103492013,1000070695
02.06.2022,ADULT SOCIAL CARE,METRO HOMECARE LTD,495,PHY LTS 18-64,HOMECARE - SPOT,2103491992,1000070695
02.06.2022,ADULT SOCIAL CARE,METRO HOMECARE LTD,495,PHY LTS 18-64,HOMECARE - SPOT,2103492002,1000070695
02.06.2022,ADULT SOCIAL CARE,AGE CONCERN LEWISHAM & SOUTHWARK,325,PHY LTS 65+,DAYCARE,2103491919,1000057586
02.06.2022,ADULT SOCIAL CARE,AGE CONCERN LEWISHAM & SOUTHWARK,325,PHY LTS 65+,DAYCARE,2103491922,1000057586
02.06.2022,ADULT SOCIAL CARE,AGE CONCERN LEWISHAM & SOUTHWARK,325,PHY LTS 65+,DAYCARE,2103491965,1000057586
02.06.2022,ADULT SOCIAL CARE,LONDON CARE LTD,739.45,PHY LTS 65+,HOMECARE - C&V,2103491844,1000003398
02.06.2022,ADULT SOCIAL CARE,LONDON CARE LTD,837.19,PHY LTS 65+,HOMECARE - C&V,2103491843,1000003398
02.06.2022,ADULT SOCIAL CARE,LONDON CARE LTD,"1,212.43",PHY LTS 65+,HOMECARE - C&V,2103491910,1000003398
02.06.2022,ADULT SOCIAL CARE,LONDON CARE LTD,"1,300.02",PHY LTS 65+,HOMECARE - C&V,2103491908,1000003398
02.06.2022,ADULT SOCIAL CARE,CARE DIRECT UK LTD,251.3,PHY LTS 65+,HOMECARE - SPOT,2103492021,1000066322
02.06.2022,ADULT SOCIAL CARE,CARE DIRECT UK LTD,280,PHY LTS 65+,HOMECARE - SPOT,2103492016,1000066322
02.06.2022,ADULT SOCIAL CARE,CARE DIRECT UK LTD,314.13,PHY LTS 65+,HOMECARE - SPOT,2103492018,1000066322
02.06.2022,ADULT SOCIAL CARE,CARE DIRECT UK LTD,502.6,PHY LTS 65+,HOMECARE - SPOT,2103492037,1000066322
02.06.2022,ADULT SOCIAL CARE,CARE DIRECT UK LTD,520.55,PHY LTS 65+,HOMECARE - SPOT,2103492024,1000066322
02.06.2022,ADULT SOCIAL CARE,CARE DIRECT UK LTD,559.13,PHY LTS 65+,HOMECARE - SPOT,2103492036,1000066322
02.06.2022,ADULT SOCIAL CARE,CARE DIRECT UK LTD,621.25,PHY LTS 65+,HOMECARE - SPOT,2103492031,1000066322
02.06.2022,ADULT SOCIAL CARE,METRO HOMECARE LTD,280.5,PHY LTS 65+,HOMECARE - SPOT,2103492012,1000070695
02.06.2022,ADULT SOCIAL CARE,METRO HOMECARE LTD,338.25,PHY LTS 65+,HOMECARE - SPOT,2103491983,1000070695
02.06.2022,ADULT SOCIAL CARE,METRO HOMECARE LTD,338.25,PHY LTS 65+,HOMECARE - SPOT,2103491984,1000070695
02.06.2022,ADULT SOCIAL CARE,METRO HOMECARE LTD,346.5,PHY LTS 65+,HOMECARE - SPOT,2103491986,1000070695
02.06.2022,ADULT SOCIAL CARE,METRO HOMECARE LTD,346.5,PHY LTS 65+,HOMECARE - SPOT,2103491991,1000070695
02.06.2022,ADULT SOCIAL CARE,METRO HOMECARE LTD,354.75,PHY LTS 65+,HOMECARE - SPOT,2103491993,1000070695
02.06.2022,ADULT SOCIAL CARE,METRO HOMECARE LTD,354.75,PHY LTS 65+,HOMECARE - SPOT,2103492000,1000070695
02.06.2022,ADULT SOCIAL CARE,METRO HOMECARE LTD,412.5,PHY LTS 65+,HOMECARE - SPOT,2103491974,1000070695
02.06.2022,ADULT SOCIAL CARE,METRO HOMECARE LTD,412.5,PHY LTS 65+,HOMECARE - SPOT,2103492009,1000070695
02.06.2022,ADULT SOCIAL CARE,METRO HOMECARE LTD,437.25,PHY LTS 65+,HOMECARE - SPOT,2103491976,1000070695
02.06.2022,ADULT SOCIAL CARE,METRO HOMECARE LTD,437.25,PHY LTS 65+,HOMECARE - SPOT,2103491996,1000070695
02.06.2022,ADULT SOCIAL CARE,METRO HOMECARE LTD,453.75,PHY LTS 65+,HOMECARE - SPOT,2103491985,1000070695
02.06.2022,ADULT SOCIAL CARE,METRO HOMECARE LTD,528,PHY LTS 65+,HOMECARE - SPOT,2103491994,1000070695
02.06.2022,ADULT SOCIAL CARE,METRO HOMECARE LTD,528,PHY LTS 65+,HOMECARE - SPOT,2103492014,1000070695
02.06.2022,ADULT SOCIAL CARE,METRO HOMECARE LTD,635.25,PHY LTS 65+,HOMECARE - SPOT,2103491970,1000070695
02.06.2022,ADULT SOCIAL CARE,METRO HOMECARE LTD,635.25,PHY LTS 65+,HOMECARE - SPOT,2103492011,1000070695
02.06.2022,ADULT SOCIAL CARE,METRO HOMECARE LTD,"1,039.50",PHY LTS 65+,HOMECARE - SPOT,2103491967,1000070695
02.06.2022,ADULT SOCIAL CARE,METRO HOMECARE LTD,"1,039.50",PHY LTS 65+,HOMECARE - SPOT,2103491968,1000070695
02.06.2022,ADULT SOCIAL CARE,METRO HOMECARE LTD,"1,039.50",PHY LTS 65+,HOMECARE - SPOT,2103491978,1000070695
02.06.2022,ADULT SOCIAL CARE,METRO HOMECARE LTD,"1,039.50",PHY LTS 65+,HOMECARE - SPOT,2103491990,1000070695
02.06.2022,ADULT SOCIAL CARE,LONDON CARE LTD,296.11,PHY STS 18-64,HOMECARE - IC,2103491846,1000003398
02.06.2022,ADULT SOCIAL CARE,CARE DIRECT UK LTD,325.79,PHY STS 18-64,HOMECARE - IC,2103492027,1000066322
02.06.2022,ADULT SOCIAL CARE,METRO HOMECARE LTD,808.5,PHY STS 18-64,HOMECARE - IC,2103491969,1000070695
02.06.2022,ADULT SOCIAL CARE,METRO HOMECARE LTD,"1,204.50",PHY STS 18-64,HOMECARE - IC,2103491973,1000070695
02.06.2022,ADULT SOCIAL CARE,METRO HOMECARE LTD,"1,204.50",PHY STS 18-64,HOMECARE - IC,2103492007,1000070695
02.06.2022,ADULT SOCIAL CARE,METRO HOMECARE LTD,"1,617.00",PHY STS 18-64,HOMECARE - IC,2103491998,1000070695
02.06.2022,ADULT SOCIAL CARE,LONDON CARE LTD,906.89,PHY STS 65+,HOMECARE - IC,2103491842,1000003398
02.06.2022,ADULT SOCIAL CARE,METRO HOMECARE LTD,816.75,PHY STS 65+,HOMECARE - IC,2103492001,1000070695
02.06.2022,ADULT SOCIAL CARE,CARE DIRECT UK LTD,816.73,SEN LTS 65+,HOMECARE - SPOT,2103492025,1000066322
02.06.2022,ADULT SOCIAL CARE,METRO HOMECARE LTD,420.75,SOCIAL ISOLATION,HOMECARE - SPOT,2103491975,1000070695
02.06.2022,ADULT SOCIAL CARE,METRO HOMECARE LTD,420.75,SOCIAL ISOLATION,HOMECARE - SPOT,2103491982,1000070695
02.06.2022,ASSET MANAGEMENT,ARMINA LTD,"1,730.28",DISREPAIR,BUILDING R&M,2103488325,3000002121
02.06.2022,ASSET MANAGEMENT,ASHFORDS LLP OFFICE ACCOUNT,292.5,DISREPAIR,PAYMENTS FOR LEGAL SERVICES,5902526738,1000082695
02.06.2022,ASSET MANAGEMENT,ASHFORDS LLP OFFICE ACCOUNT,441,DISREPAIR,PAYMENTS FOR LEGAL SERVICES,5902526742,1000082695
02.06.2022,ASSET MANAGEMENT,INTAKT LTD,"7,600.00",ENG CONTRACTS,PROFESSIONAL FEES,5902526357,1000087217
02.06.2022,ASSET MANAGEMENT,AAA TRAINING CO. LTD,930,HEALTH AND SAFETY,TRAINING,5902526785,1000019958
02.06.2022,ASSET MANAGEMENT,AAA TRAINING CO. LTD,"1,310.00",HEALTH AND SAFETY,TRAINING,5902526677,1000019958
02.06.2022,ASSET MANAGEMENT HGF,ROYAL MAIL GROUP LTD,"1,507.06",160 TOOLEY ST.,POSTAGES,5902526580,1000061535
02.06.2022,ASSET MANAGEMENT HGF,IRON MOUNTAIN (UK) LTD,-877.81,REPAIR AND MAINTENANCE SERVICES,INFORMATION MANAGEMENT,5902527530,1000078591
02.06.2022,ASSET MANAGEMENT HGF,IRON MOUNTAIN (UK) LTD,"8,142.19",REPAIR AND MAINTENANCE SERVICES,INFORMATION MANAGEMENT,5902527529,1000078591
02.06.2022,ASSET MANAGEMENT HGF,IRON MOUNTAIN (UK) LTD,"8,412.08",REPAIR AND MAINTENANCE SERVICES,INFORMATION MANAGEMENT,5902527532,1000078591
02.06.2022,CENTRAL FUNCTIONS,BRESLIN CONSTRUCTION LTD,380,COMMERCIAL PROPERTIES,BUILDING R&M,5902526995,1000078031
02.06.2022,CENTRAL FUNCTIONS,BRITISH GAS TRADING LTD,"1,214.33",LEDBURY ESTATE,GAS,5902527605,1000055977
02.06.2022,CHILDREN AND FAMILIES,REDACTED PERSONAL DATA,475,ADOPTION SUPP FUND,EXTERNAL AGENCIES AND BODIES,REDACTED,REDACTED
02.06.2022,CHILDREN AND FAMILIES,REDACTED PERSONAL DATA,300,FOSTERING ALLOWANCES,OTHER PAYMENTS FOR CLIENTS,REDACTED,REDACTED
02.06.2022,CHILDREN AND FAMILIES,REDACTED PERSONAL DATA,"2,000.00",LEAVING CARE GRANT,OTHER PAYMENTS FOR CLIENTS,REDACTED,REDACTED
02.06.2022,CHILDREN AND FAMILIES,REDACTED PERSONAL DATA,257.14,SEMI-IND LAC 16-17,OTHER PAYMENTS FOR CLIENTS,REDACTED,REDACTED
02.06.2022,CHILDREN AND FAMILIES,VSC PLUS LTD,795,YJS MGMT & SUPPORT,TRAINING,5902527373,1000033656
02.06.2022,COMMUNITIES,METRO HOMECARE LTD,412.5,NO RECOURSE TO PUBLIC FUNDS,HOMECARE - C&V,2103491979,1000070695
02.06.2022,COMMUNITIES,METRO HOMECARE LTD,412.5,NO RECOURSE TO PUBLIC FUNDS,HOMECARE - C&V,2103492008,1000070695
02.06.2022,COMMUNITIES,POST OFFICE LTD,770,UKRAINIAN REFUGEES,MISCELLANEOUS EXPENSES,5902527642,1000069858
02.06.2022,CUSTOMER EXPERIENCE HGF,SG PATH LTD,415.8,CORONER'S,PROFESSIONAL FEES,5902527538,1000077883
02.06.2022,CUSTOMER EXPERIENCE HGF,SG PATH LTD,415.8,CORONER'S,PROFESSIONAL FEES,5902527540,1000077883
02.06.2022,CUSTOMER EXPERIENCE HGF,SG PATH LTD,415.8,CORONER'S,PROFESSIONAL FEES,5902527542,1000077883
02.06.2022,CUSTOMER EXPERIENCE HGF,SG PATH LTD,415.8,CORONER'S,PROFESSIONAL FEES,5902527551,1000077883
02.06.2022,CUSTOMER EXPERIENCE HGF,SG PATH LTD,595.9,CORONER'S,PROFESSIONAL FEES,5902527545,1000077883
02.06.2022,ENV & LEIS,HIQ NETWORK TYRES,325.65,MANAGEMENT TEAM,OTHER VEHICLE RUNNING COSTS,5902527688,1000077177
02.06.2022,ENVIRONMENT AND LEISURE,ADVANCED TRANSPORT RESEARCH LTD,585,CAPITAL PS (LEISURE),CONSTRUCTION,5902527592,1000070527
02.06.2022,ENVIRONMENT AND LEISURE,BETA DISTRIBUTION (SOUTH) LTD,410,CAPITAL PS (LEISURE),CONSTRUCTION FEES  - EXTERNAL,5902527685,1000044844
02.06.2022,ENVIRONMENT AND LEISURE,ROGER MEARS ARCHITECTS LLP,"1,580.00",CAPITAL PS (LEISURE),CONSTRUCTION FEES - ARCHITECT,5902526929,1000085548
02.06.2022,ENVIRONMENT AND LEISURE,UNIVERSAL STONE LIMITED,"41,116.00",CAPITAL PS (LEISURE),CONSTRUCTION MAIN CONTRACT,2103483444,3000002215
02.06.2022,ENVIRONMENT DIRECTORATE,ARNOLD CLARK VEHICLE MANAGEMENT,-431.86,CAR LEASING CTRL A/C,VEHICLE LEASING CHARGES,5902527652,1000079116
02.06.2022,ENVIRONMENT DIRECTORATE,ARNOLD CLARK VEHICLE MANAGEMENT,-359.89,CAR LEASING CTRL A/C,VEHICLE LEASING CHARGES,5902527652,1000079116
02.06.2022,ENVIRONMENT DIRECTORATE,ARNOLD CLARK VEHICLE MANAGEMENT,422.31,CAR LEASING CTRL A/C,VEHICLE LEASING CHARGES,5902527658,1000079116
02.06.2022,ENVIRONMENT DIRECTORATE,ARNOLD CLARK VEHICLE MANAGEMENT,431.86,CAR LEASING CTRL A/C,VEHICLE LEASING CHARGES,5902527658,1000079116
02.06.2022,ENVIRONMENT DIRECTORATE,SHARPE PRITCHARD LLP,"3,653.00",SUSTAINABLE WASTE OVERHEADS,PAYMENTS FOR LEGAL SERVICES,5902527531,1790085
02.06.2022,F & C S EXCLUDING CORPORATE BUDGETS,CAPITA BUSINESS SERVICES LTD,"4,995.00",INCOME MANAGEMENT,SOFTWARE,5902527603,1000006291
02.06.2022,F & C S EXCLUDING CORPORATE BUDGETS,K R BATCHELOR,300,LEGAL SVCES MANAGEMENT,SUBSCRIPTIONS,5902527534,1000057554
02.06.2022,HOUSING,OCO LIMITED,"152,061.75",PAYMENTS CONTROL ACCOUNT - OCO,I-WORLD CONTRACTORS HOLDING ACCOUNT,5902527606,1006066
02.06.2022,HOUSING,SMITH & BYFORD LTD,"130,701.25",SMITH AND BYFORD,I-WORLD CONTRACTORS HOLDING ACCOUNT,5902527607,11212119
02.06.2022,HOUSING GENERAL FUND,UNIFIED CONSULTANCY LTD,"1,581.81",CAPITAL PS (HOUSING GF),ICT ACQUISITION,5902526471,1000081827
02.06.2022,HOUSING GENERAL FUND,BOON EDAM LTD,"3,482.10",CAPITAL PS (REGEN),CONSTRUCTION MAIN CONTRACT,5902526588,1000021458
02.06.2022,HOUSING GENERAL FUND,UNIFIED CONSULTANCY LTD,"11,709.85",CAPITAL PS (STRAT SERV),ICT ACQUISITION,5902526337,1000081827
02.06.2022,HOUSING HRA,DUCTCLEAN (UK) LIMITED,"73,225.00",CAPITAL PS (HRA),CONSTRUCTION,5902527659,1000062478
02.06.2022,HOUSING HRA,CALFORD SEADEN LLP,"9,000.00",CAPITAL PS (HRA),CONSTRUCTION FEES,5902527517,1061592
02.06.2022,HOUSING HRA,BUILDING ASSOCIATES LTD,"52,415.99",CAPITAL PS (HRA),CONSTRUCTION MAIN CONTRACT,2103488323,3000002218
02.06.2022,HOUSING HRA,A & E ELKINS LTD,"37,390.69",CAPITAL PS (HRA),CONSTRUCTION MAIN CONTRACT -CERTIFICATED,2103487766,4012501
02.06.2022,HOUSING HRA,GREATER LONDON AUTHORITY,"10,000.00",CAPITAL PS (HRA),PLANNING & S106 FEES,2103491688,1000015827
02.06.2022,HOUSING HRA,MARTIN ARNOLD LTD,"3,750.00",CAPITAL PS (REGEN),CONSTRUCTION FEES - QUANTITY SURVEYOR,5902527095,1000076993
02.06.2022,HOUSING HRA,MARTIN ARNOLD LTD,"11,250.00",CAPITAL PS (REGEN),CONSTRUCTION FEES - QUANTITY SURVEYOR,5902527193,1000076993
02.06.2022,HR & OT,INCLUSIVE EMPLOYERS LTD,600,CONTRACT COSTS � NON R/C,TRAINING,5902527638,1000083490
02.06.2022,LEISURE DIRECTORATE,ASKEWS & HOLTS LIBRARY SERVICES LTD,"11,228.64",STOCK SERVICES,BOOKS & PUBLICATIONS,5902527478,1494168
02.06.2022,PUBLIC HEALTH,SOCIAL FINANCE LIMITED,"45,000.00",COVID-19 CONTROL OUTBREAK MGMNT.FUND,EXTERNAL AGENCIES AND BODIES,5902527667,1000088272
02.06.2022,PUBLIC HEALTH,FULL SUPPORT HEALTHCARE LTD,675,COVID-19 VACCINATION SUPPORT,EQUIPMENT PURCHASE & REPAIR,5902526867,1000088429
02.06.2022,PUBLIC HEALTH,FULL SUPPORT HEALTHCARE LTD,995,COVID-19 VACCINATION SUPPORT,PROFESSIONAL FEES,5902526867,1000088429
02.06.2022,REGENERATION,BRESLIN CONSTRUCTION LTD,550,TOWER WORKSHOPS,BUILDING R&M,5902527001,1000078031
02.06.2022,RESIDENT SERVICES HGF,SOUTH OF THE RIVER INVESTMENTS LTD,"22,959.40",NIGHTLY TA (NSC),EXTERNAL AGENCIES AND BODIES,5902527631,1000073638
02.06.2022,RESIDENT SERVICES HGF,DMS PROPERTIES SERVICES LTD,"36,943.50",NIGHTLY TA (NSC),EXTERNAL AGENCIES AND BODIES,5902527657,1000081522
02.06.2022,RESIDENT SERVICES HGF,CIRCA HOMES LTD,"2,780.93",PSL PLACEMENTS,EXTERNAL AGENCIES AND BODIES,5902527522,1000083021
02.06.2022,RESIDENT SERVICES HGF,SHUTTLEWORTH (UK) LTD,"2,016.00",RAPID REHOUSING,EXTERNAL AGENCIES AND BODIES,5902527654,1000056468
02.06.2022,RESIDENT SERVICES HGF,SHUTTLEWORTH (UK) LTD,"2,232.00",RAPID REHOUSING,EXTERNAL AGENCIES AND BODIES,5902527653,1000056468
02.06.2022,RESIDENT SERVICES HGF,SHUTTLEWORTH (UK) LTD,"2,232.00",RAPID REHOUSING,EXTERNAL AGENCIES AND BODIES,5902527655,1000056468
02.06.2022,RESIDENT SERVICES HGF,PROPERTYPLACEBOOK LTD,910,RAPID REHOUSING,EXTERNAL AGENCIES AND BODIES,5902527624,1000077817
02.06.2022,RESIDENT SERVICES HGF,BRIDGE HOUSING SOLUTIONS,"2,000.00",RAPID REHOUSING,GRANTS,5902527040,1000085278
02.06.2022,SBS OPERATIONS,AKW MEDI-CARE LTD,253.78,SBS AIDS AND ADAPTATIONS,MATERIALS,5902527575,1000047103
02.06.2022,SBS SUPPORT,TOTALMOBILE LTD,"8,000.00",ICT & COMMUNICATIONS,SOFTWARE,5902527650,1000085502
02.06.2022,SBS SUPPORT,AGBW - QS LIMITED,"2,375.00",REORGANISATION COSTS,PROFESSIONAL FEES,5902526430,1000087604
02.06.2022,SOUTHWARK BUILDING SERVICES,CROSSFOLD ELECTRICAL WHOLESALERS,300,STORES/LOGISTICS,CREDITORS -GR/IR CLEARING ACCOUNT,5902526940,1918395
02.06.2022,SOUTHWARK BUILDING SERVICES,REXEL UK LTD T/A NEWEY & EYRE,"1,182.25",STORES/LOGISTICS,CREDITORS -GR/IR CLEARING ACCOUNT,5902527585,1000019785
02.06.2022,SOUTHWARK BUILDING SERVICES,REXEL UK LTD T/A NEWEY & EYRE,"1,182.25",STORES/LOGISTICS,CREDITORS -GR/IR CLEARING ACCOUNT,5902527587,1000019785
02.06.2022,SOUTHWARK BUILDING SERVICES,REXEL UK LTD T/A NEWEY & EYRE,"1,771.00",STORES/LOGISTICS,CREDITORS -GR/IR CLEARING ACCOUNT,5902527589,1000019785
02.06.2022,SOUTHWARK BUILDING SERVICES,REXEL UK LTD T/A NEWEY & EYRE,"2,325.50",STORES/LOGISTICS,CREDITORS -GR/IR CLEARING ACCOUNT,5902527583,1000019785
02.06.2022,SOUTHWARK BUILDING SERVICES,REXEL UK LTD T/A NEWEY & EYRE,"3,401.00",STORES/LOGISTICS,CREDITORS -GR/IR CLEARING ACCOUNT,5902527583,1000019785
02.06.2022,SOUTHWARK BUILDING SERVICES,KEMICO LIMITED,"3,909.00",STORES/LOGISTICS,CREDITORS -GR/IR CLEARING ACCOUNT,5902527598,1000030226
02.06.2022,STRATEGIC FINANCING BUDGETS,COMENSURA LTD,"8,220.60",WEEKLY PAYMENTS,AGENCY STAFF,5902527680,1000051261
02.06.2022,STRATEGIC FINANCING BUDGETS,COMENSURA LTD,"780,071.50",WEEKLY PAYMENTS,AGENCY STAFF,5902527681,1000051261
03.06.2022,ASSET MANAGEMENT,ARMINA LTD,"3,233.37",DISREPAIR,BUILDING R&M,2103484624,3000002121
03.06.2022,ASSET MANAGEMENT HGF,KENT COUNTY COUNCIL - LASER,674.76,34 PECKHAM ROAD,GAS,5902526597,1000012926
03.06.2022,CENTRAL FUNCTIONS,DSI BILLING SERVICES LTD,344.79,OPERATIONAL TEAM,POSTAGES,5902526906,1000058640
03.06.2022,CHILDREN AND ADULT,ARVI CONSTRUCTION LTD,"4,500.00",CAPITAL PS (EDUCATION),CONSTRUCTION MAIN CONTRACT,2103487770,3000002133
03.06.2022,CHILDREN AND FAMILIES,REDACTED PERSONAL DATA,480,ADOPTION SUPP FUND,EXTERNAL AGENCIES AND BODIES,REDACTED,REDACTED
03.06.2022,CHILDREN AND FAMILIES,KENT COUNTY COUNCIL - LASER,"7,110.77",CENTRAL SUPPORT,GAS,5902526871,1000012926
03.06.2022,CHILDREN AND FAMILIES,KINSHIP CARERS HUB C.I.C,465,FOSTERING TEAM,EXTERNAL AGENCIES AND BODIES,5902526699,1000088438
03.06.2022,CHILDREN AND FAMILIES,REDACTED PERSONAL DATA,480,NEW ASF,EXTERNAL AGENCIES AND BODIES,REDACTED,REDACTED
03.06.2022,CHILDREN AND FAMILIES,REDACTED PERSONAL DATA,"1,440.00",NEW ASF,EXTERNAL AGENCIES AND BODIES,REDACTED,REDACTED
03.06.2022,COMMUNITIES,GP GORDON LTD,"2,250.00",SAFER SOUTHWARK PARTNERSHIP ADMIN,CONSULTANTS SERVICES,5902527376,1000088262
03.06.2022,COMMUNITIES,KENNINGTON PARK ROAD T&RA,550,WEST CENTRAL,GRANTS,5902526788,1000078006
03.06.2022,CUSTOMER EXPERIENCE HGF,VP-AV LTD,"2,020.00",CORONER'S,COMMS & COMPUTING CONTRACT CHARGES,5902527472,1000003888
03.06.2022,ENVIRONMENT AND LEISURE,STITCHES MARQUEE HIRE LIMITED,742.5,CAPITAL PS (LEISURE),CONSTRUCTION,5902527364,1026432
03.06.2022,ENVIRONMENT DIRECTORATE,ELLIOT ENVIRONMENTAL LTD,400,STREET CLEANING-GENERAL,OTHER CONTRACTORS,5902527361,1000047392
03.06.2022,F & C S EXCLUDING CORPORATE BUDGETS,DSI BILLING SERVICES LTD,"5,408.41",ADMINISTRATIVE SUPPORT,POSTAGES,5902526903,1000058640
03.06.2022,F & C S EXCLUDING CORPORATE BUDGETS,POST OFFICE LTD,"1,000.00",ENERGY BILLS REBATE GRANT,MISCELLANEOUS EXPENSES,5902526957,1000069858
03.06.2022,HOUSING GENERAL FUND,WESSEX  LIFT CO LTD,"3,146.00",CAPITAL PS (HOUSING GF),CAPITAL GRANTS,5902527037,1174672
03.06.2022,HOUSING HRA,SALTASH ENTERPRISES LTD,"31,733.72",CAPITAL PS (HRA),CONSTRUCTION MAIN CONTRACT -CERTIFICATED,2103484640,4013605
03.06.2022,HR & OT,MINDAPPLES TRADING LTD,425,CORPORATE TRAINING BUDGETS,TRAINING,5902527634,1000080028
03.06.2022,HR & OT,MINDAPPLES TRADING LTD,750,CORPORATE TRAINING BUDGETS,TRAINING,5902527637,1000080028
03.06.2022,LEISURE DIRECTORATE,CASTLE WATER LTD,"5,757.88",BURGESS AREA TEAM,WATER,5902527565,1000078867
03.06.2022,LEISURE DIRECTORATE,KENT COUNTY COUNCIL - LASER,"1,088.98",CAMBERWELL LIBRARY,GAS,5902526561,1000012926
03.06.2022,LEISURE DIRECTORATE,KENT COUNTY COUNCIL - LASER,556.08,CEMETERIES,GAS,5902527277,1000012926
03.06.2022,LEISURE DIRECTORATE,KENT COUNTY COUNCIL - LASER,"3,682.85",CREMATORIUM,GAS,5902527279,1000012926
03.06.2022,LEISURE DIRECTORATE,CASTLE WATER LTD,"5,007.78",DULWICH AREA TEAM,WATER,5902527372,1000078867
03.06.2022,LEISURE DIRECTORATE,KENT COUNTY COUNCIL - LASER,"3,373.10",DULWICH LIBRARY,GAS,5902526562,1000012926
03.06.2022,LEISURE DIRECTORATE,KENT COUNTY COUNCIL - LASER,"2,988.05",PECKHAM LIBRARY,GAS,5902526853,1000012926
03.06.2022,PLANNING AND TRANSPORT,PLANNING JUNGLE LTD,300,DEV MGT ADMIN & INCOME,SUBSCRIPTIONS,5902526822,1000071938
03.06.2022,SBS OPERATIONS,DUREY CASTINGS LTD,289,SBS COMMUNAL REPAIRS,MATERIALS,5902527630,1000053649
03.06.2022,SOUTHWARK BUILDING SERVICES,MAXAM DIRECT LTD,"1,236.00",STORES/LOGISTICS,CREDITORS -GR/IR CLEARING ACCOUNT,5902527547,11139434
03.06.2022,STRATEGIC FINANCING BUDGETS,JOHNSON AUSTIN LTD,300,PROPERTY RELATED INSURANCE,PROFESSIONAL FEES,5902526809,1000040202
04.06.2022,CHILDREN AND ADULT,CULLINAN STUDIO LTD,"57,094.18",CAPITAL PS (EDUCATION),CONSTRUCTION FEES - ARCHITECT,5902527345,1000087576
04.06.2022,CHILDREN AND FAMILIES,VSC PLUS LTD,795,ADOPT LONDON SOUTH,TRAINING,5902527093,1000033656
04.06.2022,CHILDREN AND FAMILIES,REDACTED PERSONAL DATA,480,ADOPTION SUPP FUND,EXTERNAL AGENCIES AND BODIES,REDACTED,REDACTED
04.06.2022,CHILDREN AND FAMILIES,DARIT PUCHKOV PLAY THERAPY,450,NEW ASF,EXTERNAL AGENCIES AND BODIES,5902527378,1000087958
04.06.2022,COMMUNITIES,CHANGE GROW LIVE SERVICES LTD,"285,060.00",ADULT SM SERVICE,OTHER CONTRACTORS,5902526894,1000082721
04.06.2022,ENVIRONMENT AND LEISURE,SYRUP MAGAZINE,"3,000.00",CAPITAL PS (REGEN),CONSTRUCTION FEES  - EXTERNAL,5902527648,1000086150
04.06.2022,ENVIRONMENT AND LEISURE,SYRUP MAGAZINE,"3,910.00",CAPITAL PS (REGEN),CONSTRUCTION FEES  - EXTERNAL,5902527648,1000086150
04.06.2022,ENVIRONMENT DIRECTORATE,GREENHAM TRADING LTD,260.4,ESTATE CLEANING-GENERAL,MATERIALS,5902527314,1000006610
04.06.2022,F & C S EXCLUDING CORPORATE BUDGETS,SOCIAL VALUE PORTAL LTD,"20,000.00",PROCUREMENT ADVICE TEAM,SUBSCRIPTIONS,5902527059,1000082467
04.06.2022,HOUSING,PENNINGTON CHOICES LTD,"11,178.25",PENNINGTON,I-WORLD CONTRACTORS HOLDING ACCOUNT,5902527295,1000067888
04.06.2022,HOUSING HRA,CALFORD SEADEN LLP,599.76,CAPITAL PS (HRA),CONSTRUCTION FEES  - EXTERNAL,5902527181,1061592
04.06.2022,HOUSING HRA,POTTER RAPER LTD,"17,044.39",CAPITAL PS (HRA),CONSTRUCTION FEES - EMPLOYERS AGENT,5902527429,1009369
04.06.2022,HOUSING HRA,DURKAN LTD,"931,076.21",CAPITAL PS (HRA),CONSTRUCTION MAIN CONTRACT -CERTIFICATED,2103484636,3000000960
04.06.2022,HOUSING HRA,MAX FORDHAM LLP,"12,067.00",CAPITAL PS (REGEN),CONSTRUCTION FEES  - EXTERNAL,5902527094,1000082810
04.06.2022,LEISURE DIRECTORATE,CASTLE WATER LTD,523.9,BURGESS SPORTS CENTRE,WATER,5902527319,1000078867
04.06.2022,LEISURE DIRECTORATE,ISUBSCRIBE LIMITED,576.05,LIBRARIES DEVELOPMENT,BOOKS & PUBLICATIONS,5902526928,1000066066
04.06.2022,LEISURE DIRECTORATE,RH WROUGHT IRON,560,SOUTHWARK AREA TEAM,OTHER R&M,2103484633,3000000680
04.06.2022,SBS SUPPORT,HOUSING MAINTENANCE CONSULTANTS LTD,"2,200.00",REORGANISATION COSTS,PROFESSIONAL FEES,5902527656,1000085897
05.06.2022,ADULT SOCIAL CARE,REALITY FAMILY SUPPORT SERVICES LTD,862.4,PHY LTS 18-64,OTHER PAYMENTS FOR CLIENTS,5902527409,1000087878
05.06.2022,ASSET MANAGEMENT,GC CONSTRUCT LTD,565.47,DISREPAIR,BUILDING R&M,2103484641,3000002106
05.06.2022,ASSET MANAGEMENT,FRANKHAM CONSULTANCY GROUP LTD,"1,160.00",REPAIRS OPERATIONS,BUILDING R&M,5902527431,1000043952
05.06.2022,CHIEF EXECUTIVE,SHERGROUP LTD,"3,360.00",CAPITAL PS (REGEN),CONSTRUCTION SITE COSTS,5902527354,1000087977
05.06.2022,CHILDREN AND FAMILIES,REALITY FAMILY SUPPORT SERVICES LTD,369.6,EDGE OF CARE DECIS�S,OTHER PAYMENTS FOR CLIENTS,5902527409,1000087878
05.06.2022,COMMUNITIES HRA,TPAS LTD,"2,832.00",RESIDENTS PARTICIPATION FUND,TRAINING,5902527460,1000037079
05.06.2022,CUSTOMER EXPERIENCE,INFINITY NETWORKS LTD,376,MSHO,BUILDING R&M,5902527210,1000035571
05.06.2022,CUSTOMER EXPERIENCE HGF,INFINITY NETWORKS LTD,310,CORONER'S,ELECTRICITY,5902527673,1000035571
05.06.2022,EDUCATION,STUART HAYTER,560,GOVERNOR SUPPORT,CONSULTANTS SERVICES,5902527248,1000082057
05.06.2022,ENVIRONMENT AND LEISURE,STREET TREE LTD,651,CAPITAL PS (LEISURE),CONSTRUCTION FEES,2103488309,3000001537
05.06.2022,ENVIRONMENT DIRECTORATE,Q & B ROMFORD,380.28,STREET CLEANING-GENERAL,MATERIALS,5902527684,1000036879
05.06.2022,F & C S EXCLUDING CORPORATE BUDGETS,EMS EVENTS LTD,"1,080.00",BOROUGH COUNCIL ELECTIONS,MISCELLANEOUS EXPENSES,5902527100,1000057494
05.06.2022,HOUSING,LIFTEC LIFTS LTD,"109,965.71",PAYMENTS CONTROL ACCOUNT - LIFTEC,I-WORLD CONTRACTORS HOLDING ACCOUNT,5902527145,1000057278
05.06.2022,HOUSING HRA,CALFORD SEADEN LLP,"2,003.83",CAPITAL PS (HRA),CONSTRUCTION FEES  - EXTERNAL,5902527197,1061592
05.06.2022,HOUSING HRA,CALFORD SEADEN LLP,"2,398.57",CAPITAL PS (HRA),CONSTRUCTION FEES  - EXTERNAL,5902527196,1061592
05.06.2022,HOUSING HRA,HTA DESIGN LLP,"24,000.00",CAPITAL PS (HRA),CONSTRUCTION FEES  - EXTERNAL,5902527098,1000074662
05.06.2022,HOUSING HRA,SHERGROUP LTD,"3,360.00",CAPITAL PS (HRA),CONSTRUCTION FEES  - EXTERNAL,5902527226,1000087977
05.06.2022,HOUSING HRA,CALFORD SEADEN LLP,"57,500.00",CAPITAL PS (HRA),CONSTRUCTION FEES - EMPLOYERS AGENT,5902527413,1061592
05.06.2022,HOUSING HRA,SALTASH ENTERPRISES LTD,"23,362.30",CAPITAL PS (HRA),CONSTRUCTION MAIN CONTRACT -CERTIFICATED,2103488319,4013605
05.06.2022,HOUSING HRA,SALTASH ENTERPRISES LTD,"23,369.31",CAPITAL PS (HRA),CONSTRUCTION MAIN CONTRACT -CERTIFICATED,2103488318,4013605
05.06.2022,HOUSING HRA,SALTASH ENTERPRISES LTD,"45,721.49",CAPITAL PS (HRA),CONSTRUCTION MAIN CONTRACT -CERTIFICATED,2103488317,4013605
05.06.2022,HOUSING HRA,STANNAH LIFT SERVICES LTD,"5,368.00",CAPITAL PS (HRA),UTILITIES INSTALLATION,5902527358,1063595
05.06.2022,LEISURE DIRECTORATE,QUADRON SERVICES LIMITED,506.76,BURGESS AREA TEAM,GROUNDS MAINTENANCE,5902527142,1000066528
05.06.2022,LEISURE DIRECTORATE,QUADRON SERVICES LIMITED,"7,320.00",FACILITIES MAINTENANCE,GROUNDS MAINTENANCE,5902527212,1000066528
05.06.2022,LEISURE DIRECTORATE,WALCON MARINE LTD,"4,263.00",FACILITIES MAINTENANCE,OTHER R&M,5902527203,1000073036
05.06.2022,LEISURE DIRECTORATE,CONSTELLIA PUBLIC LIMITED,"16,922.05",TREES PRINCIPAL ROADS,TREE MAINTENANCE,5902527144,1000088137
05.06.2022,REGENERATION,WESTCO TRADING LTD,"2,460.00",MASTER PLAN-H/WAY & TRANS INTERCHANGE,MARKETING & PUBLICITY SERVICES,5902527418,1000069599
05.06.2022,RESIDENT SERVICES HGF,OPTIVO,377.78,HOUSING OPTIONS,EXTERNAL AGENCIES AND BODIES,5902527233,1000085186
05.06.2022,RESIDENT SERVICES HGF,DOCUMENT OPTIONS LIMITED,268.02,HOUSING OPTIONS,OFFICE EXPENSES,5902527167,1000051744
06.06.2022,CHILDREN AND ADULT,FAITHFUL & GOULD,"23,418.65",CAPITAL PS (EDUCATION),CONSTRUCTION FEES,5902527390,1000061390
06.06.2022,CHILDREN AND FAMILIES,CHROMA THERAPIES LTD,273,ADOPTION SUPP FUND,EXTERNAL AGENCIES AND BODIES,5902527303,1000085537
06.06.2022,CHILDREN AND FAMILIES,REDACTED PERSONAL DATA,"5,000.00",NEW ASF,EXTERNAL AGENCIES AND BODIES,REDACTED,REDACTED
06.06.2022,CUSTOMER EXPERIENCE HGF,IMPERIAL COLLEGE PROJECTS LTD,384,CORONER'S,PROFESSIONAL FEES,5902527617,1000080106
06.06.2022,CUSTOMER EXPERIENCE HGF,IMPERIAL COLLEGE PROJECTS LTD,464,CORONER'S,PROFESSIONAL FEES,5902527614,1000080106
06.06.2022,CUSTOMER EXPERIENCE HGF,IMPERIAL COLLEGE PROJECTS LTD,496,CORONER'S,PROFESSIONAL FEES,5902527616,1000080106
06.06.2022,CUSTOMER EXPERIENCE HGF,IMPERIAL COLLEGE PROJECTS LTD,640,CORONER'S,PROFESSIONAL FEES,5902527615,1000080106
06.06.2022,CUSTOMER EXPERIENCE HGF,FORENSIC PATHOLOGY SERVICES,471.9,CORONER'S,PROFESSIONAL FEES,5902527676,1000086871
06.06.2022,EDUCATION,NORMA GOULD,"1,000.00",IMHARS,PROFESSIONAL FEES,5902527189,1000088423
06.06.2022,ENVIRONMENT DIRECTORATE,CONTEGO SAFETY SOLUTIONS LTD,263.4,COMMERCIAL WASTE,"CLOTHING, UNIFORMS & LAUNDRY",5902527498,1000077673
06.06.2022,ENVIRONMENT DIRECTORATE,SOUTHWARK NEWSPAPER LTD,816,HIGHWAYS DEVELOPMENT,MARKETING & PUBLICITY SERVICES,5902527524,1556957
06.06.2022,ENVIRONMENT DIRECTORATE,LANDSCAPE SUPPLY COMPANY,437.42,NON HOUSING GROUNDS,EQUIPMENT PURCHASE & REPAIR,5902527213,1000051937
06.06.2022,HOUSING HRA,CALFORD SEADEN LLP,"1,764.00",CAPITAL PS (HRA),CONSTRUCTION FEES  - EXTERNAL,5902527191,1061592
06.06.2022,HOUSING HRA,CALFORD SEADEN LLP,"3,276.23",CAPITAL PS (HRA),CONSTRUCTION FEES  - EXTERNAL,5902527416,1061592
06.06.2022,HOUSING HRA,CALFORD SEADEN LLP,"3,377.71",CAPITAL PS (HRA),CONSTRUCTION FEES  - EXTERNAL,5902527384,1061592
06.06.2022,HOUSING HRA,CALFORD SEADEN LLP,"16,658.34",CAPITAL PS (HRA),CONSTRUCTION FEES  - EXTERNAL,5902527357,1061592
06.06.2022,HOUSING HRA,CALFORD SEADEN LLP,"59,011.34",CAPITAL PS (HRA),CONSTRUCTION FEES  - EXTERNAL,5902527507,1061592
06.06.2022,HOUSING HRA,DAVID ROGERSON,450,CAPITAL PS (HRA),CONSTRUCTION FEES - ARCHITECT,5902527628,1753617
06.06.2022,HR & OT,KORN FERRY HAY GROUP LTD,"5,750.00",HR PAYROLL COSTS,PAYMENTS FOR PERSONNEL MANAGEMENT SERVS,5902527511,1000079084
06.06.2022,LEISURE DIRECTORATE,RH WROUGHT IRON,670,SOUTHWARK AREA TEAM,OTHER R&M,2103488316,3000000680
06.06.2022,PUBLIC HEALTH,EVERYONE HEALTH LTD,"16,199.46",HEALTHY WEIGHT,PRIMARY CARE TRUSTS GRANTS & CONTRIBUTIONS,5902527290,1000084159
06.06.2022,SOUTHWARK BUILDING SERVICES,MARTIN VITERA LTD,687.6,STORES/LOGISTICS,CREDITORS -GR/IR CLEARING ACCOUNT,5902527546,1560597
06.06.2022,SOUTHWARK BUILDING SERVICES,AKW MEDI-CARE LTD,"1,377.72",STORES/LOGISTICS,CREDITORS -GR/IR CLEARING ACCOUNT,5902527576,1000047103
07.06.2022,ADULT SOCIAL CARE,UNITY WORKS SOCIAL ENTERPRISES,420,APPOINTEESHIPS,OTHER PAYMENTS FOR CLIENTS,2103492104,1000083486
07.06.2022,ADULT SOCIAL CARE,UNITY WORKS SOCIAL ENTERPRISES,480,APPOINTEESHIPS,OTHER PAYMENTS FOR CLIENTS,2103492093,1000083486
07.06.2022,ADULT SOCIAL CARE,UNITY WORKS SOCIAL ENTERPRISES,480,APPOINTEESHIPS,OTHER PAYMENTS FOR CLIENTS,2103492094,1000083486
07.06.2022,ADULT SOCIAL CARE,UNITY WORKS SOCIAL ENTERPRISES,480,APPOINTEESHIPS,OTHER PAYMENTS FOR CLIENTS,2103492095,1000083486
07.06.2022,ADULT SOCIAL CARE,UNITY WORKS SOCIAL ENTERPRISES,480,APPOINTEESHIPS,OTHER PAYMENTS FOR CLIENTS,2103492096,1000083486
07.06.2022,ADULT SOCIAL CARE,UNITY WORKS SOCIAL ENTERPRISES,480,APPOINTEESHIPS,OTHER PAYMENTS FOR CLIENTS,2103492097,1000083486
07.06.2022,ADULT SOCIAL CARE,UNITY WORKS SOCIAL ENTERPRISES,480,APPOINTEESHIPS,OTHER PAYMENTS FOR CLIENTS,2103492098,1000083486
07.06.2022,ADULT SOCIAL CARE,UNITY WORKS SOCIAL ENTERPRISES,480,APPOINTEESHIPS,OTHER PAYMENTS FOR CLIENTS,2103492099,1000083486
07.06.2022,ADULT SOCIAL CARE,UNITY WORKS SOCIAL ENTERPRISES,480,APPOINTEESHIPS,OTHER PAYMENTS FOR CLIENTS,2103492100,1000083486
07.06.2022,ADULT SOCIAL CARE,UNITY WORKS SOCIAL ENTERPRISES,480,APPOINTEESHIPS,OTHER PAYMENTS FOR CLIENTS,2103492102,1000083486
07.06.2022,ADULT SOCIAL CARE,UNITY WORKS SOCIAL ENTERPRISES,480,APPOINTEESHIPS,OTHER PAYMENTS FOR CLIENTS,2103492103,1000083486
07.06.2022,ADULT SOCIAL CARE,UNITY WORKS SOCIAL ENTERPRISES,480,APPOINTEESHIPS,OTHER PAYMENTS FOR CLIENTS,2103492105,1000083486
07.06.2022,ADULT SOCIAL CARE,UNITY WORKS SOCIAL ENTERPRISES,480,APPOINTEESHIPS,OTHER PAYMENTS FOR CLIENTS,2103492106,1000083486
07.06.2022,ADULT SOCIAL CARE,GATEWAY HOUSING LTD,411,APPOINTEESHIPS,OTHER PAYMENTS FOR CLIENTS,2103492089,1000087034
07.06.2022,ADULT SOCIAL CARE,STONEBRIDGE COMMUNITY LIVING LTD,"1,365.28",APPOINTEESHIPS,OTHER PAYMENTS FOR CLIENTS,2103492090,1000088466
07.06.2022,ADULT SOCIAL CARE,JACK ANDERSON,"1,250.00",DIR OF ASC,LEGAL FEES & COURT COSTS,2103492132,1000058150
07.06.2022,ADULT SOCIAL CARE,JONATHAN M DIXEY,750,DIR OF ASC,LEGAL FEES & COURT COSTS,2103492133,1000077797
07.06.2022,ADULT SOCIAL CARE,LEE PARKHILL,"5,750.00",DIR OF ASC,LEGAL FEES & COURT COSTS,2103492137,1000084161
07.06.2022,ADULT SOCIAL CARE,BEVAN BRITTAN LLP,508.8,DIR OF ASC,SOLICITORS FRAMEWORK LEGAL SERVICES,2103492112,1000047779
07.06.2022,ADULT SOCIAL CARE,THE DRIVE CARE HOMES LTD,"14,872.87",DISABILITIES LAC,EXTERNAL AGENCIES AND BODIES,2103492236,1000003889
07.06.2022,ADULT SOCIAL CARE,FOSTERING SUPPORT GROUP LTD,"5,779.33",DISABILITIES LAC,EXTERNAL AGENCIES AND BODIES,2103492221,1000065830
07.06.2022,ADULT SOCIAL CARE,THE DRIVE CARE HOMES LTD,"2,200.00",DISABILITIES LAC,OTHER PAYMENTS FOR CLIENTS,2103492240,1000003889
07.06.2022,ADULT SOCIAL CARE,REDACTED PERSONAL DATA,"2,643.64",DISABILITIES LAC,PAYMENTS TO CARERS,REDACTED,REDACTED
07.06.2022,ADULT SOCIAL CARE,THE DRIVE CARE HOMES LTD,810,DISABILITIES LAC,RESIDENTIAL CARE,2103492235,1000003889
07.06.2022,ADULT SOCIAL CARE,THE DRIVE CARE HOMES LTD,"7,746.80",DISABILITIES LAC,RESIDENTIAL CARE,2103492238,1000003889
07.06.2022,ADULT SOCIAL CARE,THE REGARD PARTNERSHIP,-418.24,DISCHARGE TO ACCESS,"MAND STATUTORY CHARGES, RESIDENTIAL",2103492501,1823223
07.06.2022,ADULT SOCIAL CARE,PENERLEY LODGE LTD,-485.08,DISCHARGE TO ACCESS,"MAND STATUTORY CHARGES, RESIDENTIAL",2103493327,1958913
07.06.2022,ADULT SOCIAL CARE,PARKVIEW NURSING HOME,"7,114.97",DISCHARGE TO ACCESS,NURSING PLACEMENTS FEES,2103492514,1776618
07.06.2022,ADULT SOCIAL CARE,MANLEY COURT NURSING HOME (BUPA),"3,832.48",DISCHARGE TO ACCESS,NURSING PLACEMENTS FEES,2103493177,11101434
07.06.2022,ADULT SOCIAL CARE,CHARLTON PARK (FOUR SEASONS),"3,606.72",DISCHARGE TO ACCESS,NURSING PLACEMENTS FEES,2103492592,11180076
07.06.2022,ADULT SOCIAL CARE,ST JOHNS NURSING HOME LTD,"3,425.64",DISCHARGE TO ACCESS,NURSING PLACEMENTS FEES,2103492805,1000047405
07.06.2022,ADULT SOCIAL CARE,PEARTREE CARE CENTRE (EXCELCARE),"6,285.71",DISCHARGE TO ACCESS,NURSING PLACEMENTS FEES,2103493445,1000048698
07.06.2022,ADULT SOCIAL CARE,QUEENS OAK CARE CENTRE,"1,100.00",DISCHARGE TO ACCESS,NURSING PLACEMENTS FEES,2103493135,1000049621
07.06.2022,ADULT SOCIAL CARE,QUEENS OAK CARE CENTRE,"1,728.57",DISCHARGE TO ACCESS,NURSING PLACEMENTS FEES,2103492799,1000049621
07.06.2022,ADULT SOCIAL CARE,QUEENS OAK CARE CENTRE,"4,400.00",DISCHARGE TO ACCESS,NURSING PLACEMENTS FEES,2103492274,1000049621
07.06.2022,ADULT SOCIAL CARE,QUEENS OAK CARE CENTRE,"5,500.00",DISCHARGE TO ACCESS,NURSING PLACEMENTS FEES,2103492806,1000049621
07.06.2022,ADULT SOCIAL CARE,QUEENS OAK CARE CENTRE,"5,500.00",DISCHARGE TO ACCESS,NURSING PLACEMENTS FEES,2103493150,1000049621
07.06.2022,ADULT SOCIAL CARE,QUEENS OAK CARE CENTRE,"6,600.00",DISCHARGE TO ACCESS,NURSING PLACEMENTS FEES,2103492659,1000049621
07.06.2022,ADULT SOCIAL CARE,QUEENS OAK CARE CENTRE,"7,385.71",DISCHARGE TO ACCESS,NURSING PLACEMENTS FEES,2103493442,1000049621
07.06.2022,ADULT SOCIAL CARE,QUEENS OAK CARE CENTRE,"8,014.29",DISCHARGE TO ACCESS,NURSING PLACEMENTS FEES,2103492518,1000049621
07.06.2022,ADULT SOCIAL CARE,"WILMINGTON MANOR NURSING HOME, BUPA","4,372.11",DISCHARGE TO ACCESS,NURSING PLACEMENTS FEES,2103492808,1000064678
07.06.2022,ADULT SOCIAL CARE,HC-ONE LTD (TOWER BRIDGE CARE HOME),"-27,086.00",DISCHARGE TO ACCESS,NURSING PLACEMENTS FEES,2103492712,1000067670
07.06.2022,ADULT SOCIAL CARE,HC-ONE LTD (TOWER BRIDGE CARE HOME),"-4,269.71",DISCHARGE TO ACCESS,NURSING PLACEMENTS FEES,2103493202,1000067670
07.06.2022,ADULT SOCIAL CARE,HC-ONE LTD (TOWER BRIDGE CARE HOME),"-3,335.71",DISCHARGE TO ACCESS,NURSING PLACEMENTS FEES,2103492918,1000067670
07.06.2022,ADULT SOCIAL CARE,HC-ONE LTD (TOWER BRIDGE CARE HOME),"-2,401.71",DISCHARGE TO ACCESS,NURSING PLACEMENTS FEES,2103493417,1000067670
07.06.2022,ADULT SOCIAL CARE,HC-ONE LTD (TOWER BRIDGE CARE HOME),"-2,134.86",DISCHARGE TO ACCESS,NURSING PLACEMENTS FEES,2103492563,1000067670
07.06.2022,ADULT SOCIAL CARE,HC-ONE LTD (TOWER BRIDGE CARE HOME),"3,342.86",DISCHARGE TO ACCESS,NURSING PLACEMENTS FEES,2103492289,1000067670
07.06.2022,ADULT SOCIAL CARE,HC-ONE LTD (TOWER BRIDGE CARE HOME),"3,342.86",DISCHARGE TO ACCESS,NURSING PLACEMENTS FEES,2103493497,1000067670
07.06.2022,ADULT SOCIAL CARE,HC-ONE LTD (TOWER BRIDGE CARE HOME),"3,736.00",DISCHARGE TO ACCESS,NURSING PLACEMENTS FEES,2103492922,1000067670
07.06.2022,ADULT SOCIAL CARE,HC-ONE LTD (TOWER BRIDGE CARE HOME),"3,736.00",DISCHARGE TO ACCESS,NURSING PLACEMENTS FEES,2103493207,1000067670
07.06.2022,ADULT SOCIAL CARE,HC-ONE LTD (TOWER BRIDGE CARE HOME),"3,736.00",DISCHARGE TO ACCESS,NURSING PLACEMENTS FEES,2103493444,1000067670
07.06.2022,ADULT SOCIAL CARE,HC-ONE LTD (TOWER BRIDGE CARE HOME),"3,736.00",DISCHARGE TO ACCESS,NURSING PLACEMENTS FEES,2103493455,1000067670
07.06.2022,ADULT SOCIAL CARE,HC-ONE LTD (TOWER BRIDGE CARE HOME),"4,596.43",DISCHARGE TO ACCESS,NURSING PLACEMENTS FEES,2103492923,1000067670
07.06.2022,ADULT SOCIAL CARE,HC-ONE LTD (TOWER BRIDGE CARE HOME),"4,875.00",DISCHARGE TO ACCESS,NURSING PLACEMENTS FEES,2103493437,1000067670
07.06.2022,ADULT SOCIAL CARE,HC-ONE LTD (TOWER BRIDGE CARE HOME),"5,292.86",DISCHARGE TO ACCESS,NURSING PLACEMENTS FEES,2103492800,1000067670
07.06.2022,ADULT SOCIAL CARE,ARLINGTON COURT CARE HOME,"-5,635.57",DISCHARGE TO ACCESS,NURSING PLACEMENTS FEES,2103336492,1000084313
07.06.2022,ADULT SOCIAL CARE,THE ROYAL ALFRED SEAFARERS' SOCIETY,"3,870.40",DISCHARGE TO ACCESS,NURSING PLACEMENTS FEES,2103492917,1000088118
07.06.2022,ADULT SOCIAL CARE,WR SIGNATURE OPERATIONS LTD (WANDSWORTH),"27,026.73",DISCHARGE TO ACCESS,NURSING PLACEMENTS FEES,2103492276,1000088475
07.06.2022,ADULT SOCIAL CARE,ANCHOR TRUST,-966.59,DISCHARGE TO ACCESS,RESIDENTIAL CARE,2103493173,11257534
07.06.2022,ADULT SOCIAL CARE,ANCHOR TRUST,"2,241.04",DISCHARGE TO ACCESS,RESIDENTIAL CARE,2103493183,11257534
07.06.2022,ADULT SOCIAL CARE,ANCHOR TRUST,"2,746.83",DISCHARGE TO ACCESS,RESIDENTIAL CARE,2103493475,11257534
07.06.2022,ADULT SOCIAL CARE,QUEENS OAK CARE CENTRE,"4,913.10",DISCHARGE TO ACCESS,RESIDENTIAL CARE,2103492515,1000049621
07.06.2022,ADULT SOCIAL CARE,REDACTED PERSONAL DATA,256.11,FAMILY LINK,PAYMENTS TO CARERS,REDACTED,REDACTED
07.06.2022,ADULT SOCIAL CARE,NATIONAL AUTISTIC SOCIETY CARE PACK,"1,305.12",LD LTS 18-64,DAYCARE,2103492198,1000020538
07.06.2022,ADULT SOCIAL CARE,NATIONAL AUTISTIC SOCIETY CARE PACK,"3,285.60",LD LTS 18-64,DAYCARE,2103492199,1000020538
07.06.2022,ADULT SOCIAL CARE,CHOICE SUPPORT,-358,LD LTS 18-64,"MAND STATUTORY CHARGES, RESIDENTIAL",2103493110,1104183
07.06.2022,ADULT SOCIAL CARE,CRAEGMOOR HEALTHCARE,-382.12,LD LTS 18-64,"MAND STATUTORY CHARGES, RESIDENTIAL",2103492490,1323845
07.06.2022,ADULT SOCIAL CARE,CHOICE CARE GROUP,-425.64,LD LTS 18-64,"MAND STATUTORY CHARGES, RESIDENTIAL",2103493360,1572506
07.06.2022,ADULT SOCIAL CARE,CHOICE CARE GROUP,-412.68,LD LTS 18-64,"MAND STATUTORY CHARGES, RESIDENTIAL",2103492344,1572506
07.06.2022,ADULT SOCIAL CARE,CHOICE CARE GROUP,-388.8,LD LTS 18-64,"MAND STATUTORY CHARGES, RESIDENTIAL",2103493414,1572506
07.06.2022,ADULT SOCIAL CARE,CHOICE CARE GROUP,-356.8,LD LTS 18-64,"MAND STATUTORY CHARGES, RESIDENTIAL",2103492766,1572506
07.06.2022,ADULT SOCIAL CARE,THE REGARD PARTNERSHIP,-419.2,LD LTS 18-64,"MAND STATUTORY CHARGES, RESIDENTIAL",2103492353,1823223
07.06.2022,ADULT SOCIAL CARE,THE REGARD PARTNERSHIP,-408.8,LD LTS 18-64,"MAND STATUTORY CHARGES, RESIDENTIAL",2103492480,1823223
07.06.2022,ADULT SOCIAL CARE,INSIGHT,-404.72,LD LTS 18-64,"MAND STATUTORY CHARGES, RESIDENTIAL",2103492962,1825618
07.06.2022,ADULT SOCIAL CARE,INSIGHT,-352.56,LD LTS 18-64,"MAND STATUTORY CHARGES, RESIDENTIAL",2103492478,1825618
07.06.2022,ADULT SOCIAL CARE,OGILVIE COURT,-425.64,LD LTS 18-64,"MAND STATUTORY CHARGES, RESIDENTIAL",2103492362,1910302
07.06.2022,ADULT SOCIAL CARE,OGILVIE COURT,-425.6,LD LTS 18-64,"MAND STATUTORY CHARGES, RESIDENTIAL",2103492968,1910302
07.06.2022,ADULT SOCIAL CARE,OGILVIE COURT,-424.52,LD LTS 18-64,"MAND STATUTORY CHARGES, RESIDENTIAL",2103492637,1910302
07.06.2022,ADULT SOCIAL CARE,THE AVENUES TRUST,-425.64,LD LTS 18-64,"MAND STATUTORY CHARGES, RESIDENTIAL",2103493302,1981708
07.06.2022,ADULT SOCIAL CARE,THE PADDOCK (THE SWALLOW GROUP),-608.8,LD LTS 18-64,"MAND STATUTORY CHARGES, RESIDENTIAL",2103493126,11153854
07.06.2022,ADULT SOCIAL CARE,THE PADDOCK (THE SWALLOW GROUP),-604.8,LD LTS 18-64,"MAND STATUTORY CHARGES, RESIDENTIAL",2103493334,11153854
07.06.2022,ADULT SOCIAL CARE,ACHIEVE TOGETHER,-410.64,LD LTS 18-64,"MAND STATUTORY CHARGES, RESIDENTIAL",2103492635,11307451
07.06.2022,ADULT SOCIAL CARE,THE DRIVE CARE HOMES LTD,-425.6,LD LTS 18-64,"MAND STATUTORY CHARGES, RESIDENTIAL",2103493380,1000003889
07.06.2022,ADULT SOCIAL CARE,THE DRIVE CARE HOMES LTD,-356.8,LD LTS 18-64,"MAND STATUTORY CHARGES, RESIDENTIAL",2103493103,1000003889
07.06.2022,ADULT SOCIAL CARE,THE FRANCES TAYLOR FOUNDATION,-412.68,LD LTS 18-64,"MAND STATUTORY CHARGES, RESIDENTIAL",2103492324,1000007274
07.06.2022,ADULT SOCIAL CARE,ST ELIZABETH SCHOOL,-437.6,LD LTS 18-64,"MAND STATUTORY CHARGES, RESIDENTIAL",2103492761,1000014407
07.06.2022,ADULT SOCIAL CARE,THE ROYAL INSTITUTE FOR DEAF PEOPLE,-425.64,LD LTS 18-64,"MAND STATUTORY CHARGES, RESIDENTIAL",2103492462,1000014488
07.06.2022,ADULT SOCIAL CARE,ASHINGHAM HOUSE LIMITED,-365.32,LD LTS 18-64,"MAND STATUTORY CHARGES, RESIDENTIAL",2103492337,1000016504
07.06.2022,ADULT SOCIAL CARE,NATIONAL AUTISTIC SOCIETY CARE PACK,-424.52,LD LTS 18-64,"MAND STATUTORY CHARGES, RESIDENTIAL",2103492326,1000020538
07.06.2022,ADULT SOCIAL CARE,ASHDENE HOUSE LIMITED,-425.6,LD LTS 18-64,"MAND STATUTORY CHARGES, RESIDENTIAL",2103492627,1000021007
07.06.2022,ADULT SOCIAL CARE,SAFFRONLAND HOMES (HESTIA),-425.64,LD LTS 18-64,"MAND STATUTORY CHARGES, RESIDENTIAL",2103492380,1000021616
07.06.2022,ADULT SOCIAL CARE,SAFFRONLAND HOMES (HESTIA),-425.64,LD LTS 18-64,"MAND STATUTORY CHARGES, RESIDENTIAL",2103492505,1000021616
07.06.2022,ADULT SOCIAL CARE,SAFFRONLAND HOMES (HESTIA),-425.64,LD LTS 18-64,"MAND STATUTORY CHARGES, RESIDENTIAL",2103492700,1000021616
07.06.2022,ADULT SOCIAL CARE,SAFFRONLAND HOMES (HESTIA),-425.64,LD LTS 18-64,"MAND STATUTORY CHARGES, RESIDENTIAL",2103493032,1000021616
07.06.2022,ADULT SOCIAL CARE,SAFFRONLAND HOMES (HESTIA),-356.8,LD LTS 18-64,"MAND STATUTORY CHARGES, RESIDENTIAL",2103493392,1000021616
07.06.2022,ADULT SOCIAL CARE,NEXUS PROGRAMME LTD,-412.68,LD LTS 18-64,"MAND STATUTORY CHARGES, RESIDENTIAL",2103492422,1000025336
07.06.2022,ADULT SOCIAL CARE,CHOICE SUPPORT,-394.52,LD LTS 18-64,"MAND STATUTORY CHARGES, RESIDENTIAL",2103492332,1000031156
07.06.2022,ADULT SOCIAL CARE,STEPPING STONES RESETTLEMENT UNIT,-425.64,LD LTS 18-64,"MAND STATUTORY CHARGES, RESIDENTIAL",2103492816,1000032806
07.06.2022,ADULT SOCIAL CARE,ROYAL MENCAP SOCIETY,-419.2,LD LTS 18-64,"MAND STATUTORY CHARGES, RESIDENTIAL",2103492623,1000034706
07.06.2022,ADULT SOCIAL CARE,ASD UNIQUE SERVICES LTD,-425.64,LD LTS 18-64,"MAND STATUTORY CHARGES, RESIDENTIAL",2103492510,1000038819
07.06.2022,ADULT SOCIAL CARE,CARE MANAGEMENT GROUP,-608.8,LD LTS 18-64,"MAND STATUTORY CHARGES, RESIDENTIAL",2103492375,1000040475
07.06.2022,ADULT SOCIAL CARE,CARE MANAGEMENT GROUP,-517.44,LD LTS 18-64,"MAND STATUTORY CHARGES, RESIDENTIAL",2103492346,1000040475
07.06.2022,ADULT SOCIAL CARE,CARE MANAGEMENT GROUP,-352.72,LD LTS 18-64,"MAND STATUTORY CHARGES, RESIDENTIAL",2103493084,1000040475
07.06.2022,ADULT SOCIAL CARE,VOYAGE LTD (EVESLEIGH KENT),-425.6,LD LTS 18-64,"MAND STATUTORY CHARGES, RESIDENTIAL",2103492460,1000041320
07.06.2022,ADULT SOCIAL CARE,VOYAGE LTD (EVESLEIGH KENT),-425.6,LD LTS 18-64,"MAND STATUTORY CHARGES, RESIDENTIAL",2103492621,1000041320
07.06.2022,ADULT SOCIAL CARE,VOYAGE LTD (EVESLEIGH KENT),-368.8,LD LTS 18-64,"MAND STATUTORY CHARGES, RESIDENTIAL",2103493297,1000041320
07.06.2022,ADULT SOCIAL CARE,FERRY CARE LTD,-425.64,LD LTS 18-64,"MAND STATUTORY CHARGES, RESIDENTIAL",2103492348,1000041775
07.06.2022,ADULT SOCIAL CARE,SEEABILITY,"-57,890.07",LD LTS 18-64,"MAND STATUTORY CHARGES, RESIDENTIAL",2103386277,1000043641
07.06.2022,ADULT SOCIAL CARE,SEEABILITY,"-11,026.68",LD LTS 18-64,"MAND STATUTORY CHARGES, RESIDENTIAL",2103400784,1000043641
07.06.2022,ADULT SOCIAL CARE,SEEABILITY,"-11,026.68",LD LTS 18-64,"MAND STATUTORY CHARGES, RESIDENTIAL",2103460439,1000043641
07.06.2022,ADULT SOCIAL CARE,SEEABILITY,"-11,026.68",LD LTS 18-64,"MAND STATUTORY CHARGES, RESIDENTIAL",2103476031,1000043641
07.06.2022,ADULT SOCIAL CARE,SEEABILITY,"-2,246.79",LD LTS 18-64,"MAND STATUTORY CHARGES, RESIDENTIAL",2103386535,1000043641
07.06.2022,ADULT SOCIAL CARE,SEEABILITY,"85,737.94",LD LTS 18-64,"MAND STATUTORY CHARGES, RESIDENTIAL",2103493042,1000043641
07.06.2022,ADULT SOCIAL CARE,SENSE,-412.68,LD LTS 18-64,"MAND STATUTORY CHARGES, RESIDENTIAL",2103492972,1000046797
07.06.2022,ADULT SOCIAL CARE,LEONARD CHESHIRE (GARDEN HOUSE),-352.72,LD LTS 18-64,"MAND STATUTORY CHARGES, RESIDENTIAL",2103493100,1000049748
07.06.2022,ADULT SOCIAL CARE,GLEN CARE GROUP,-419.72,LD LTS 18-64,"MAND STATUTORY CHARGES, RESIDENTIAL",2103493089,1000050223
07.06.2022,ADULT SOCIAL CARE,FIR TREE LODGE (SEE ABILITY),-357.6,LD LTS 18-64,"MAND STATUTORY CHARGES, RESIDENTIAL",2103492959,1000052257
07.06.2022,ADULT SOCIAL CARE,GROVE CARE PARTNERSHIP LIMITED,-364.44,LD LTS 18-64,"MAND STATUTORY CHARGES, RESIDENTIAL",2103492476,1000052893
07.06.2022,ADULT SOCIAL CARE,THE MEATH,-370.04,LD LTS 18-64,"MAND STATUTORY CHARGES, RESIDENTIAL",2103493257,1000056796
07.06.2022,ADULT SOCIAL CARE,BROADHAM CARE LIMITED,-546.96,LD LTS 18-64,"MAND STATUTORY CHARGES, RESIDENTIAL",2103493028,1000057411
07.06.2022,ADULT SOCIAL CARE,GLENPAT HOMES,-356.8,LD LTS 18-64,"MAND STATUTORY CHARGES, RESIDENTIAL",2103493365,1000059312
07.06.2022,ADULT SOCIAL CARE,FRANCES TAYLOR FOUNDATION,-412.68,LD LTS 18-64,"MAND STATUTORY CHARGES, RESIDENTIAL",2103492706,1000063870
07.06.2022,ADULT SOCIAL CARE,CRAEGMOOR WHEELHOUSE PRIORY,-423.96,LD LTS 18-64,"MAND STATUTORY CHARGES, RESIDENTIAL",2103493078,1000068452
07.06.2022,ADULT SOCIAL CARE,CRAEGMOOR DEVONSHIRE ROAD PRIORY,-424.52,LD LTS 18-64,"MAND STATUTORY CHARGES, RESIDENTIAL",2103493358,1000068453
07.06.2022,ADULT SOCIAL CARE,CARLTON NURSING HOMES LTD,-327,LD LTS 18-64,"MAND STATUTORY CHARGES, RESIDENTIAL",2103492742,1000070431
07.06.2022,ADULT SOCIAL CARE,SAFFRONLAND HOMES,-401.52,LD LTS 18-64,"MAND STATUTORY CHARGES, RESIDENTIAL",2103492688,1000072152
07.06.2022,ADULT SOCIAL CARE,SAFFRONLAND HOMES,-377.4,LD LTS 18-64,"MAND STATUTORY CHARGES, RESIDENTIAL",2103492376,1000072152
07.06.2022,ADULT SOCIAL CARE,SAFFRONLAND HOMES,-419.2,LD LTS 18-64,"MAND STATUTORY CHARGES, RESIDENTIAL",2103492822,1000072153
07.06.2022,ADULT SOCIAL CARE,CRAEGMOOR WILLOWS HYTHE PRIORY,-424.52,LD LTS 18-64,"MAND STATUTORY CHARGES, RESIDENTIAL",2103492329,1000072287
07.06.2022,ADULT SOCIAL CARE,CRAEGMOOR (WINDSOR HOUSE),-425.6,LD LTS 18-64,"MAND STATUTORY CHARGES, RESIDENTIAL",2103493080,1000072462
07.06.2022,ADULT SOCIAL CARE,DIAGRAMA HEALTH CARE,-425.64,LD LTS 18-64,"MAND STATUTORY CHARGES, RESIDENTIAL",2103492342,1000075492
07.06.2022,ADULT SOCIAL CARE,DIAGRAMA HEALTH CARE,-425.64,LD LTS 18-64,"MAND STATUTORY CHARGES, RESIDENTIAL",2103492471,1000075492
07.06.2022,ADULT SOCIAL CARE,DIAGRAMA HEALTH CARE,-370.04,LD LTS 18-64,"MAND STATUTORY CHARGES, RESIDENTIAL",2103493404,1000075492
07.06.2022,ADULT SOCIAL CARE,DIAGRAMA HEALTH CARE,-356.8,LD LTS 18-64,"MAND STATUTORY CHARGES, RESIDENTIAL",2103492473,1000075492
07.06.2022,ADULT SOCIAL CARE,VOYAGE CARE (MOUNTEARL),-425.6,LD LTS 18-64,"MAND STATUTORY CHARGES, RESIDENTIAL",2103493299,1000078173
07.06.2022,ADULT SOCIAL CARE,LOVING CARE LTD,-295,LD LTS 18-64,"MAND STATUTORY CHARGES, RESIDENTIAL",2103492887,1000082873
07.06.2022,ADULT SOCIAL CARE,ZERO THREE CARE LIMITED,-321.8,LD LTS 18-64,"MAND STATUTORY CHARGES, RESIDENTIAL",2103492943,1000085367
07.06.2022,ADULT SOCIAL CARE,BEAUMONT COURT CARE HOMES LTD,-425.64,LD LTS 18-64,"MAND STATUTORY CHARGES, RESIDENTIAL",2103492468,1000086413
07.06.2022,ADULT SOCIAL CARE,BRITISH HOME & HOSPITAL FOR INCURABLES,"6,964.00",LD LTS 18-64,NURSING PLACEMENTS FEES,2103492435,1001606
07.06.2022,ADULT SOCIAL CARE,NATIONAL AUTISTIC SOCIETY CARE PACK,"2,698.92",LD LTS 18-64,OTHER PAYMENTS FOR CLIENTS,2103492463,1000020538
07.06.2022,ADULT SOCIAL CARE,ROYAL MENCAP SOCIETY,772.92,LD LTS 18-64,OTHER PAYMENTS FOR CLIENTS,2103492624,1000034706
07.06.2022,ADULT SOCIAL CARE,CRAEGMOOR WHEELHOUSE PRIORY,896.08,LD LTS 18-64,OTHER PAYMENTS FOR CLIENTS,2103492625,1000068452
07.06.2022,ADULT SOCIAL CARE,CHOICE SUPPORT,"4,797.72",LD LTS 18-64,RESIDENTIAL CARE,2103492300,1104183
07.06.2022,ADULT SOCIAL CARE,CHOICE SUPPORT,"6,167.36",LD LTS 18-64,RESIDENTIAL CARE,2103493109,1104183
07.06.2022,ADULT SOCIAL CARE,CHOICE SUPPORT,"7,110.88",LD LTS 18-64,RESIDENTIAL CARE,2103492732,1104183
07.06.2022,ADULT SOCIAL CARE,CRAEGMOOR HEALTHCARE,"6,611.56",LD LTS 18-64,RESIDENTIAL CARE,2103492489,1323845
07.06.2022,ADULT SOCIAL CARE,CHOICE CARE GROUP,"7,472.44",LD LTS 18-64,RESIDENTIAL CARE,2103493413,1572506
07.06.2022,ADULT SOCIAL CARE,CHOICE CARE GROUP,"8,050.60",LD LTS 18-64,RESIDENTIAL CARE,2103492343,1572506
07.06.2022,ADULT SOCIAL CARE,CHOICE CARE GROUP,"8,365.48",LD LTS 18-64,RESIDENTIAL CARE,2103492765,1572506
07.06.2022,ADULT SOCIAL CARE,CHOICE CARE GROUP,"8,467.64",LD LTS 18-64,RESIDENTIAL CARE,2103493359,1572506
07.06.2022,ADULT SOCIAL CARE,THE REGARD PARTNERSHIP,"7,109.24",LD LTS 18-64,RESIDENTIAL CARE,2103492479,1823223
07.06.2022,ADULT SOCIAL CARE,THE REGARD PARTNERSHIP,"7,639.96",LD LTS 18-64,RESIDENTIAL CARE,2103492352,1823223
07.06.2022,ADULT SOCIAL CARE,THE REGARD PARTNERSHIP,"9,378.08",LD LTS 18-64,RESIDENTIAL CARE,2103492969,1823223
07.06.2022,ADULT SOCIAL CARE,THE REGARD PARTNERSHIP,"18,403.88",LD LTS 18-64,RESIDENTIAL CARE,2103492500,1823223
07.06.2022,ADULT SOCIAL CARE,INSIGHT,"5,712.44",LD LTS 18-64,RESIDENTIAL CARE,2103492964,1825618
07.06.2022,ADULT SOCIAL CARE,INSIGHT,"9,247.60",LD LTS 18-64,RESIDENTIAL CARE,2103492963,1825618
07.06.2022,ADULT SOCIAL CARE,INSIGHT,"9,726.68",LD LTS 18-64,RESIDENTIAL CARE,2103492961,1825618
07.06.2022,ADULT SOCIAL CARE,INSIGHT,"10,749.20",LD LTS 18-64,RESIDENTIAL CARE,2103492477,1825618
07.06.2022,ADULT SOCIAL CARE,OGILVIE COURT,"4,824.28",LD LTS 18-64,RESIDENTIAL CARE,2103492636,1910302
07.06.2022,ADULT SOCIAL CARE,OGILVIE COURT,"8,351.84",LD LTS 18-64,RESIDENTIAL CARE,2103492361,1910302
07.06.2022,ADULT SOCIAL CARE,OGILVIE COURT,"12,084.68",LD LTS 18-64,RESIDENTIAL CARE,2103492967,1910302
07.06.2022,ADULT SOCIAL CARE,THE AVENUES TRUST,"8,741.80",LD LTS 18-64,RESIDENTIAL CARE,2103493301,1981708
07.06.2022,ADULT SOCIAL CARE,THE PADDOCK (THE SWALLOW GROUP),"3,152.84",LD LTS 18-64,RESIDENTIAL CARE,2103493333,11153854
07.06.2022,ADULT SOCIAL CARE,SAFFRONLAND HOMES,"5,073.00",LD LTS 18-64,RESIDENTIAL CARE,2103492469,11172608
07.06.2022,ADULT SOCIAL CARE,ACHIEVE TOGETHER,"6,810.60",LD LTS 18-64,RESIDENTIAL CARE,2103492634,11307451
07.06.2022,ADULT SOCIAL CARE,THE DRIVE CARE HOMES LTD,"6,068.76",LD LTS 18-64,RESIDENTIAL CARE,2103493102,1000003889
07.06.2022,ADULT SOCIAL CARE,THE DRIVE CARE HOMES LTD,"10,085.76",LD LTS 18-64,RESIDENTIAL CARE,2103493074,1000003889
07.06.2022,ADULT SOCIAL CARE,THE FRANCES TAYLOR FOUNDATION,"2,568.44",LD LTS 18-64,RESIDENTIAL CARE,2103492323,1000007274
07.06.2022,ADULT SOCIAL CARE,ST ELIZABETH SCHOOL,"9,893.32",LD LTS 18-64,RESIDENTIAL CARE,2103492458,1000014407
07.06.2022,ADULT SOCIAL CARE,ST ELIZABETH SCHOOL,"20,996.00",LD LTS 18-64,RESIDENTIAL CARE,2103492760,1000014407
07.06.2022,ADULT SOCIAL CARE,THE ROYAL INSTITUTE FOR DEAF PEOPLE,"6,999.64",LD LTS 18-64,RESIDENTIAL CARE,2103492461,1000014488
07.06.2022,ADULT SOCIAL CARE,ASHINGHAM HOUSE LIMITED,"8,273.12",LD LTS 18-64,RESIDENTIAL CARE,2103492336,1000016504
07.06.2022,ADULT SOCIAL CARE,HAZELDENE LTD,"5,993.16",LD LTS 18-64,RESIDENTIAL CARE,2103492965,1000019679
07.06.2022,ADULT SOCIAL CARE,NATIONAL AUTISTIC SOCIETY CARE PACK,"5,354.08",LD LTS 18-64,RESIDENTIAL CARE,2103492325,1000020538
07.06.2022,ADULT SOCIAL CARE,ASHDENE HOUSE LIMITED,"3,768.88",LD LTS 18-64,RESIDENTIAL CARE,2103492626,1000021007
07.06.2022,ADULT SOCIAL CARE,PLUS SERVICES,"5,571.72",LD LTS 18-64,RESIDENTIAL CARE,2103493217,1000021241
07.06.2022,ADULT SOCIAL CARE,SAFFRONLAND HOMES (HESTIA),"7,847.40",LD LTS 18-64,RESIDENTIAL CARE,2103492379,1000021616
07.06.2022,ADULT SOCIAL CARE,SAFFRONLAND HOMES (HESTIA),"7,847.40",LD LTS 18-64,RESIDENTIAL CARE,2103492544,1000021616
07.06.2022,ADULT SOCIAL CARE,SAFFRONLAND HOMES (HESTIA),"8,200.00",LD LTS 18-64,RESIDENTIAL CARE,2103492504,1000021616
07.06.2022,ADULT SOCIAL CARE,SAFFRONLAND HOMES (HESTIA),"8,200.00",LD LTS 18-64,RESIDENTIAL CARE,2103492731,1000021616
07.06.2022,ADULT SOCIAL CARE,SAFFRONLAND HOMES (HESTIA),"8,200.00",LD LTS 18-64,RESIDENTIAL CARE,2103493031,1000021616
07.06.2022,ADULT SOCIAL CARE,NEXUS PROGRAMME LTD,"7,459.36",LD LTS 18-64,RESIDENTIAL CARE,2103492420,1000025336
07.06.2022,ADULT SOCIAL CARE,CHOICE SUPPORT,"5,330.32",LD LTS 18-64,RESIDENTIAL CARE,2103492331,1000031156
07.06.2022,ADULT SOCIAL CARE,STEPPING STONES RESETTLEMENT UNIT,"6,548.68",LD LTS 18-64,RESIDENTIAL CARE,2103492815,1000032806
07.06.2022,ADULT SOCIAL CARE,ROYAL MENCAP SOCIETY,"3,526.96",LD LTS 18-64,RESIDENTIAL CARE,2103492622,1000034706
07.06.2022,ADULT SOCIAL CARE,ASD UNIQUE SERVICES LTD,"5,874.04",LD LTS 18-64,RESIDENTIAL CARE,2103492509,1000038819
07.06.2022,ADULT SOCIAL CARE,CARE MANAGEMENT GROUP,"5,777.88",LD LTS 18-64,RESIDENTIAL CARE,2103492345,1000040475
07.06.2022,ADULT SOCIAL CARE,CARE MANAGEMENT GROUP,"7,977.60",LD LTS 18-64,RESIDENTIAL CARE,2103493083,1000040475
07.06.2022,ADULT SOCIAL CARE,VOYAGE LTD (EVESLEIGH KENT),"5,462.60",LD LTS 18-64,RESIDENTIAL CARE,2103492459,1000041320
07.06.2022,ADULT SOCIAL CARE,VOYAGE LTD (EVESLEIGH KENT),"6,399.56",LD LTS 18-64,RESIDENTIAL CARE,2103493296,1000041320
07.06.2022,ADULT SOCIAL CARE,VOYAGE LTD (EVESLEIGH KENT),"7,578.16",LD LTS 18-64,RESIDENTIAL CARE,2103492620,1000041320
07.06.2022,ADULT SOCIAL CARE,FERRY CARE LTD,"11,643.92",LD LTS 18-64,RESIDENTIAL CARE,2103492347,1000041775
07.06.2022,ADULT SOCIAL CARE,VALUE IN CARE LTD,"7,391.52",LD LTS 18-64,RESIDENTIAL CARE,2103492330,1000041975
07.06.2022,ADULT SOCIAL CARE,VALUE IN CARE LTD,"15,450.88",LD LTS 18-64,RESIDENTIAL CARE,2103492619,1000041975
07.06.2022,ADULT SOCIAL CARE,THE CHILTERNS - OPTIMA CARE,"11,156.64",LD LTS 18-64,RESIDENTIAL CARE,2103493129,1000042209
07.06.2022,ADULT SOCIAL CARE,SEEABILITY,"-5,245.09",LD LTS 18-64,RESIDENTIAL CARE,2103385866,1000043641
07.06.2022,ADULT SOCIAL CARE,SEEABILITY,"11,026.68",LD LTS 18-64,RESIDENTIAL CARE,2103400783,1000043641
07.06.2022,ADULT SOCIAL CARE,SEEABILITY,"11,026.68",LD LTS 18-64,RESIDENTIAL CARE,2103460438,1000043641
07.06.2022,ADULT SOCIAL CARE,SEEABILITY,"11,026.68",LD LTS 18-64,RESIDENTIAL CARE,2103476030,1000043641
07.06.2022,ADULT SOCIAL CARE,SEEABILITY,"11,026.68",LD LTS 18-64,RESIDENTIAL CARE,2103493041,1000043641
07.06.2022,ADULT SOCIAL CARE,SEEABILITY,"22,053.36",LD LTS 18-64,RESIDENTIAL CARE,2103386276,1000043641
07.06.2022,ADULT SOCIAL CARE,SENSE,"10,052.16",LD LTS 18-64,RESIDENTIAL CARE,2103492971,1000046797
07.06.2022,ADULT SOCIAL CARE,LEONARD CHESHIRE (GARDEN HOUSE),"4,466.40",LD LTS 18-64,RESIDENTIAL CARE,2103493099,1000049748
07.06.2022,ADULT SOCIAL CARE,LEONARD CHESHIRE (THICKET ROAD),"7,401.60",LD LTS 18-64,RESIDENTIAL CARE,2103492350,1000049761
07.06.2022,ADULT SOCIAL CARE,OCEAN COMMUNITY SERVICES LTD,"11,765.12",LD LTS 18-64,RESIDENTIAL CARE,2103492966,1000050124
07.06.2022,ADULT SOCIAL CARE,GLEN CARE GROUP,"4,881.08",LD LTS 18-64,RESIDENTIAL CARE,2103492632,1000050223
07.06.2022,ADULT SOCIAL CARE,GLEN CARE GROUP,"5,454.08",LD LTS 18-64,RESIDENTIAL CARE,2103493088,1000050223
07.06.2022,ADULT SOCIAL CARE,GLEN CARE GROUP,"7,828.00",LD LTS 18-64,RESIDENTIAL CARE,2103492956,1000050223
07.06.2022,ADULT SOCIAL CARE,GLEN CARE GROUP,"13,649.40",LD LTS 18-64,RESIDENTIAL CARE,2103492339,1000050223
07.06.2022,ADULT SOCIAL CARE,CYGNET CARE SERVICES LTD,"13,031.64",LD LTS 18-64,RESIDENTIAL CARE,2103492764,1000050432
07.06.2022,ADULT SOCIAL CARE,CYGNET CARE SERVICES LTD,"13,314.04",LD LTS 18-64,RESIDENTIAL CARE,2103493356,1000050432
07.06.2022,ADULT SOCIAL CARE,FIR TREE LODGE (SEE ABILITY),"8,397.52",LD LTS 18-64,RESIDENTIAL CARE,2103492958,1000052257
07.06.2022,ADULT SOCIAL CARE,GROVE CARE PARTNERSHIP LIMITED,"7,984.56",LD LTS 18-64,RESIDENTIAL CARE,2103492555,1000052893
07.06.2022,ADULT SOCIAL CARE,GROVE CARE PARTNERSHIP LIMITED,"8,467.00",LD LTS 18-64,RESIDENTIAL CARE,2103492475,1000052893
07.06.2022,ADULT SOCIAL CARE,LA ROSA RESIDENTIAL CARE HOME,"2,716.00",LD LTS 18-64,RESIDENTIAL CARE,2103493087,1000053962
07.06.2022,ADULT SOCIAL CARE,THE MEATH,"6,051.20",LD LTS 18-64,RESIDENTIAL CARE,2103493256,1000056796
07.06.2022,ADULT SOCIAL CARE,BROADHAM CARE LIMITED,"8,210.28",LD LTS 18-64,RESIDENTIAL CARE,2103492474,1000057411
07.06.2022,ADULT SOCIAL CARE,BROADHAM CARE LIMITED,"8,895.16",LD LTS 18-64,RESIDENTIAL CARE,2103493350,1000057411
07.06.2022,ADULT SOCIAL CARE,INDEPENDENCE HOMES LTD,"14,558.64",LD LTS 18-64,RESIDENTIAL CARE,2103493247,1000058961
07.06.2022,ADULT SOCIAL CARE,GLENPAT HOMES,"7,922.24",LD LTS 18-64,RESIDENTIAL CARE,2103493364,1000059312
07.06.2022,ADULT SOCIAL CARE,FRANCES TAYLOR FOUNDATION,"3,368.68",LD LTS 18-64,RESIDENTIAL CARE,2103492705,1000063870
07.06.2022,ADULT SOCIAL CARE,CARETECH COMMUNITY SERVICES LTD,"8,374.44",LD LTS 18-64,RESIDENTIAL CARE,2103492957,1000066698
07.06.2022,ADULT SOCIAL CARE,CARETECH COMMUNITY SERVICES LTD,"8,961.92",LD LTS 18-64,RESIDENTIAL CARE,2103492633,1000066698
07.06.2022,ADULT SOCIAL CARE,CARETECH COMMUNITY SERVICES LTD,"9,413.36",LD LTS 18-64,RESIDENTIAL CARE,2103493081,1000066698
07.06.2022,ADULT SOCIAL CARE,CRAEGMOOR WHEELHOUSE PRIORY,"5,525.16",LD LTS 18-64,RESIDENTIAL CARE,2103493077,1000068452
07.06.2022,ADULT SOCIAL CARE,CRAEGMOOR DEVONSHIRE ROAD PRIORY,"4,614.76",LD LTS 18-64,RESIDENTIAL CARE,2103493357,1000068453
07.06.2022,ADULT SOCIAL CARE,CARLTON NURSING HOMES LTD,"11,199.40",LD LTS 18-64,RESIDENTIAL CARE,2103492741,1000070431
07.06.2022,ADULT SOCIAL CARE,SAFFRONLAND HOMES,"7,460.00",LD LTS 18-64,RESIDENTIAL CARE,2103492371,1000072152
07.06.2022,ADULT SOCIAL CARE,SAFFRONLAND HOMES,"7,460.00",LD LTS 18-64,RESIDENTIAL CARE,2103492984,1000072152
07.06.2022,ADULT SOCIAL CARE,SAFFRONLAND HOMES,"5,717.60",LD LTS 18-64,RESIDENTIAL CARE,2103492299,1000072153
07.06.2022,ADULT SOCIAL CARE,CRAEGMOOR WILLOWS HYTHE PRIORY,"3,403.96",LD LTS 18-64,RESIDENTIAL CARE,2103492328,1000072287
07.06.2022,ADULT SOCIAL CARE,CRAEGMOOR (WINDSOR HOUSE),"3,390.92",LD LTS 18-64,RESIDENTIAL CARE,2103493079,1000072462
07.06.2022,ADULT SOCIAL CARE,DIAGRAMA HEALTH CARE,"4,123.12",LD LTS 18-64,RESIDENTIAL CARE,2103492470,1000075492
07.06.2022,ADULT SOCIAL CARE,DIAGRAMA HEALTH CARE,"4,192.28",LD LTS 18-64,RESIDENTIAL CARE,2103492472,1000075492
07.06.2022,ADULT SOCIAL CARE,DIAGRAMA HEALTH CARE,"4,665.24",LD LTS 18-64,RESIDENTIAL CARE,2103492341,1000075492
07.06.2022,ADULT SOCIAL CARE,DIAGRAMA HEALTH CARE,"4,720.40",LD LTS 18-64,RESIDENTIAL CARE,2103493085,1000075492
07.06.2022,ADULT SOCIAL CARE,DIAGRAMA HEALTH CARE,"4,804.12",LD LTS 18-64,RESIDENTIAL CARE,2103493403,1000075492
07.06.2022,ADULT SOCIAL CARE,THE WHITE HOUSE CARE HOME,"3,445.96",LD LTS 18-64,RESIDENTIAL CARE,2103492327,1000076369
07.06.2022,ADULT SOCIAL CARE,THE WHITE HOUSE CARE HOME,"3,600.00",LD LTS 18-64,RESIDENTIAL CARE,2103493321,1000076369
07.06.2022,ADULT SOCIAL CARE,HEALTH PERSONNEL LTD,"3,676.00",LD LTS 18-64,RESIDENTIAL CARE,2103492196,1000076377
07.06.2022,ADULT SOCIAL CARE,ASHMEAD HEALTHCARE LTD,"7,959.84",LD LTS 18-64,RESIDENTIAL CARE,2103492338,1000077917
07.06.2022,ADULT SOCIAL CARE,VOYAGE CARE (MOUNTEARL),"7,132.36",LD LTS 18-64,RESIDENTIAL CARE,2103493298,1000078173
07.06.2022,ADULT SOCIAL CARE,VOYAGE CARE (MOUNTEARL),"10,746.28",LD LTS 18-64,RESIDENTIAL CARE,2103493300,1000078173
07.06.2022,ADULT SOCIAL CARE,NASH CARE HOMES LTD,"13,914.16",LD LTS 18-64,RESIDENTIAL CARE,2103492351,1000080224
07.06.2022,ADULT SOCIAL CARE,HILLSVIEW CARE SERVICES LTD,"6,717.68",LD LTS 18-64,RESIDENTIAL CARE,2103493307,1000081828
07.06.2022,ADULT SOCIAL CARE,LOVING CARE LTD,"10,004.80",LD LTS 18-64,RESIDENTIAL CARE,2103492886,1000082873
07.06.2022,ADULT SOCIAL CARE,NORTHBROOK HOMES LTD,"5,804.00",LD LTS 18-64,RESIDENTIAL CARE,2103492951,1000083242
07.06.2022,ADULT SOCIAL CARE,ZERO THREE CARE LIMITED,"13,078.36",LD LTS 18-64,RESIDENTIAL CARE,2103492942,1000085367
07.06.2022,ADULT SOCIAL CARE,BEAUMONT COURT CARE HOMES LTD,"3,893.40",LD LTS 18-64,RESIDENTIAL CARE,2103492467,1000086413
07.06.2022,ADULT SOCIAL CARE,RYDE HOUSE,"6,041.32",LD LTS 18-64,SUPPORTED LIVING,2103492791,1022373
07.06.2022,ADULT SOCIAL CARE,CHOICE SUPPORT,713.16,LD LTS 18-64,SUPPORTED LIVING,2103492573,1104183
07.06.2022,ADULT SOCIAL CARE,CHOICE SUPPORT,876.64,LD LTS 18-64,SUPPORTED LIVING,2103492577,1104183
07.06.2022,ADULT SOCIAL CARE,CHOICE SUPPORT,895,LD LTS 18-64,SUPPORTED LIVING,2103493271,1104183
07.06.2022,ADULT SOCIAL CARE,CHOICE SUPPORT,"1,573.96",LD LTS 18-64,SUPPORTED LIVING,2103493295,1104183
07.06.2022,ADULT SOCIAL CARE,CHOICE SUPPORT,"1,651.44",LD LTS 18-64,SUPPORTED LIVING,2103492438,1104183
07.06.2022,ADULT SOCIAL CARE,CHOICE SUPPORT,"2,151.96",LD LTS 18-64,SUPPORTED LIVING,2103493190,1104183
07.06.2022,ADULT SOCIAL CARE,CHOICE SUPPORT,"3,012.52",LD LTS 18-64,SUPPORTED LIVING,2103492569,1104183
07.06.2022,ADULT SOCIAL CARE,CHOICE SUPPORT,"3,305.96",LD LTS 18-64,SUPPORTED LIVING,2103492729,1104183
07.06.2022,ADULT SOCIAL CARE,CHOICE SUPPORT,"3,449.40",LD LTS 18-64,SUPPORTED LIVING,2103493462,1104183
07.06.2022,ADULT SOCIAL CARE,CHOICE SUPPORT,"3,505.20",LD LTS 18-64,SUPPORTED LIVING,2103493065,1104183
07.06.2022,ADULT SOCIAL CARE,CHOICE SUPPORT,"3,671.40",LD LTS 18-64,SUPPORTED LIVING,2103493188,1104183
07.06.2022,ADULT SOCIAL CARE,CHOICE SUPPORT,"3,766.08",LD LTS 18-64,SUPPORTED LIVING,2103493409,1104183
07.06.2022,ADULT SOCIAL CARE,CHOICE SUPPORT,"3,910.48",LD LTS 18-64,SUPPORTED LIVING,2103493061,1104183
07.06.2022,ADULT SOCIAL CARE,CHOICE SUPPORT,"3,971.40",LD LTS 18-64,SUPPORTED LIVING,2103492859,1104183
07.06.2022,ADULT SOCIAL CARE,CHOICE SUPPORT,"4,185.84",LD LTS 18-64,SUPPORTED LIVING,2103492723,1104183
07.06.2022,ADULT SOCIAL CARE,CHOICE SUPPORT,"4,246.12",LD LTS 18-64,SUPPORTED LIVING,2103493410,1104183
07.06.2022,ADULT SOCIAL CARE,CHOICE SUPPORT,"4,529.16",LD LTS 18-64,SUPPORTED LIVING,2103493463,1104183
07.06.2022,ADULT SOCIAL CARE,CHOICE SUPPORT,"4,676.76",LD LTS 18-64,SUPPORTED LIVING,2103493464,1104183
07.06.2022,ADULT SOCIAL CARE,CHOICE SUPPORT,"4,716.64",LD LTS 18-64,SUPPORTED LIVING,2103493063,1104183
07.06.2022,ADULT SOCIAL CARE,CHOICE SUPPORT,"4,733.68",LD LTS 18-64,SUPPORTED LIVING,2103492774,1104183
07.06.2022,ADULT SOCIAL CARE,CHOICE SUPPORT,"4,784.80",LD LTS 18-64,SUPPORTED LIVING,2103493182,1104183
07.06.2022,ADULT SOCIAL CARE,CHOICE SUPPORT,"4,933.64",LD LTS 18-64,SUPPORTED LIVING,2103492771,1104183
07.06.2022,ADULT SOCIAL CARE,CHOICE SUPPORT,"4,955.32",LD LTS 18-64,SUPPORTED LIVING,2103493064,1104183
07.06.2022,ADULT SOCIAL CARE,CHOICE SUPPORT,"4,997.12",LD LTS 18-64,SUPPORTED LIVING,2103492907,1104183
07.06.2022,ADULT SOCIAL CARE,CHOICE SUPPORT,"5,119.24",LD LTS 18-64,SUPPORTED LIVING,2103492783,1104183
07.06.2022,ADULT SOCIAL CARE,CHOICE SUPPORT,"5,176.24",LD LTS 18-64,SUPPORTED LIVING,2103493477,1104183
07.06.2022,ADULT SOCIAL CARE,CHOICE SUPPORT,"5,285.64",LD LTS 18-64,SUPPORTED LIVING,2103492772,1104183
07.06.2022,ADULT SOCIAL CARE,CHOICE SUPPORT,"5,285.64",LD LTS 18-64,SUPPORTED LIVING,2103493134,1104183
07.06.2022,ADULT SOCIAL CARE,CHOICE SUPPORT,"5,330.08",LD LTS 18-64,SUPPORTED LIVING,2103492285,1104183
07.06.2022,ADULT SOCIAL CARE,CHOICE SUPPORT,"5,395.28",LD LTS 18-64,SUPPORTED LIVING,2103493352,1104183
07.06.2022,ADULT SOCIAL CARE,CHOICE SUPPORT,"5,415.32",LD LTS 18-64,SUPPORTED LIVING,2103493185,1104183
07.06.2022,ADULT SOCIAL CARE,CHOICE SUPPORT,"5,447.24",LD LTS 18-64,SUPPORTED LIVING,2103493278,1104183
07.06.2022,ADULT SOCIAL CARE,CHOICE SUPPORT,"5,660.52",LD LTS 18-64,SUPPORTED LIVING,2103493189,1104183
07.06.2022,ADULT SOCIAL CARE,CHOICE SUPPORT,"5,982.84",LD LTS 18-64,SUPPORTED LIVING,2103492900,1104183
07.06.2022,ADULT SOCIAL CARE,CHOICE SUPPORT,"6,429.64",LD LTS 18-64,SUPPORTED LIVING,2103492568,1104183
07.06.2022,ADULT SOCIAL CARE,CHOICE SUPPORT,"6,454.80",LD LTS 18-64,SUPPORTED LIVING,2103493066,1104183
07.06.2022,ADULT SOCIAL CARE,CHOICE SUPPORT,"6,766.12",LD LTS 18-64,SUPPORTED LIVING,2103493255,1104183
07.06.2022,ADULT SOCIAL CARE,CHOICE SUPPORT,"6,792.44",LD LTS 18-64,SUPPORTED LIVING,2103493186,1104183
07.06.2022,ADULT SOCIAL CARE,CHOICE SUPPORT,"7,261.44",LD LTS 18-64,SUPPORTED LIVING,2103492908,1104183
07.06.2022,ADULT SOCIAL CARE,CHOICE SUPPORT,"7,390.24",LD LTS 18-64,SUPPORTED LIVING,2103492912,1104183
07.06.2022,ADULT SOCIAL CARE,CHOICE SUPPORT,"7,518.08",LD LTS 18-64,SUPPORTED LIVING,2103492572,1104183
07.06.2022,ADULT SOCIAL CARE,CHOICE SUPPORT,"7,854.64",LD LTS 18-64,SUPPORTED LIVING,2103492575,1104183
07.06.2022,ADULT SOCIAL CARE,CHOICE SUPPORT,"8,244.00",LD LTS 18-64,SUPPORTED LIVING,2103492913,1104183
07.06.2022,ADULT SOCIAL CARE,CHOICE SUPPORT,"8,365.92",LD LTS 18-64,SUPPORTED LIVING,2103493408,1104183
07.06.2022,ADULT SOCIAL CARE,CHOICE SUPPORT,"9,071.52",LD LTS 18-64,SUPPORTED LIVING,2103493471,1104183
07.06.2022,ADULT SOCIAL CARE,CHOICE CARE GROUP,"5,294.64",LD LTS 18-64,SUPPORTED LIVING,2103492759,1572506
07.06.2022,ADULT SOCIAL CARE,THE REGARD PARTNERSHIP,408.72,LD LTS 18-64,SUPPORTED LIVING,2103492897,1823223
07.06.2022,ADULT SOCIAL CARE,THE REGARD PARTNERSHIP,"3,961.52",LD LTS 18-64,SUPPORTED LIVING,2103492318,1823223
07.06.2022,ADULT SOCIAL CARE,THE REGARD PARTNERSHIP,"4,400.00",LD LTS 18-64,SUPPORTED LIVING,2103492310,1823223
07.06.2022,ADULT SOCIAL CARE,THE REGARD PARTNERSHIP (IVY LODGE),"3,525.72",LD LTS 18-64,SUPPORTED LIVING,2103492597,11002026
07.06.2022,ADULT SOCIAL CARE,PEABODY TRUST,281.28,LD LTS 18-64,SUPPORTED LIVING,2103492683,11275862
07.06.2022,ADULT SOCIAL CARE,PEABODY TRUST,301.28,LD LTS 18-64,SUPPORTED LIVING,2103492419,11275862
07.06.2022,ADULT SOCIAL CARE,PEABODY TRUST,421.92,LD LTS 18-64,SUPPORTED LIVING,2103493014,11275862
07.06.2022,ADULT SOCIAL CARE,PEABODY TRUST,421.92,LD LTS 18-64,SUPPORTED LIVING,2103493123,11275862
07.06.2022,ADULT SOCIAL CARE,PEABODY TRUST,441.92,LD LTS 18-64,SUPPORTED LIVING,2103492893,11275862
07.06.2022,ADULT SOCIAL CARE,PEABODY TRUST,562.56,LD LTS 18-64,SUPPORTED LIVING,2103492882,11275862
07.06.2022,ADULT SOCIAL CARE,PEABODY TRUST,"1,561.88",LD LTS 18-64,SUPPORTED LIVING,2103493269,11275862
07.06.2022,ADULT SOCIAL CARE,PEABODY TRUST,"2,107.92",LD LTS 18-64,SUPPORTED LIVING,2103492531,11275862
07.06.2022,ADULT SOCIAL CARE,PEABODY TRUST,"2,198.00",LD LTS 18-64,SUPPORTED LIVING,2103493498,11275862
07.06.2022,ADULT SOCIAL CARE,PEABODY TRUST,"2,395.88",LD LTS 18-64,SUPPORTED LIVING,2103492283,11275862
07.06.2022,ADULT SOCIAL CARE,PEABODY TRUST,"2,547.76",LD LTS 18-64,SUPPORTED LIVING,2103492673,11275862
07.06.2022,ADULT SOCIAL CARE,PEABODY TRUST,"2,839.24",LD LTS 18-64,SUPPORTED LIVING,2103492598,11275862
07.06.2022,ADULT SOCIAL CARE,PEABODY TRUST,"3,255.64",LD LTS 18-64,SUPPORTED LIVING,2103493270,11275862
07.06.2022,ADULT SOCIAL CARE,LINKAGE COMMUNITY TRUST LTD,"1,598.52",LD LTS 18-64,SUPPORTED LIVING,2103492880,1000003632
07.06.2022,ADULT SOCIAL CARE,SWK DISABLEMENT ASSN,409.92,LD LTS 18-64,SUPPORTED LIVING,2103493281,1000011698
07.06.2022,ADULT SOCIAL CARE,HAZELDENE LTD,"2,074.80",LD LTS 18-64,SUPPORTED LIVING,2103492428,1000019679
07.06.2022,ADULT SOCIAL CARE,PLUS SERVICES,"4,545.60",LD LTS 18-64,SUPPORTED LIVING,2103493149,1000021241
07.06.2022,ADULT SOCIAL CARE,PLUS SERVICES,"4,694.04",LD LTS 18-64,SUPPORTED LIVING,2103492519,1000021241
07.06.2022,ADULT SOCIAL CARE,PLUS SERVICES,"5,277.52",LD LTS 18-64,SUPPORTED LIVING,2103492662,1000021241
07.06.2022,ADULT SOCIAL CARE,PLUS SERVICES,"5,356.24",LD LTS 18-64,SUPPORTED LIVING,2103492521,1000021241
07.06.2022,ADULT SOCIAL CARE,PLUS SERVICES,"5,458.92",LD LTS 18-64,SUPPORTED LIVING,2103492661,1000021241
07.06.2022,ADULT SOCIAL CARE,PLUS SERVICES,"5,689.20",LD LTS 18-64,SUPPORTED LIVING,2103492664,1000021241
07.06.2022,ADULT SOCIAL CARE,CARE MANAGEMENT GROUP,"2,922.36",LD LTS 18-64,SUPPORTED LIVING,2103493019,1000040475
07.06.2022,ADULT SOCIAL CARE,CARE MANAGEMENT GROUP,"3,702.68",LD LTS 18-64,SUPPORTED LIVING,2103492825,1000040475
07.06.2022,ADULT SOCIAL CARE,CARE MANAGEMENT GROUP,"3,940.00",LD LTS 18-64,SUPPORTED LIVING,2103492735,1000040475
07.06.2022,ADULT SOCIAL CARE,CARE MANAGEMENT GROUP,"4,360.00",LD LTS 18-64,SUPPORTED LIVING,2103492604,1000040475
07.06.2022,ADULT SOCIAL CARE,CARE MANAGEMENT GROUP,"4,951.56",LD LTS 18-64,SUPPORTED LIVING,2103493127,1000040475
07.06.2022,ADULT SOCIAL CARE,CARE MANAGEMENT GROUP,"5,240.56",LD LTS 18-64,SUPPORTED LIVING,2103493223,1000040475
07.06.2022,ADULT SOCIAL CARE,CARE MANAGEMENT GROUP,"5,368.00",LD LTS 18-64,SUPPORTED LIVING,2103493320,1000040475
07.06.2022,ADULT SOCIAL CARE,BRANDON TRUST,"2,436.24",LD LTS 18-64,SUPPORTED LIVING,2103493466,1000042417
07.06.2022,ADULT SOCIAL CARE,BRANDON TRUST,"2,542.16",LD LTS 18-64,SUPPORTED LIVING,2103493467,1000042417
07.06.2022,ADULT SOCIAL CARE,BRANDON TRUST,"2,576.28",LD LTS 18-64,SUPPORTED LIVING,2103492902,1000042417
07.06.2022,ADULT SOCIAL CARE,BRANDON TRUST,"2,600.44",LD LTS 18-64,SUPPORTED LIVING,2103492574,1000042417
07.06.2022,ADULT SOCIAL CARE,BRANDON TRUST,"2,817.72",LD LTS 18-64,SUPPORTED LIVING,2103493068,1000042417
07.06.2022,ADULT SOCIAL CARE,BRANDON TRUST,"3,176.76",LD LTS 18-64,SUPPORTED LIVING,2103492905,1000042417
07.06.2022,ADULT SOCIAL CARE,BRANDON TRUST,"3,220.44",LD LTS 18-64,SUPPORTED LIVING,2103493069,1000042417
07.06.2022,ADULT SOCIAL CARE,BRANDON TRUST,"3,852.56",LD LTS 18-64,SUPPORTED LIVING,2103493470,1000042417
07.06.2022,ADULT SOCIAL CARE,BRANDON TRUST,"4,216.20",LD LTS 18-64,SUPPORTED LIVING,2103493072,1000042417
07.06.2022,ADULT SOCIAL CARE,BRANDON TRUST,"4,400.60",LD LTS 18-64,SUPPORTED LIVING,2103493071,1000042417
07.06.2022,ADULT SOCIAL CARE,BRANDON TRUST,"4,722.16",LD LTS 18-64,SUPPORTED LIVING,2103492567,1000042417
07.06.2022,ADULT SOCIAL CARE,BRANDON TRUST,"4,854.64",LD LTS 18-64,SUPPORTED LIVING,2103493062,1000042417
07.06.2022,ADULT SOCIAL CARE,BRANDON TRUST,"4,863.84",LD LTS 18-64,SUPPORTED LIVING,2103492906,1000042417
07.06.2022,ADULT SOCIAL CARE,BRANDON TRUST,"4,975.88",LD LTS 18-64,SUPPORTED LIVING,2103492434,1000042417
07.06.2022,ADULT SOCIAL CARE,BRANDON TRUST,"5,504.84",LD LTS 18-64,SUPPORTED LIVING,2103492650,1000042417
07.06.2022,ADULT SOCIAL CARE,BRANDON TRUST,"5,652.64",LD LTS 18-64,SUPPORTED LIVING,2103492565,1000042417
07.06.2022,ADULT SOCIAL CARE,BRANDON TRUST,"5,700.08",LD LTS 18-64,SUPPORTED LIVING,2103492727,1000042417
07.06.2022,ADULT SOCIAL CARE,BRANDON TRUST,"5,830.16",LD LTS 18-64,SUPPORTED LIVING,2103492564,1000042417
07.06.2022,ADULT SOCIAL CARE,BRANDON TRUST,"5,859.80",LD LTS 18-64,SUPPORTED LIVING,2103492901,1000042417
07.06.2022,ADULT SOCIAL CARE,BRANDON TRUST,"6,223.32",LD LTS 18-64,SUPPORTED LIVING,2103492433,1000042417
07.06.2022,ADULT SOCIAL CARE,BRANDON TRUST,"6,249.96",LD LTS 18-64,SUPPORTED LIVING,2103493070,1000042417
07.06.2022,ADULT SOCIAL CARE,BRANDON TRUST,"6,398.28",LD LTS 18-64,SUPPORTED LIVING,2103492898,1000042417
07.06.2022,ADULT SOCIAL CARE,BRANDON TRUST,"6,398.28",LD LTS 18-64,SUPPORTED LIVING,2103493407,1000042417
07.06.2022,ADULT SOCIAL CARE,BRANDON TRUST,"6,398.28",LD LTS 18-64,SUPPORTED LIVING,2103493458,1000042417
07.06.2022,ADULT SOCIAL CARE,BRANDON TRUST,"6,540.32",LD LTS 18-64,SUPPORTED LIVING,2103492408,1000042417
07.06.2022,ADULT SOCIAL CARE,BRANDON TRUST,"6,580.60",LD LTS 18-64,SUPPORTED LIVING,2103493184,1000042417
07.06.2022,ADULT SOCIAL CARE,BRANDON TRUST,"6,778.12",LD LTS 18-64,SUPPORTED LIVING,2103492904,1000042417
07.06.2022,ADULT SOCIAL CARE,BRANDON TRUST,"6,793.60",LD LTS 18-64,SUPPORTED LIVING,2103492726,1000042417
07.06.2022,ADULT SOCIAL CARE,BRANDON TRUST,"6,829.12",LD LTS 18-64,SUPPORTED LIVING,2103493459,1000042417
07.06.2022,ADULT SOCIAL CARE,BRANDON TRUST,"6,972.92",LD LTS 18-64,SUPPORTED LIVING,2103492412,1000042417
07.06.2022,ADULT SOCIAL CARE,BRANDON TRUST,"7,630.28",LD LTS 18-64,SUPPORTED LIVING,2103492903,1000042417
07.06.2022,ADULT SOCIAL CARE,BRANDON TRUST,"8,154.00",LD LTS 18-64,SUPPORTED LIVING,2103493151,1000042417
07.06.2022,ADULT SOCIAL CARE,BRANDON TRUST,"9,262.16",LD LTS 18-64,SUPPORTED LIVING,2103493469,1000042417
07.06.2022,ADULT SOCIAL CARE,SEEABILITY,"4,251.20",LD LTS 18-64,SUPPORTED LIVING,2103400636,1000043641
07.06.2022,ADULT SOCIAL CARE,SEEABILITY,"4,251.20",LD LTS 18-64,SUPPORTED LIVING,2103460883,1000043641
07.06.2022,ADULT SOCIAL CARE,SEEABILITY,"4,251.20",LD LTS 18-64,SUPPORTED LIVING,2103475260,1000043641
07.06.2022,ADULT SOCIAL CARE,SEEABILITY,"4,251.20",LD LTS 18-64,SUPPORTED LIVING,2103493474,1000043641
07.06.2022,ADULT SOCIAL CARE,SEEABILITY,"7,439.60",LD LTS 18-64,SUPPORTED LIVING,2103386679,1000043641
07.06.2022,ADULT SOCIAL CARE,BURGESS AUTISTIC TRUST,"7,066.80",LD LTS 18-64,SUPPORTED LIVING,2103493011,1000044550
07.06.2022,ADULT SOCIAL CARE,CHILDREN OF COLOUR,"4,000.00",LD LTS 18-64,SUPPORTED LIVING,2103492891,1000044955
07.06.2022,ADULT SOCIAL CARE,SENSE,"1,037.60",LD LTS 18-64,SUPPORTED LIVING,2103493224,1000046797
07.06.2022,ADULT SOCIAL CARE,L & Q LIVING,"11,672.12",LD LTS 18-64,SUPPORTED LIVING,2103492605,1000057917
07.06.2022,ADULT SOCIAL CARE,INDEPENDENCE HOMES LTD,"6,135.64",LD LTS 18-64,SUPPORTED LIVING,2103493242,1000058961
07.06.2022,ADULT SOCIAL CARE,RIGHT SUPPORT MANAGEMENT LTD,"8,486.40",LD LTS 18-64,SUPPORTED LIVING,2103492532,1000070289
07.06.2022,ADULT SOCIAL CARE,ZETETICK HOUSING,917.96,LD LTS 18-64,SUPPORTED LIVING,2103492292,1000072236
07.06.2022,ADULT SOCIAL CARE,ZETETICK HOUSING,917.96,LD LTS 18-64,SUPPORTED LIVING,2103493504,1000072236
07.06.2022,ADULT SOCIAL CARE,FRONTIER SUPPORT SERVICES LTD,"3,902.60",LD LTS 18-64,SUPPORTED LIVING,2103492309,1000072241
07.06.2022,ADULT SOCIAL CARE,FRONTIER SUPPORT SERVICES LTD,"4,217.92",LD LTS 18-64,SUPPORTED LIVING,2103492284,1000072241
07.06.2022,ADULT SOCIAL CARE,FRONTIER SUPPORT SERVICES LTD,"4,843.60",LD LTS 18-64,SUPPORTED LIVING,2103493162,1000072241
07.06.2022,ADULT SOCIAL CARE,COMMUNITY INTEGRATED CARE,"5,838.56",LD LTS 18-64,SUPPORTED LIVING,2103493192,1000072886
07.06.2022,ADULT SOCIAL CARE,L'ARCHE LONDON COMMUNITY,"4,230.80",LD LTS 18-64,SUPPORTED LIVING,2103492877,1000074124
07.06.2022,ADULT SOCIAL CARE,HEALTH PERSONNEL LTD,"4,364.48",LD LTS 18-64,SUPPORTED LIVING,2103492667,1000076377
07.06.2022,ADULT SOCIAL CARE,HEALTH PERSONNEL LTD,"5,133.52",LD LTS 18-64,SUPPORTED LIVING,2103492666,1000076377
07.06.2022,ADULT SOCIAL CARE,PECULIAR CARE HOMES LTD,"10,205.40",LD LTS 18-64,SUPPORTED LIVING,2103493222,1000076991
07.06.2022,ADULT SOCIAL CARE,PECULIAR CARE HOMES LTD,"12,376.88",LD LTS 18-64,SUPPORTED LIVING,2103492457,1000076991
07.06.2022,ADULT SOCIAL CARE,PECULIAR CARE HOMES LTD,"17,232.00",LD LTS 18-64,SUPPORTED LIVING,2103492930,1000076991
07.06.2022,ADULT SOCIAL CARE,LONDON CYRENIANS HOUSING LTD,"5,972.60",LD LTS 18-64,SUPPORTED LIVING,2103493490,1000078600
07.06.2022,ADULT SOCIAL CARE,LONDON CYRENIANS HOUSING LTD,"7,182.80",LD LTS 18-64,SUPPORTED LIVING,2103492522,1000078600
07.06.2022,ADULT SOCIAL CARE,LONDON CYRENIANS HOUSING LTD,"8,842.68",LD LTS 18-64,SUPPORTED LIVING,2103492665,1000078600
07.06.2022,ADULT SOCIAL CARE,LONDON CYRENIANS HOUSING LTD,"9,496.32",LD LTS 18-64,SUPPORTED LIVING,2103492523,1000078600
07.06.2022,ADULT SOCIAL CARE,LONDON CYRENIANS HOUSING LTD,"10,200.00",LD LTS 18-64,SUPPORTED LIVING,2103493154,1000078600
07.06.2022,ADULT SOCIAL CARE,OPTIMA CARE (SHINE) LONDON LTD,"-2,505.87",LD LTS 18-64,SUPPORTED LIVING,2103493263,1000079614
07.06.2022,ADULT SOCIAL CARE,OPTIMA CARE (SHINE) LONDON LTD,"5,626.40",LD LTS 18-64,SUPPORTED LIVING,2103492932,1000079614
07.06.2022,ADULT SOCIAL CARE,OPTIMA CARE (SHINE) LONDON LTD,"6,205.60",LD LTS 18-64,SUPPORTED LIVING,2103493491,1000079614
07.06.2022,ADULT SOCIAL CARE,OPTIMA CARE (SHINE) LONDON LTD,"8,108.64",LD LTS 18-64,SUPPORTED LIVING,2103492524,1000079614
07.06.2022,ADULT SOCIAL CARE,OPTIMA CARE (SHINE) LONDON LTD,"8,770.56",LD LTS 18-64,SUPPORTED LIVING,2103493492,1000079614
07.06.2022,ADULT SOCIAL CARE,OPTIMA CARE (SHINE) LONDON LTD,"9,563.56",LD LTS 18-64,SUPPORTED LIVING,2103492278,1000079614
07.06.2022,ADULT SOCIAL CARE,OPTIMA CARE (SHINE) LONDON LTD,"9,563.56",LD LTS 18-64,SUPPORTED LIVING,2103493265,1000079614
07.06.2022,ADULT SOCIAL CARE,OPTIMA CARE (SHINE) LONDON LTD,"10,130.64",LD LTS 18-64,SUPPORTED LIVING,2103492669,1000079614
07.06.2022,ADULT SOCIAL CARE,OPTIMA CARE (SHINE) LONDON LTD,"11,004.60",LD LTS 18-64,SUPPORTED LIVING,2103492668,1000079614
07.06.2022,ADULT SOCIAL CARE,OPTIMA CARE (SHINE) LONDON LTD,"13,181.00",LD LTS 18-64,SUPPORTED LIVING,2103493264,1000079614
07.06.2022,ADULT SOCIAL CARE,SEQUENCE CARE LTD,"4,144.00",LD LTS 18-64,SUPPORTED LIVING,2103493020,1000080343
07.06.2022,ADULT SOCIAL CARE,ENDURANCE CARE LTD,"3,186.40",LD LTS 18-64,SUPPORTED LIVING,2103493284,1000080552
07.06.2022,ADULT SOCIAL CARE,INSPIRE SUPPORT WORKERS LTD,"5,135.88",LD LTS 18-64,SUPPORTED LIVING,2103492987,1000080725
07.06.2022,ADULT SOCIAL CARE,ATEGI LTD,"1,338.24",LD LTS 18-64,SUPPORTED LIVING,2103492430,1000081382
07.06.2022,ADULT SOCIAL CARE,ATEGI LTD,"1,999.20",LD LTS 18-64,SUPPORTED LIVING,2103492322,1000081382
07.06.2022,ADULT SOCIAL CARE,ATEGI LTD,"2,029.20",LD LTS 18-64,SUPPORTED LIVING,2103493155,1000081382
07.06.2022,ADULT SOCIAL CARE,ATEGI LTD,"2,101.20",LD LTS 18-64,SUPPORTED LIVING,2103492758,1000081382
07.06.2022,ADULT SOCIAL CARE,ATEGI LTD,"2,112.00",LD LTS 18-64,SUPPORTED LIVING,2103492933,1000081382
07.06.2022,ADULT SOCIAL CARE,ATEGI LTD,"2,367.20",LD LTS 18-64,SUPPORTED LIVING,2103492525,1000081382
07.06.2022,ADULT SOCIAL CARE,ATEGI LTD,"2,416.60",LD LTS 18-64,SUPPORTED LIVING,2103493293,1000081382
07.06.2022,ADULT SOCIAL CARE,ATEGI LTD,"2,733.20",LD LTS 18-64,SUPPORTED LIVING,2103492530,1000081382
07.06.2022,ADULT SOCIAL CARE,RESIDENTIAL CARE SERVICES LTD,"7,334.80",LD LTS 18-64,SUPPORTED LIVING,2103492890,1000082629
07.06.2022,ADULT SOCIAL CARE,REESON CARE HOMES LTD,"9,608.40",LD LTS 18-64,SUPPORTED LIVING,2103493510,1000084007
07.06.2022,ADULT SOCIAL CARE,REESON CARE HOMES LTD,"11,674.08",LD LTS 18-64,SUPPORTED LIVING,2103493512,1000084007
07.06.2022,ADULT SOCIAL CARE,GARLAND LODGE LTD,"3,560.00",LD LTS 18-64,SUPPORTED LIVING,2103493016,1000084016
07.06.2022,ADULT SOCIAL CARE,GARLAND LODGE LTD,"4,185.84",LD LTS 18-64,SUPPORTED LIVING,2103492862,1000084016
07.06.2022,ADULT SOCIAL CARE,GARLAND LODGE LTD,"4,800.00",LD LTS 18-64,SUPPORTED LIVING,2103493353,1000084016
07.06.2022,ADULT SOCIAL CARE,GARLAND LODGE LTD,"5,800.00",LD LTS 18-64,SUPPORTED LIVING,2103492317,1000084016
07.06.2022,ADULT SOCIAL CARE,GARLAND LODGE LTD,"8,120.00",LD LTS 18-64,SUPPORTED LIVING,2103492513,1000084016
07.06.2022,ADULT SOCIAL CARE,TRANSFORM SUPPORTED ACCOMMODATION,"3,800.00",LD LTS 18-64,SUPPORTED LIVING,2103493251,1000084155
07.06.2022,ADULT SOCIAL CARE,TRANSFORM SUPPORTED ACCOMMODATION,"4,460.00",LD LTS 18-64,SUPPORTED LIVING,2103492757,1000084155
07.06.2022,ADULT SOCIAL CARE,TRANSFORM SUPPORTED ACCOMMODATION,"5,805.80",LD LTS 18-64,SUPPORTED LIVING,2103493499,1000084155
07.06.2022,ADULT SOCIAL CARE,FIRST CARE LODGE,"4,800.00",LD LTS 18-64,SUPPORTED LIVING,2103492426,1000084196
07.06.2022,ADULT SOCIAL CARE,FIRST CARE LODGE,"5,649.48",LD LTS 18-64,SUPPORTED LIVING,2103492533,1000084196
07.06.2022,ADULT SOCIAL CARE,FIRST CARE LODGE,"9,484.00",LD LTS 18-64,SUPPORTED LIVING,2103492756,1000084196
07.06.2022,ADULT SOCIAL CARE,FIRST CARE LODGE,"14,034.00",LD LTS 18-64,SUPPORTED LIVING,2103492807,1000084196
07.06.2022,ADULT SOCIAL CARE,BEECHCROFT SUPPORT LIMITED,"3,035.16",LD LTS 18-64,SUPPORTED LIVING,2103493500,1000085412
07.06.2022,ADULT SOCIAL CARE,BEECHCROFT SUPPORT LIMITED,"4,266.60",LD LTS 18-64,SUPPORTED LIVING,2103492915,1000085412
07.06.2022,ADULT SOCIAL CARE,BEECHCROFT SUPPORT LIMITED,"6,090.00",LD LTS 18-64,SUPPORTED LIVING,2103492287,1000085412
07.06.2022,ADULT SOCIAL CARE,BEECHCROFT SUPPORT LIMITED,"6,402.64",LD LTS 18-64,SUPPORTED LIVING,2103492534,1000085412
07.06.2022,ADULT SOCIAL CARE,BEECHCROFT SUPPORT LIMITED,"6,980.00",LD LTS 18-64,SUPPORTED LIVING,2103493250,1000085412
07.06.2022,ADULT SOCIAL CARE,BEECHCROFT SUPPORT LIMITED,"7,084.72",LD LTS 18-64,SUPPORTED LIVING,2103492286,1000085412
07.06.2022,ADULT SOCIAL CARE,BEECHCROFT SUPPORT LIMITED,"8,647.80",LD LTS 18-64,SUPPORTED LIVING,2103493501,1000085412
07.06.2022,ADULT SOCIAL CARE,BEECHCROFT SUPPORT LIMITED,"9,528.80",LD LTS 18-64,SUPPORTED LIVING,2103492988,1000085412
07.06.2022,ADULT SOCIAL CARE,BEECHCROFT SUPPORT LIMITED,"10,353.00",LD LTS 18-64,SUPPORTED LIVING,2103493272,1000085412
07.06.2022,ADULT SOCIAL CARE,BEECHCROFT SUPPORT LIMITED,"10,738.72",LD LTS 18-64,SUPPORTED LIVING,2103493163,1000085412
07.06.2022,ADULT SOCIAL CARE,BEECHCROFT SUPPORT LIMITED,"11,165.00",LD LTS 18-64,SUPPORTED LIVING,2103492674,1000085412
07.06.2022,ADULT SOCIAL CARE,KEEVA CARE LIMITED,"4,902.44",LD LTS 18-64,SUPPORTED LIVING,2103492675,1000086100
07.06.2022,ADULT SOCIAL CARE,KEEVA CARE LIMITED,"6,181.36",LD LTS 18-64,SUPPORTED LIVING,2103492676,1000086100
07.06.2022,ADULT SOCIAL CARE,ABBEYS CARE SUPPORT AND TRAINING LTD,"5,373.92",LD LTS 18-64,SUPPORTED LIVING,2103492713,1000086177
07.06.2022,ADULT SOCIAL CARE,ABBEYS CARE SUPPORT AND TRAINING LTD,"5,380.00",LD LTS 18-64,SUPPORTED LIVING,2103492492,1000086177
07.06.2022,ADULT SOCIAL CARE,ABBEYS CARE SUPPORT AND TRAINING LTD,"5,449.92",LD LTS 18-64,SUPPORTED LIVING,2103492319,1000086177
07.06.2022,ADULT SOCIAL CARE,ABBEYS CARE SUPPORT AND TRAINING LTD,"6,861.88",LD LTS 18-64,SUPPORTED LIVING,2103492290,1000086177
07.06.2022,ADULT SOCIAL CARE,ABBEYS CARE SUPPORT AND TRAINING LTD,"7,774.36",LD LTS 18-64,SUPPORTED LIVING,2103492291,1000086177
07.06.2022,ADULT SOCIAL CARE,SPECTRA CARE LTD,"12,174.00",LD LTS 18-64,SUPPORTED LIVING,2103493053,1000086280
07.06.2022,ADULT SOCIAL CARE,AVONDALE HOUSE,"5,392.00",LD LTS 18-64,SUPPORTED LIVING,2103493095,1000086483
07.06.2022,ADULT SOCIAL CARE,AVONDALE HOUSE,"5,708.00",LD LTS 18-64,SUPPORTED LIVING,2103493026,1000086483
07.06.2022,ADULT SOCIAL CARE,YPR LIMITED,"5,600.00",LD LTS 18-64,SUPPORTED LIVING,2103493484,1000086517
07.06.2022,ADULT SOCIAL CARE,YPR LIMITED,"11,200.00",LD LTS 18-64,SUPPORTED LIVING,2103493208,1000086517
07.06.2022,ADULT SOCIAL CARE,YPR LIMITED,"13,000.00",LD LTS 18-64,SUPPORTED LIVING,2103492392,1000086517
07.06.2022,ADULT SOCIAL CARE,SUMMERCARE LIMITED,"4,068.72",LD LTS 18-64,SUPPORTED LIVING,2103492955,1000086519
07.06.2022,ADULT SOCIAL CARE,CLACTON FAMILY TRUST RESIDENTIAL HOME,"6,790.88",LD LTS 18-64,SUPPORTED LIVING,2103493101,1000086761
07.06.2022,ADULT SOCIAL CARE,SUNRISE REHABILITATION CENTRE,"10,962.50",LD LTS 18-64,SUPPORTED LIVING,2103493262,1000086998
07.06.2022,ADULT SOCIAL CARE,KEMPTON CARE AND SUPPORT SERVICES LTD,"12,400.00",LD LTS 18-64,SUPPORTED LIVING,2103493138,1000087491
07.06.2022,ADULT SOCIAL CARE,SALUTEM SHARED SERVICES II LIMITED,"10,584.00",LD LTS 18-64,SUPPORTED LIVING,2103492562,1000088055
07.06.2022,ADULT SOCIAL CARE,ALWAYS INCLUSIVE LTD,"9,060.00",LD LTS 18-64,SUPPORTED LIVING,2103492646,1000088268
07.06.2022,ADULT SOCIAL CARE,ALWAYS INCLUSIVE LTD,"14,914.50",LD LTS 18-64,SUPPORTED LIVING,2103492443,1000088268
07.06.2022,ADULT SOCIAL CARE,ALWAYS INCLUSIVE LTD,"14,914.50",LD LTS 18-64,SUPPORTED LIVING,2103493204,1000088268
07.06.2022,ADULT SOCIAL CARE,ALWAYS INCLUSIVE LTD,"15,130.50",LD LTS 18-64,SUPPORTED LIVING,2103492541,1000088268
07.06.2022,ADULT SOCIAL CARE,ALWAYS INCLUSIVE LTD,"15,514.50",LD LTS 18-64,SUPPORTED LIVING,2103492516,1000088268
07.06.2022,ADULT SOCIAL CARE,LIVE TOO LIMITED,"11,979.28",LD LTS 18-64,SUPPORTED LIVING,2103493423,1000088404
07.06.2022,ADULT SOCIAL CARE,LEWISHAM NEXUS SERVICE (AURORO NEXUS),960.72,LD LTS 18-64,SUPPORTED LIVING,2103492660,1000088434
07.06.2022,ADULT SOCIAL CARE,LEWISHAM NEXUS SERVICE (AURORO NEXUS),"2,669.44",LD LTS 18-64,SUPPORTED LIVING,2103492931,1000088434
07.06.2022,ADULT SOCIAL CARE,LEWISHAM NEXUS SERVICE (AURORO NEXUS),"5,911.92",LD LTS 18-64,SUPPORTED LIVING,2103492273,1000088434
07.06.2022,ADULT SOCIAL CARE,LEWISHAM NEXUS SERVICE (AURORO NEXUS),"5,911.92",LD LTS 18-64,SUPPORTED LIVING,2103493152,1000088434
07.06.2022,ADULT SOCIAL CARE,LEWISHAM NEXUS SERVICE (AURORO NEXUS),"6,584.48",LD LTS 18-64,SUPPORTED LIVING,2103493203,1000088434
07.06.2022,ADULT SOCIAL CARE,LEWISHAM NEXUS SERVICE (AURORO NEXUS),"6,665.12",LD LTS 18-64,SUPPORTED LIVING,2103492275,1000088434
07.06.2022,ADULT SOCIAL CARE,LEWISHAM NEXUS SERVICE (AURORO NEXUS),"7,125.28",LD LTS 18-64,SUPPORTED LIVING,2103492447,1000088434
07.06.2022,ADULT SOCIAL CARE,REDACTED PERSONAL DATA,"15,757.50",LD LTS 18-64,SUPPORTED LIVING,REDACTED,REDACTED
07.06.2022,ADULT SOCIAL CARE,NEXUS PROGRAMME LTD,-402.6,LD LTS 18-64,THIRD PARTY TOP UP CARE,2103492421,1000025336
07.06.2022,ADULT SOCIAL CARE,MORTIMER SOCIETY,-608.8,LD LTS 65+,"MAND STATUTORY CHARGES, RESIDENTIAL",2103493383,1002942
07.06.2022,ADULT SOCIAL CARE,ATHOL HOUSE LONDON CHESHIRE HOMES,-608.8,LD LTS 65+,"MAND STATUTORY CHARGES, RESIDENTIAL",2103492704,1022907
07.06.2022,ADULT SOCIAL CARE,THE REGARD PARTNERSHIP,-419.2,LD LTS 65+,"MAND STATUTORY CHARGES, RESIDENTIAL",2103492970,1823223
07.06.2022,ADULT SOCIAL CARE,PLUS SERVICES,-634.84,LD LTS 65+,"MAND STATUTORY CHARGES, RESIDENTIAL",2103493206,1000021241
07.06.2022,ADULT SOCIAL CARE,PARKGATE MANOR,-608.8,LD LTS 65+,"MAND STATUTORY CHARGES, RESIDENTIAL",2103492841,1000032801
07.06.2022,ADULT SOCIAL CARE,FRANCES TAYLOR FOUNDATION,-608.8,LD LTS 65+,"MAND STATUTORY CHARGES, RESIDENTIAL",2103493384,1000063870
07.06.2022,ADULT SOCIAL CARE,SAFFRONLAND HOMES,-731.8,LD LTS 65+,"MAND STATUTORY CHARGES, RESIDENTIAL",2103493416,1000072152
07.06.2022,ADULT SOCIAL CARE,ALLIED CARE LTD,-608.8,LD LTS 65+,"MAND STATUTORY CHARGES, RESIDENTIAL",2103492694,1000083157
07.06.2022,ADULT SOCIAL CARE,SAI CARE LIMITED,-569.4,LD LTS 65+,"MAND STATUTORY CHARGES, RESIDENTIAL",2103492439,1000087786
07.06.2022,ADULT SOCIAL CARE,SALUTEM SHARED SERVICES II LIMITED,-373.36,LD LTS 65+,"MAND STATUTORY CHARGES, RESIDENTIAL",2103493401,1000088055
07.06.2022,ADULT SOCIAL CARE,MORTIMER SOCIETY,"3,369.72",LD LTS 65+,RESIDENTIAL CARE,2103493216,1002942
07.06.2022,ADULT SOCIAL CARE,ATHOL HOUSE LONDON CHESHIRE HOMES,"4,320.92",LD LTS 65+,RESIDENTIAL CARE,2103492703,1022907
07.06.2022,ADULT SOCIAL CARE,THE PADDOCK (THE SWALLOW GROUP),"3,168.40",LD LTS 65+,RESIDENTIAL CARE,2103493125,11153854
07.06.2022,ADULT SOCIAL CARE,SAFFRONLAND HOMES,"6,478.00",LD LTS 65+,RESIDENTIAL CARE,2103493503,11172608
07.06.2022,ADULT SOCIAL CARE,PLUS SERVICES,"8,537.32",LD LTS 65+,RESIDENTIAL CARE,2103493205,1000021241
07.06.2022,ADULT SOCIAL CARE,PARKGATE MANOR,"3,669.96",LD LTS 65+,RESIDENTIAL CARE,2103492840,1000032801
07.06.2022,ADULT SOCIAL CARE,CARE MANAGEMENT GROUP,"6,090.76",LD LTS 65+,RESIDENTIAL CARE,2103492374,1000040475
07.06.2022,ADULT SOCIAL CARE,FRANCES TAYLOR FOUNDATION,"2,725.64",LD LTS 65+,RESIDENTIAL CARE,2103493274,1000063870
07.06.2022,ADULT SOCIAL CARE,SAFFRONLAND HOMES,"7,646.48",LD LTS 65+,RESIDENTIAL CARE,2103493415,1000072152
07.06.2022,ADULT SOCIAL CARE,THE WHITE HOUSE CARE HOME,"3,526.00",LD LTS 65+,RESIDENTIAL CARE,2103492539,1000076369
07.06.2022,ADULT SOCIAL CARE,SIGNATURE HEALTH AND LIVING LTD,"4,307.44",LD LTS 65+,RESIDENTIAL CARE,2103492540,1000077751
07.06.2022,ADULT SOCIAL CARE,SANCTUARY CARE LTD,"3,167.24",LD LTS 65+,RESIDENTIAL CARE,2103493432,1000077831
07.06.2022,ADULT SOCIAL CARE,ALLIED CARE LTD,"5,403.32",LD LTS 65+,RESIDENTIAL CARE,2103492693,1000083157
07.06.2022,ADULT SOCIAL CARE,SAI CARE LIMITED,"3,445.96",LD LTS 65+,RESIDENTIAL CARE,2103492440,1000087786
07.06.2022,ADULT SOCIAL CARE,SALUTEM SHARED SERVICES II LIMITED,"7,322.68",LD LTS 65+,RESIDENTIAL CARE,2103493402,1000088055
07.06.2022,ADULT SOCIAL CARE,CHOICE SUPPORT,"1,673.60",LD LTS 65+,SUPPORTED LIVING,2103492571,1104183
07.06.2022,ADULT SOCIAL CARE,CHOICE SUPPORT,"2,356.76",LD LTS 65+,SUPPORTED LIVING,2103492570,1104183
07.06.2022,ADULT SOCIAL CARE,CHOICE SUPPORT,"2,759.16",LD LTS 65+,SUPPORTED LIVING,2103492773,1104183
07.06.2022,ADULT SOCIAL CARE,CHOICE SUPPORT,"3,071.20",LD LTS 65+,SUPPORTED LIVING,2103492728,1104183
07.06.2022,ADULT SOCIAL CARE,CHOICE SUPPORT,"3,822.24",LD LTS 65+,SUPPORTED LIVING,2103493187,1104183
07.06.2022,ADULT SOCIAL CARE,CHOICE SUPPORT,"3,998.88",LD LTS 65+,SUPPORTED LIVING,2103493457,1104183
07.06.2022,ADULT SOCIAL CARE,CHOICE SUPPORT,"4,000.88",LD LTS 65+,SUPPORTED LIVING,2103493412,1104183
07.06.2022,ADULT SOCIAL CARE,CHOICE SUPPORT,"4,015.60",LD LTS 65+,SUPPORTED LIVING,2103492722,1104183
07.06.2022,ADULT SOCIAL CARE,CHOICE SUPPORT,"4,297.92",LD LTS 65+,SUPPORTED LIVING,2103493456,1104183
07.06.2022,ADULT SOCIAL CARE,CHOICE SUPPORT,"4,297.92",LD LTS 65+,SUPPORTED LIVING,2103493465,1104183
07.06.2022,ADULT SOCIAL CARE,CHOICE SUPPORT,"4,327.40",LD LTS 65+,SUPPORTED LIVING,2103492770,1104183
07.06.2022,ADULT SOCIAL CARE,CHOICE SUPPORT,"5,353.80",LD LTS 65+,SUPPORTED LIVING,2103492410,1104183
07.06.2022,ADULT SOCIAL CARE,CHOICE SUPPORT,"7,245.76",LD LTS 65+,SUPPORTED LIVING,2103493461,1104183
07.06.2022,ADULT SOCIAL CARE,PLUS SERVICES,"3,312.96",LD LTS 65+,SUPPORTED LIVING,2103492663,1000021241
07.06.2022,ADULT SOCIAL CARE,PLUS SERVICES,"5,028.68",LD LTS 65+,SUPPORTED LIVING,2103493489,1000021241
07.06.2022,ADULT SOCIAL CARE,PLUS SERVICES,"6,364.96",LD LTS 65+,SUPPORTED LIVING,2103492809,1000021241
07.06.2022,ADULT SOCIAL CARE,PLUS SERVICES,"7,483.16",LD LTS 65+,SUPPORTED LIVING,2103492520,1000021241
07.06.2022,ADULT SOCIAL CARE,BRANDON TRUST,"3,952.00",LD LTS 65+,SUPPORTED LIVING,2103492775,1000042417
07.06.2022,ADULT SOCIAL CARE,BRANDON TRUST,"4,199.72",LD LTS 65+,SUPPORTED LIVING,2103492407,1000042417
07.06.2022,ADULT SOCIAL CARE,BRANDON TRUST,"4,199.72",LD LTS 65+,SUPPORTED LIVING,2103492566,1000042417
07.06.2022,ADULT SOCIAL CARE,BRANDON TRUST,"4,199.72",LD LTS 65+,SUPPORTED LIVING,2103492899,1000042417
07.06.2022,ADULT SOCIAL CARE,BRANDON TRUST,"4,579.80",LD LTS 65+,SUPPORTED LIVING,2103493073,1000042417
07.06.2022,ADULT SOCIAL CARE,BRANDON TRUST,"5,522.44",LD LTS 65+,SUPPORTED LIVING,2103493468,1000042417
07.06.2022,ADULT SOCIAL CARE,KEEVA CARE LIMITED,"4,440.64",LD LTS 65+,SUPPORTED LIVING,2103492989,1000086100
07.06.2022,ADULT SOCIAL CARE,HC-ONE LTD (TOWER BRIDGE CARE HOME),-253.29,MEM LTS 18-64,"MAND STATUTORY CHARGES, NURSING",2103492595,1000067670
07.06.2022,ADULT SOCIAL CARE,LOVE WALK HOSTEL FOR DISABLED,-412.68,MEM LTS 18-64,"MAND STATUTORY CHARGES, RESIDENTIAL",2103492829,1008978
07.06.2022,ADULT SOCIAL CARE,STEPPING STONES RESETTLEMENT UNIT,-425.6,MEM LTS 18-64,"MAND STATUTORY CHARGES, RESIDENTIAL",2103492952,1000032806
07.06.2022,ADULT SOCIAL CARE,GATE HOUSE,-609.44,MEM LTS 18-64,"MAND STATUTORY CHARGES, RESIDENTIAL",2103493245,1000079839
07.06.2022,ADULT SOCIAL CARE,CHARLTON PARK (FOUR SEASONS),"2,675.24",MEM LTS 18-64,NURSING PLACEMENTS FEES,2103492707,11180076
07.06.2022,ADULT SOCIAL CARE,HIGH VIEW CARE SERVICES LTD,"7,651.80",MEM LTS 18-64,NURSING PLACEMENTS FEES,2103492359,1000053562
07.06.2022,ADULT SOCIAL CARE,HC-ONE LTD (TOWER BRIDGE CARE HOME),"2,071.43",MEM LTS 18-64,NURSING PLACEMENTS FEES,2103492594,1000067670
07.06.2022,ADULT SOCIAL CARE,HC-ONE LTD (TOWER BRIDGE CARE HOME),"2,860.00",MEM LTS 18-64,NURSING PLACEMENTS FEES,2103492308,1000067670
07.06.2022,ADULT SOCIAL CARE,HC-ONE LTD (TOWER BRIDGE CARE HOME),"2,900.00",MEM LTS 18-64,NURSING PLACEMENTS FEES,2103492709,1000067670
07.06.2022,ADULT SOCIAL CARE,REDACTED PERSONAL DATA,"6,941.64",MEM LTS 18-64,NURSING PLACEMENTS FEES,REDACTED,REDACTED
07.06.2022,ADULT SOCIAL CARE,LOVE WALK HOSTEL FOR DISABLED,"3,558.80",MEM LTS 18-64,RESIDENTIAL CARE,2103492830,1008978
07.06.2022,ADULT SOCIAL CARE,PENERLEY LODGE LTD,"3,296.00",MEM LTS 18-64,RESIDENTIAL CARE,2103493328,1958913
07.06.2022,ADULT SOCIAL CARE,STEPPING STONES RESETTLEMENT UNIT,"5,343.40",MEM LTS 18-64,RESIDENTIAL CARE,2103492953,1000032806
07.06.2022,ADULT SOCIAL CARE,MEDICREST LTD (ACORN LODGE),"2,652.00",MEM LTS 18-64,RESIDENTIAL CARE,2103493238,1000037363
07.06.2022,ADULT SOCIAL CARE,LA ROSA 2,"4,072.12",MEM LTS 18-64,RESIDENTIAL CARE,2103492349,1000079677
07.06.2022,ADULT SOCIAL CARE,GATE HOUSE,"3,230.60",MEM LTS 18-64,RESIDENTIAL CARE,2103493246,1000079839
07.06.2022,ADULT SOCIAL CARE,THE REGARD PARTNERSHIP,"5,825.20",MEM LTS 18-64,SUPPORTED LIVING,2103493231,1823223
07.06.2022,ADULT SOCIAL CARE,LONDON RESIDENTIAL HEALTHCARE LTD,-296.64,MEM LTS 65+,INCOME FOR THIRD PARTIES/AGENCY ARRANGEMENTS,2103493229,1000030895
07.06.2022,ADULT SOCIAL CARE,LONDON RESIDENTIAL HEALTHCARE LTD,-631.4,MEM LTS 65+,"MAND STATUTORY CHARGES, NURSING",2103493230,1000030895
07.06.2022,ADULT SOCIAL CARE,QUEENS OAK CARE CENTRE,"-1,956.86",MEM LTS 65+,"MAND STATUTORY CHARGES, NURSING",2103492445,1000049621
07.06.2022,ADULT SOCIAL CARE,QUEENS OAK CARE CENTRE,-522.8,MEM LTS 65+,"MAND STATUTORY CHARGES, NURSING",2103492785,1000049621
07.06.2022,ADULT SOCIAL CARE,HC-ONE LTD (TOWER BRIDGE CARE HOME),-813,MEM LTS 65+,"MAND STATUTORY CHARGES, NURSING",2103493047,1000067670
07.06.2022,ADULT SOCIAL CARE,HC-ONE LTD (TOWER BRIDGE CARE HOME),-762.24,MEM LTS 65+,"MAND STATUTORY CHARGES, NURSING",2103492718,1000067670
07.06.2022,ADULT SOCIAL CARE,HC-ONE LTD (TOWER BRIDGE CARE HOME),-661.08,MEM LTS 65+,"MAND STATUTORY CHARGES, NURSING",2103493172,1000067670
07.06.2022,ADULT SOCIAL CARE,HC-ONE LTD (TOWER BRIDGE CARE HOME),-608.8,MEM LTS 65+,"MAND STATUTORY CHARGES, NURSING",2103492558,1000067670
07.06.2022,ADULT SOCIAL CARE,HC-ONE LTD (TOWER BRIDGE CARE HOME),-608.8,MEM LTS 65+,"MAND STATUTORY CHARGES, NURSING",2103492685,1000067670
07.06.2022,ADULT SOCIAL CARE,HC-ONE LTD (TOWER BRIDGE CARE HOME),-608.8,MEM LTS 65+,"MAND STATUTORY CHARGES, NURSING",2103493452,1000067670
07.06.2022,ADULT SOCIAL CARE,HC-ONE LTD (TOWER BRIDGE CARE HOME),-522.8,MEM LTS 65+,"MAND STATUTORY CHARGES, NURSING",2103492779,1000067670
07.06.2022,ADULT SOCIAL CARE,HC-ONE LTD (TOWER BRIDGE CARE HOME),"1,674.20",MEM LTS 65+,"MAND STATUTORY CHARGES, NURSING",2103492587,1000067670
07.06.2022,ADULT SOCIAL CARE,SOUTH EAST LONDON BAPTIST HOME,"-1,554.40",MEM LTS 65+,"MAND STATUTORY CHARGES, RESIDENTIAL",2103492503,1670766
07.06.2022,ADULT SOCIAL CARE,AVANTE PARTNERSHIP (WEYBOURNE),"-1,085.16",MEM LTS 65+,"MAND STATUTORY CHARGES, RESIDENTIAL",2103492384,11130185
07.06.2022,ADULT SOCIAL CARE,YARA ENTERPRISES LTD,-858.36,MEM LTS 65+,"MAND STATUTORY CHARGES, RESIDENTIAL",2103492702,11192021
07.06.2022,ADULT SOCIAL CARE,ANCHOR TRUST,-677.08,MEM LTS 65+,"MAND STATUTORY CHARGES, RESIDENTIAL",2103492601,11257534
07.06.2022,ADULT SOCIAL CARE,ANCHOR TRUST,-677.08,MEM LTS 65+,"MAND STATUTORY CHARGES, RESIDENTIAL",2103492746,11257534
07.06.2022,ADULT SOCIAL CARE,ANCHOR TRUST,-664.09,MEM LTS 65+,"MAND STATUTORY CHARGES, RESIDENTIAL",2103492415,11257534
07.06.2022,ADULT SOCIAL CARE,PORTELET CARE LTD,-608.8,MEM LTS 65+,"MAND STATUTORY CHARGES, RESIDENTIAL",2103493340,1000037449
07.06.2022,ADULT SOCIAL CARE,NORBURY HALL RESIDENTIAL CARE HOME,"2,391.42",MEM LTS 65+,"MAND STATUTORY CHARGES, RESIDENTIAL",2103492937,1000060513
07.06.2022,ADULT SOCIAL CARE,HC-ONE LTD (TOWER BRIDGE CARE HOME),-608.8,MEM LTS 65+,"MAND STATUTORY CHARGES, RESIDENTIAL",2103493241,1000067670
07.06.2022,ADULT SOCIAL CARE,FOXLEY LODGE CARE HOME,-591.08,MEM LTS 65+,"MAND STATUTORY CHARGES, RESIDENTIAL",2103493290,1000083209
07.06.2022,ADULT SOCIAL CARE,GREENSLEEVES HOMES TRUST,-878,MEM LTS 65+,"MAND STATUTORY CHARGES, RESIDENTIAL",2103493388,1000084160
07.06.2022,ADULT SOCIAL CARE,MANLEY COURT NURSING HOME (BUPA),"2,907.88",MEM LTS 65+,NURSING PLACEMENTS FEES,2103492810,11101434
07.06.2022,ADULT SOCIAL CARE,FOUR SEASONS (UPLANDS CARE HOME),"3,295.20",MEM LTS 65+,NURSING PLACEMENTS FEES,2103493159,11290299
07.06.2022,ADULT SOCIAL CARE,LONDON RESIDENTIAL HEALTHCARE LTD,"2,461.68",MEM LTS 65+,NURSING PLACEMENTS FEES,2103493227,1000030895
07.06.2022,ADULT SOCIAL CARE,PEARTREE CARE CENTRE (EXCELCARE),"3,334.88",MEM LTS 65+,NURSING PLACEMENTS FEES,2103492985,1000048698
07.06.2022,ADULT SOCIAL CARE,PEARTREE CARE CENTRE (EXCELCARE),"4,376.91",MEM LTS 65+,NURSING PLACEMENTS FEES,2103493153,1000048698
07.06.2022,ADULT SOCIAL CARE,QUEENS OAK CARE CENTRE,"3,334.88",MEM LTS 65+,NURSING PLACEMENTS FEES,2103492784,1000049621
07.06.2022,ADULT SOCIAL CARE,QUEENS OAK CARE CENTRE,"3,334.88",MEM LTS 65+,NURSING PLACEMENTS FEES,2103492994,1000049621
07.06.2022,ADULT SOCIAL CARE,QUEENS OAK CARE CENTRE,"3,334.88",MEM LTS 65+,NURSING PLACEMENTS FEES,2103493213,1000049621
07.06.2022,ADULT SOCIAL CARE,QUEENS OAK CARE CENTRE,"10,690.21",MEM LTS 65+,NURSING PLACEMENTS FEES,2103492444,1000049621
07.06.2022,ADULT SOCIAL CARE,ALBANY LODGE,"3,125.84",MEM LTS 65+,NURSING PLACEMENTS FEES,2103492734,1000060280
07.06.2022,ADULT SOCIAL CARE,GOLD CARE HOMES (BAUGH HOUSE),"3,740.84",MEM LTS 65+,NURSING PLACEMENTS FEES,2103492865,1000067495
07.06.2022,ADULT SOCIAL CARE,GOLD CARE HOMES (BAUGH HOUSE),"3,740.84",MEM LTS 65+,NURSING PLACEMENTS FEES,2103492990,1000067495
07.06.2022,ADULT SOCIAL CARE,HC-ONE LTD (TOWER BRIDGE CARE HOME),"2,860.00",MEM LTS 65+,NURSING PLACEMENTS FEES,2103492778,1000067670
07.06.2022,ADULT SOCIAL CARE,HC-ONE LTD (TOWER BRIDGE CARE HOME),"2,860.00",MEM LTS 65+,NURSING PLACEMENTS FEES,2103492843,1000067670
07.06.2022,ADULT SOCIAL CARE,HC-ONE LTD (TOWER BRIDGE CARE HOME),"2,861.60",MEM LTS 65+,NURSING PLACEMENTS FEES,2103492796,1000067670
07.06.2022,ADULT SOCIAL CARE,HC-ONE LTD (TOWER BRIDGE CARE HOME),"2,900.00",MEM LTS 65+,NURSING PLACEMENTS FEES,2103492557,1000067670
07.06.2022,ADULT SOCIAL CARE,HC-ONE LTD (TOWER BRIDGE CARE HOME),"2,900.00",MEM LTS 65+,NURSING PLACEMENTS FEES,2103492560,1000067670
07.06.2022,ADULT SOCIAL CARE,HC-ONE LTD (TOWER BRIDGE CARE HOME),"2,900.00",MEM LTS 65+,NURSING PLACEMENTS FEES,2103492586,1000067670
07.06.2022,ADULT SOCIAL CARE,HC-ONE LTD (TOWER BRIDGE CARE HOME),"2,900.00",MEM LTS 65+,NURSING PLACEMENTS FEES,2103492684,1000067670
07.06.2022,ADULT SOCIAL CARE,HC-ONE LTD (TOWER BRIDGE CARE HOME),"2,900.00",MEM LTS 65+,NURSING PLACEMENTS FEES,2103492708,1000067670
07.06.2022,ADULT SOCIAL CARE,HC-ONE LTD (TOWER BRIDGE CARE HOME),"2,900.00",MEM LTS 65+,NURSING PLACEMENTS FEES,2103492717,1000067670
07.06.2022,ADULT SOCIAL CARE,HC-ONE LTD (TOWER BRIDGE CARE HOME),"2,900.00",MEM LTS 65+,NURSING PLACEMENTS FEES,2103493046,1000067670
07.06.2022,ADULT SOCIAL CARE,HC-ONE LTD (TOWER BRIDGE CARE HOME),"2,900.00",MEM LTS 65+,NURSING PLACEMENTS FEES,2103493128,1000067670
07.06.2022,ADULT SOCIAL CARE,HC-ONE LTD (TOWER BRIDGE CARE HOME),"2,900.00",MEM LTS 65+,NURSING PLACEMENTS FEES,2103493171,1000067670
07.06.2022,ADULT SOCIAL CARE,HC-ONE LTD (TOWER BRIDGE CARE HOME),"2,900.00",MEM LTS 65+,NURSING PLACEMENTS FEES,2103493351,1000067670
07.06.2022,ADULT SOCIAL CARE,HC-ONE LTD (TOWER BRIDGE CARE HOME),"2,900.00",MEM LTS 65+,NURSING PLACEMENTS FEES,2103493451,1000067670
07.06.2022,ADULT SOCIAL CARE,HC-ONE LTD (ALEXANDER CARE CENTRE),"3,023.28",MEM LTS 65+,NURSING PLACEMENTS FEES,2103493495,1000068551
07.06.2022,ADULT SOCIAL CARE,ABBEY HEALTHCARE GROUP,"2,742.12",MEM LTS 65+,NURSING PLACEMENTS FEES,2103492863,1000072304
07.06.2022,ADULT SOCIAL CARE,GEORGE POTTER CARE HOME LTD,"2,920.84",MEM LTS 65+,NURSING PLACEMENTS FEES,2103492529,1000074087
07.06.2022,ADULT SOCIAL CARE,BEECHCROFT CARE HOME,"2,480.80",MEM LTS 65+,NURSING PLACEMENTS FEES,2103493160,1000077126
07.06.2022,ADULT SOCIAL CARE,ST MARY'S CARE HOMES,"2,890.32",MEM LTS 65+,NURSING PLACEMENTS FEES,2103493165,1000079984
07.06.2022,ADULT SOCIAL CARE,LORVEN HOUSING LTD,"4,200.00",MEM LTS 65+,NURSING PLACEMENTS FEES,2103492491,1000081693
07.06.2022,ADULT SOCIAL CARE,BROOK HOUSE CARE CENTRE,"2,747.60",MEM LTS 65+,NURSING PLACEMENTS FEES,2103493496,1000081938
07.06.2022,ADULT SOCIAL CARE,AVERY HEALTHCARE GROUP,"2,822.72",MEM LTS 65+,NURSING PLACEMENTS FEES,2103493268,1000082342
07.06.2022,ADULT SOCIAL CARE,NEW CENTURY CARE (COLCHESTER),"3,345.92",MEM LTS 65+,NURSING PLACEMENTS FEES,2103492866,1000084246
07.06.2022,ADULT SOCIAL CARE,THE CRAVEN NURSING  HOME,"3,657.44",MEM LTS 65+,NURSING PLACEMENTS FEES,2103493166,1000085355
07.06.2022,ADULT SOCIAL CARE,BARCHESTER HEALTHCARE HOMES LTD,"4,664.16",MEM LTS 65+,NURSING PLACEMENTS FEES,2103493164,1000087182
07.06.2022,ADULT SOCIAL CARE,HC-ONE LTD (TOWER BRIDGE CARE HOME),360,MEM LTS 65+,OTHER PAYMENTS FOR CLIENTS,2103492307,1000067670
07.06.2022,ADULT SOCIAL CARE,SOUTH EAST LONDON BAPTIST HOME,"2,484.56",MEM LTS 65+,RESIDENTIAL CARE,2103492502,1670766
07.06.2022,ADULT SOCIAL CARE,SOUTH EAST LONDON BAPTIST HOME,"4,510.00",MEM LTS 65+,RESIDENTIAL CARE,2103492545,1670766
07.06.2022,ADULT SOCIAL CARE,LITTLE SISTERS OF THE POOR,"2,602.92",MEM LTS 65+,RESIDENTIAL CARE,2103492730,1860341
07.06.2022,ADULT SOCIAL CARE,AVANTE PARTNERSHIP (WEYBOURNE),"2,521.40",MEM LTS 65+,RESIDENTIAL CARE,2103492385,11130185
07.06.2022,ADULT SOCIAL CARE,YARA ENTERPRISES LTD,"2,554.56",MEM LTS 65+,RESIDENTIAL CARE,2103492701,11192021
07.06.2022,ADULT SOCIAL CARE,ANCHOR TRUST,"-4,962.30",MEM LTS 65+,RESIDENTIAL CARE,2103492641,11257534
07.06.2022,ADULT SOCIAL CARE,ANCHOR TRUST,-275.73,MEM LTS 65+,RESIDENTIAL CARE,2103492357,11257534
07.06.2022,ADULT SOCIAL CARE,ANCHOR TRUST,397.27,MEM LTS 65+,RESIDENTIAL CARE,2103493369,11257534
07.06.2022,ADULT SOCIAL CARE,ANCHOR TRUST,"2,241.04",MEM LTS 65+,RESIDENTIAL CARE,2103492316,11257534
07.06.2022,ADULT SOCIAL CARE,ANCHOR TRUST,"2,241.04",MEM LTS 65+,RESIDENTIAL CARE,2103492406,11257534
07.06.2022,ADULT SOCIAL CARE,ANCHOR TRUST,"2,241.04",MEM LTS 65+,RESIDENTIAL CARE,2103492414,11257534
07.06.2022,ADULT SOCIAL CARE,ANCHOR TRUST,"2,241.04",MEM LTS 65+,RESIDENTIAL CARE,2103492427,11257534
07.06.2022,ADULT SOCIAL CARE,ANCHOR TRUST,"2,241.04",MEM LTS 65+,RESIDENTIAL CARE,2103492436,11257534
07.06.2022,ADULT SOCIAL CARE,ANCHOR TRUST,"2,241.04",MEM LTS 65+,RESIDENTIAL CARE,2103492442,11257534
07.06.2022,ADULT SOCIAL CARE,ANCHOR TRUST,"2,241.04",MEM LTS 65+,RESIDENTIAL CARE,2103492482,11257534
07.06.2022,ADULT SOCIAL CARE,ANCHOR TRUST,"2,241.04",MEM LTS 65+,RESIDENTIAL CARE,2103492483,11257534
07.06.2022,ADULT SOCIAL CARE,ANCHOR TRUST,"2,241.04",MEM LTS 65+,RESIDENTIAL CARE,2103492600,11257534
07.06.2022,ADULT SOCIAL CARE,ANCHOR TRUST,"2,241.04",MEM LTS 65+,RESIDENTIAL CARE,2103492745,11257534
07.06.2022,ADULT SOCIAL CARE,ANCHOR TRUST,"2,241.04",MEM LTS 65+,RESIDENTIAL CARE,2103492826,11257534
07.06.2022,ADULT SOCIAL CARE,ANCHOR TRUST,"2,241.04",MEM LTS 65+,RESIDENTIAL CARE,2103492884,11257534
07.06.2022,ADULT SOCIAL CARE,ANCHOR TRUST,"2,241.04",MEM LTS 65+,RESIDENTIAL CARE,2103492940,11257534
07.06.2022,ADULT SOCIAL CARE,ANCHOR TRUST,"2,241.04",MEM LTS 65+,RESIDENTIAL CARE,2103492944,11257534
07.06.2022,ADULT SOCIAL CARE,ANCHOR TRUST,"2,241.04",MEM LTS 65+,RESIDENTIAL CARE,2103493027,11257534
07.06.2022,ADULT SOCIAL CARE,ANCHOR TRUST,"2,241.04",MEM LTS 65+,RESIDENTIAL CARE,2103493092,11257534
07.06.2022,ADULT SOCIAL CARE,ANCHOR TRUST,"2,241.04",MEM LTS 65+,RESIDENTIAL CARE,2103493221,11257534
07.06.2022,ADULT SOCIAL CARE,ANCHOR TRUST,"2,241.04",MEM LTS 65+,RESIDENTIAL CARE,2103493285,11257534
07.06.2022,ADULT SOCIAL CARE,ANCHOR TRUST,"2,241.04",MEM LTS 65+,RESIDENTIAL CARE,2103493397,11257534
07.06.2022,ADULT SOCIAL CARE,ANCHOR TRUST,"2,656.26",MEM LTS 65+,RESIDENTIAL CARE,2103492535,11257534
07.06.2022,ADULT SOCIAL CARE,ANCHOR TRUST,"2,656.26",MEM LTS 65+,RESIDENTIAL CARE,2103492638,11257534
07.06.2022,ADULT SOCIAL CARE,ANCHOR TRUST,"2,656.26",MEM LTS 65+,RESIDENTIAL CARE,2103493275,11257534
07.06.2022,ADULT SOCIAL CARE,ANCHOR TRUST,"2,656.26",MEM LTS 65+,RESIDENTIAL CARE,2103493373,11257534
07.06.2022,ADULT SOCIAL CARE,ANCHOR TRUST,"2,725.07",MEM LTS 65+,RESIDENTIAL CARE,2103493023,11257534
07.06.2022,ADULT SOCIAL CARE,ANCHOR TRUST,"2,746.87",MEM LTS 65+,RESIDENTIAL CARE,2103492768,11257534
07.06.2022,ADULT SOCIAL CARE,ANCHOR TRUST,"2,746.87",MEM LTS 65+,RESIDENTIAL CARE,2103493091,11257534
07.06.2022,ADULT SOCIAL CARE,FOUR SEASONS (UPLANDS CARE HOME),"2,398.76",MEM LTS 65+,RESIDENTIAL CARE,2103492298,11290299
07.06.2022,ADULT SOCIAL CARE,VOYAGE LTD (EVESLEIGH KENT),"4,998.60",MEM LTS 65+,RESIDENTIAL CARE,2103492870,1000041320
07.06.2022,ADULT SOCIAL CARE,QUEENS OAK CARE CENTRE,"3,259.52",MEM LTS 65+,RESIDENTIAL CARE,2103492999,1000049621
07.06.2022,ADULT SOCIAL CARE,NORBURY HALL RESIDENTIAL CARE HOME,"2,855.84",MEM LTS 65+,RESIDENTIAL CARE,2103492936,1000060513
07.06.2022,ADULT SOCIAL CARE,HC-ONE LTD (TOWER BRIDGE CARE HOME),"2,321.08",MEM LTS 65+,RESIDENTIAL CARE,2103492313,1000067670
07.06.2022,ADULT SOCIAL CARE,HC-ONE LTD (TOWER BRIDGE CARE HOME),"2,670.84",MEM LTS 65+,RESIDENTIAL CARE,2103492610,1000067670
07.06.2022,ADULT SOCIAL CARE,MINSA CARE LTD,"2,799.84",MEM LTS 65+,RESIDENTIAL CARE,2103492681,1000075831
07.06.2022,ADULT SOCIAL CARE,WATERFIELD SUPPORTED HOMES LTD,"3,514.88",MEM LTS 65+,RESIDENTIAL CARE,2103492995,1000076773
07.06.2022,ADULT SOCIAL CARE,SIGNATURE HEALTH AND LIVING LTD,"4,522.16",MEM LTS 65+,RESIDENTIAL CARE,2103493431,1000077751
07.06.2022,ADULT SOCIAL CARE,HC-ONE OVAL LTD (SEABROOKE MANOR),"2,621.16",MEM LTS 65+,RESIDENTIAL CARE,2103493259,1000081740
07.06.2022,ADULT SOCIAL CARE,FOXLEY LODGE CARE HOME,"2,584.48",MEM LTS 65+,RESIDENTIAL CARE,2103493289,1000083209
07.06.2022,ADULT SOCIAL CARE,FOXLEY LODGE CARE HOME,"2,744.96",MEM LTS 65+,RESIDENTIAL CARE,2103492803,1000083209
07.06.2022,ADULT SOCIAL CARE,FOXLEY LODGE CARE HOME,"2,870.00",MEM LTS 65+,RESIDENTIAL CARE,2103493260,1000083209
07.06.2022,ADULT SOCIAL CARE,GREAT OAK TREE HEALTHCARE,"2,744.96",MEM LTS 65+,RESIDENTIAL CARE,2103493488,1000086375
07.06.2022,ADULT SOCIAL CARE,LONDON RESIDENTIAL HEALTHCARE LTD,296.64,MEM LTS 65+,THIRD PARTY TOP UP CARE,2103493228,1000030895
07.06.2022,ADULT SOCIAL CARE,COLLINGWOOD COURT (BUPA CARE HOMES),-608.8,MH LTS 18-64,"MAND STATUTORY CHARGES, NURSING",2103493115,11042563
07.06.2022,ADULT SOCIAL CARE,HC-ONE LTD (TOWER BRIDGE CARE HOME),"2,860.00",MH LTS 18-64,NURSING PLACEMENTS FEES,2103492856,1000067670
07.06.2022,ADULT SOCIAL CARE,HIGH VIEW CARE SERVICES LTD,"7,114.16",MH LTS 18-64,RESIDENTIAL CARE,2103492960,1000065920
07.06.2022,ADULT SOCIAL CARE,SUNRISE REHABILITATION CENTRE,"6,000.00",MH LTS 18-64,SUPPORTED LIVING,2103492715,1000086998
07.06.2022,ADULT SOCIAL CARE,HOMEFIELD NURSING HOME,-608.8,MH LTS 65+,"MAND STATUTORY CHARGES, NURSING",2103493362,1000036909
07.06.2022,ADULT SOCIAL CARE,COLLINGWOOD COURT (BUPA CARE HOMES),"2,982.76",MH LTS 65+,NURSING PLACEMENTS FEES,2103493116,11042563
07.06.2022,ADULT SOCIAL CARE,FOUR SEASONS (UPLANDS CARE HOME),"3,445.96",MH LTS 65+,NURSING PLACEMENTS FEES,2103493158,11290299
07.06.2022,ADULT SOCIAL CARE,HOMEFIELD NURSING HOME,"2,789.92",MH LTS 65+,NURSING PLACEMENTS FEES,2103493363,1000036909
07.06.2022,ADULT SOCIAL CARE,NELLSAR LTD,"3,661.36",MH LTS 65+,NURSING PLACEMENTS FEES,2103493486,1000053219
07.06.2022,ADULT SOCIAL CARE,HC-ONE LTD (TOWER BRIDGE CARE HOME),"2,900.00",MH LTS 65+,NURSING PLACEMENTS FEES,2103492710,1000067670
07.06.2022,ADULT SOCIAL CARE,HC-ONE LTD (TOWER BRIDGE CARE HOME),"4,085.71",MH LTS 65+,NURSING PLACEMENTS FEES,2103492647,1000067670
07.06.2022,ADULT SOCIAL CARE,HOMEFIELD NURSING HOME,651.6,MH LTS 65+,OTHER PAYMENTS FOR CLIENTS,2103493361,1000036909
07.06.2022,ADULT SOCIAL CARE,PENERLEY LODGE LTD,"3,378.40",MH LTS 65+,RESIDENTIAL CARE,2103493277,1958913
07.06.2022,ADULT SOCIAL CARE,ANCHOR TRUST,"2,241.04",MH LTS 65+,RESIDENTIAL CARE,2103492749,11257534
07.06.2022,ADULT SOCIAL CARE,ANCHOR TRUST,"2,241.04",MH LTS 65+,RESIDENTIAL CARE,2103493050,11257534
07.06.2022,ADULT SOCIAL CARE,ANCHOR TRUST,"2,241.04",MH LTS 65+,RESIDENTIAL CARE,2103493193,11257534
07.06.2022,ADULT SOCIAL CARE,ANCHOR TRUST,"2,241.04",MH LTS 65+,RESIDENTIAL CARE,2103493454,11257534
07.06.2022,ADULT SOCIAL CARE,ANCHOR TRUST,"2,746.83",MH LTS 65+,RESIDENTIAL CARE,2103493130,11257534
07.06.2022,ADULT SOCIAL CARE,PORTELET CARE LTD,"2,552.08",MH LTS 65+,RESIDENTIAL CARE,2103493339,1000037449
07.06.2022,ADULT SOCIAL CARE,BRITISH GAS,"1,712.74",MH PREMISES COSTS,ELECTRICITY,5902527694,1000054825
07.06.2022,ADULT SOCIAL CARE,MARTIN VITERA LTD,323.46,ORIENT ST � RESPITE,PREMISES CLEANING,5902527810,1560597
07.06.2022,ADULT SOCIAL CARE,HC-ONE LTD (TOWER BRIDGE CARE HOME),"3,736.00",PHB- SOUTHWARK CCG,RECOVERABLE COSTS INCL. HEALTH,2103492719,1000067670
07.06.2022,ADULT SOCIAL CARE,SUPREME CARE SERVICES LTD,449.5,PHY LTS 18-64,HOMECARE - C&V,2103492158,1000059416
07.06.2022,ADULT SOCIAL CARE,SUPREME CARE SERVICES LTD,"1,757.55",PHY LTS 18-64,HOMECARE - C&V,2103492160,1000059416
07.06.2022,ADULT SOCIAL CARE,SUPREME CARE SERVICES LTD,"2,625.08",PHY LTS 18-64,HOMECARE - C&V,2103492168,1000059416
07.06.2022,ADULT SOCIAL CARE,BRITISH HOME & HOSPITAL FOR INCURABLES,-409,PHY LTS 18-64,"MAND STATUTORY CHARGES, NURSING",2103492744,1001606
07.06.2022,ADULT SOCIAL CARE,MANLEY COURT NURSING HOME (BUPA),-321.8,PHY LTS 18-64,"MAND STATUTORY CHARGES, NURSING",2103492793,11101434
07.06.2022,ADULT SOCIAL CARE,PRIORY,-537.44,PHY LTS 18-64,"MAND STATUTORY CHARGES, NURSING",2103493253,1000015902
07.06.2022,ADULT SOCIAL CARE,HAVELOCK COURT (BUPA CARE),"-7,632.14",PHY LTS 18-64,"MAND STATUTORY CHARGES, NURSING",2103493317,1000028902
07.06.2022,ADULT SOCIAL CARE,DISABILITIES TRUST,-352.72,PHY LTS 18-64,"MAND STATUTORY CHARGES, NURSING",2103492980,1000043358
07.06.2022,ADULT SOCIAL CARE,ALBANY LODGE,"5,281.01",PHY LTS 18-64,"MAND STATUTORY CHARGES, NURSING",2103492950,1000060280
07.06.2022,ADULT SOCIAL CARE,BLACKBERRY HILL LIMITED,-356.8,PHY LTS 18-64,"MAND STATUTORY CHARGES, NURSING",2103492928,1000062429
07.06.2022,ADULT SOCIAL CARE,GOLD CARE HOMES (BAUGH HOUSE),-400.48,PHY LTS 18-64,"MAND STATUTORY CHARGES, NURSING",2103492787,1000067495
07.06.2022,ADULT SOCIAL CARE,HC-ONE LTD (TOWER BRIDGE CARE HOME),-280.64,PHY LTS 18-64,"MAND STATUTORY CHARGES, NURSING",2103493122,1000067670
07.06.2022,ADULT SOCIAL CARE,CHISWICK NURSING CENTRE,-602.88,PHY LTS 18-64,"MAND STATUTORY CHARGES, NURSING",2103493378,1000084686
07.06.2022,ADULT SOCIAL CARE,REDACTED PERSONAL DATA,-425.64,PHY LTS 18-64,"MAND STATUTORY CHARGES, NURSING",REDACTED,REDACTED
07.06.2022,ADULT SOCIAL CARE,LOVE WALK HOSTEL FOR DISABLED,-425.64,PHY LTS 18-64,"MAND STATUTORY CHARGES, RESIDENTIAL",2103493335,1008978
07.06.2022,ADULT SOCIAL CARE,LOVE WALK HOSTEL FOR DISABLED,-356.8,PHY LTS 18-64,"MAND STATUTORY CHARGES, RESIDENTIAL",2103493398,1008978
07.06.2022,ADULT SOCIAL CARE,LOVE WALK HOSTEL FOR DISABLED,-356.8,PHY LTS 18-64,"MAND STATUTORY CHARGES, RESIDENTIAL",2103493421,1008978
07.06.2022,ADULT SOCIAL CARE,LEONARD CHESHIRE (CHIPSTEAD LAKE),-424.52,PHY LTS 18-64,"MAND STATUTORY CHARGES, RESIDENTIAL",2103493308,1000049764
07.06.2022,ADULT SOCIAL CARE,LEONARD CHESHIRE DISABILITY,-448.36,PHY LTS 18-64,"MAND STATUTORY CHARGES, RESIDENTIAL",2103492368,1000052504
07.06.2022,ADULT SOCIAL CARE,LEONARD CHESHIRE DISABILITY,-419.2,PHY LTS 18-64,"MAND STATUTORY CHARGES, RESIDENTIAL",2103492827,1000052504
07.06.2022,ADULT SOCIAL CARE,SANCTUARY CARE (ASHLEY COOPER HSE),-330,PHY LTS 18-64,"MAND STATUTORY CHARGES, RESIDENTIAL",2103492464,1000053702
07.06.2022,ADULT SOCIAL CARE,THE WHITE HOUSE CARE HOME,-347.8,PHY LTS 18-64,"MAND STATUTORY CHARGES, RESIDENTIAL",2103493075,1000076369
07.06.2022,ADULT SOCIAL CARE,GATE HOUSE,-422.3,PHY LTS 18-64,"MAND STATUTORY CHARGES, RESIDENTIAL",2103492794,1000079839
07.06.2022,ADULT SOCIAL CARE,BRITISH HOME & HOSPITAL FOR INCURABLES,"3,306.84",PHY LTS 18-64,NURSING PLACEMENTS FEES,2103493143,1001606
07.06.2022,ADULT SOCIAL CARE,BRITISH HOME & HOSPITAL FOR INCURABLES,"3,707.76",PHY LTS 18-64,NURSING PLACEMENTS FEES,2103493375,1001606
07.06.2022,ADULT SOCIAL CARE,BRITISH HOME & HOSPITAL FOR INCURABLES,"4,715.08",PHY LTS 18-64,NURSING PLACEMENTS FEES,2103492743,1001606
07.06.2022,ADULT SOCIAL CARE,BRITISH HOME & HOSPITAL FOR INCURABLES,"5,249.20",PHY LTS 18-64,NURSING PLACEMENTS FEES,2103493376,1001606
07.06.2022,ADULT SOCIAL CARE,BRITISH HOME & HOSPITAL FOR INCURABLES,"5,309.60",PHY LTS 18-64,NURSING PLACEMENTS FEES,2103492844,1001606
07.06.2022,ADULT SOCIAL CARE,BRITISH HOME & HOSPITAL FOR INCURABLES,"6,393.60",PHY LTS 18-64,NURSING PLACEMENTS FEES,2103493460,1001606
07.06.2022,ADULT SOCIAL CARE,MORTIMER SOCIETY,"5,748.00",PHY LTS 18-64,NURSING PLACEMENTS FEES,2103493343,1002942
07.06.2022,ADULT SOCIAL CARE,PARKVIEW NURSING HOME,"3,361.12",PHY LTS 18-64,NURSING PLACEMENTS FEES,2103493430,1776618
07.06.2022,ADULT SOCIAL CARE,PARKVIEW NURSING HOME,"3,502.00",PHY LTS 18-64,NURSING PLACEMENTS FEES,2103492429,1776618
07.06.2022,ADULT SOCIAL CARE,MANLEY COURT NURSING HOME (BUPA),"2,985.60",PHY LTS 18-64,NURSING PLACEMENTS FEES,2103492383,11101434
07.06.2022,ADULT SOCIAL CARE,MANLEY COURT NURSING HOME (BUPA),"2,985.60",PHY LTS 18-64,NURSING PLACEMENTS FEES,2103492792,11101434
07.06.2022,ADULT SOCIAL CARE,FOUR SEASONS (UPLANDS CARE HOME),"3,708.00",PHY LTS 18-64,NURSING PLACEMENTS FEES,2103493086,11290299
07.06.2022,ADULT SOCIAL CARE,PRIORY,"6,252.80",PHY LTS 18-64,NURSING PLACEMENTS FEES,2103493252,1000015902
07.06.2022,ADULT SOCIAL CARE,ELMS NURSING HOME,"3,445.96",PHY LTS 18-64,NURSING PLACEMENTS FEES,2103493273,1000026403
07.06.2022,ADULT SOCIAL CARE,HAVELOCK COURT (BUPA CARE),"3,475.68",PHY LTS 18-64,NURSING PLACEMENTS FEES,2103492644,1000028902
07.06.2022,ADULT SOCIAL CARE,HAVELOCK COURT (BUPA CARE),"4,100.32",PHY LTS 18-64,NURSING PLACEMENTS FEES,2103493097,1000028902
07.06.2022,ADULT SOCIAL CARE,DISABILITIES TRUST,"7,331.52",PHY LTS 18-64,NURSING PLACEMENTS FEES,2103492979,1000043358
07.06.2022,ADULT SOCIAL CARE,QUEENS OAK CARE CENTRE,"3,142.40",PHY LTS 18-64,NURSING PLACEMENTS FEES,2103492293,1000049621
07.06.2022,ADULT SOCIAL CARE,ALBANY LODGE,"2,744.24",PHY LTS 18-64,NURSING PLACEMENTS FEES,2103493313,1000060280
07.06.2022,ADULT SOCIAL CARE,BLACKBERRY HILL LIMITED,"5,049.60",PHY LTS 18-64,NURSING PLACEMENTS FEES,2103492929,1000062429
07.06.2022,ADULT SOCIAL CARE,PARK VIEW CARE HOME,"3,249.60",PHY LTS 18-64,NURSING PLACEMENTS FEES,2103492628,1000062452
07.06.2022,ADULT SOCIAL CARE,GOLD CARE HOMES (BAUGH HOUSE),"8,099.20",PHY LTS 18-64,NURSING PLACEMENTS FEES,2103492786,1000067495
07.06.2022,ADULT SOCIAL CARE,HC-ONE LTD (TOWER BRIDGE CARE HOME),"-1,736.43",PHY LTS 18-64,NURSING PLACEMENTS FEES,2103492858,1000067670
07.06.2022,ADULT SOCIAL CARE,HC-ONE LTD (TOWER BRIDGE CARE HOME),"2,860.00",PHY LTS 18-64,NURSING PLACEMENTS FEES,2103493168,1000067670
07.06.2022,ADULT SOCIAL CARE,HC-ONE LTD (TOWER BRIDGE CARE HOME),"2,860.00",PHY LTS 18-64,NURSING PLACEMENTS FEES,2103493446,1000067670
07.06.2022,ADULT SOCIAL CARE,HC-ONE LTD (TOWER BRIDGE CARE HOME),"3,736.00",PHY LTS 18-64,NURSING PLACEMENTS FEES,2103492911,1000067670
07.06.2022,ADULT SOCIAL CARE,BARCHESTER HEALTHCARE LTD,"5,607.84",PHY LTS 18-64,NURSING PLACEMENTS FEES,2103493021,1000072936
07.06.2022,ADULT SOCIAL CARE,BROOK HOUSE CARE HOME,"3,361.12",PHY LTS 18-64,NURSING PLACEMENTS FEES,2103492672,1000079643
07.06.2022,ADULT SOCIAL CARE,ST MARY'S CARE HOMES,"2,688.40",PHY LTS 18-64,NURSING PLACEMENTS FEES,2103493120,1000079984
07.06.2022,ADULT SOCIAL CARE,LORVEN HOUSING LTD,"3,914.00",PHY LTS 18-64,NURSING PLACEMENTS FEES,2103492360,1000081693
07.06.2022,ADULT SOCIAL CARE,BROOK HOUSE CARE CENTRE,"3,876.72",PHY LTS 18-64,NURSING PLACEMENTS FEES,2103493266,1000081938
07.06.2022,ADULT SOCIAL CARE,CHISWICK NURSING CENTRE,"3,774.24",PHY LTS 18-64,NURSING PLACEMENTS FEES,2103493377,1000084686
07.06.2022,ADULT SOCIAL CARE,REDACTED PERSONAL DATA,"9,837.40",PHY LTS 18-64,NURSING PLACEMENTS FEES,REDACTED,REDACTED
07.06.2022,ADULT SOCIAL CARE,DOLPHIN HOMES LTD,268.44,PHY LTS 18-64,OTHER PAYMENTS FOR CLIENTS,2103492335,1000079959
07.06.2022,ADULT SOCIAL CARE,LOVE WALK HOSTEL FOR DISABLED,"3,371.64",PHY LTS 18-64,RESIDENTIAL CARE,2103492998,1008978
07.06.2022,ADULT SOCIAL CARE,LOVE WALK HOSTEL FOR DISABLED,"3,371.64",PHY LTS 18-64,RESIDENTIAL CARE,2103493336,1008978
07.06.2022,ADULT SOCIAL CARE,LOVE WALK HOSTEL FOR DISABLED,"3,462.88",PHY LTS 18-64,RESIDENTIAL CARE,2103492997,1008978
07.06.2022,ADULT SOCIAL CARE,LOVE WALK HOSTEL FOR DISABLED,"3,558.80",PHY LTS 18-64,RESIDENTIAL CARE,2103493220,1008978
07.06.2022,ADULT SOCIAL CARE,LOVE WALK HOSTEL FOR DISABLED,"3,833.52",PHY LTS 18-64,RESIDENTIAL CARE,2103493279,1008978
07.06.2022,ADULT SOCIAL CARE,LOVE WALK HOSTEL FOR DISABLED,"3,833.52",PHY LTS 18-64,RESIDENTIAL CARE,2103493399,1008978
07.06.2022,ADULT SOCIAL CARE,LOVE WALK HOSTEL FOR DISABLED,"3,833.52",PHY LTS 18-64,RESIDENTIAL CARE,2103493422,1008978
07.06.2022,ADULT SOCIAL CARE,OATLANDS CARE LTD,"3,400.00",PHY LTS 18-64,RESIDENTIAL CARE,2103493389,1610496
07.06.2022,ADULT SOCIAL CARE,COLLINGWOOD COURT (BUPA CARE HOMES),"-2,648.57",PHY LTS 18-64,RESIDENTIAL CARE,2103493418,11042563
07.06.2022,ADULT SOCIAL CARE,ANCHOR TRUST,"2,241.04",PHY LTS 18-64,RESIDENTIAL CARE,2103492982,11257534
07.06.2022,ADULT SOCIAL CARE,ANCHOR TRUST,"2,241.04",PHY LTS 18-64,RESIDENTIAL CARE,2103493326,11257534
07.06.2022,ADULT SOCIAL CARE,ANCHOR TRUST,"2,656.26",PHY LTS 18-64,RESIDENTIAL CARE,2103492977,11257534
07.06.2022,ADULT SOCIAL CARE,EQUINOX CARE,"3,465.96",PHY LTS 18-64,RESIDENTIAL CARE,2103493420,11297438
07.06.2022,ADULT SOCIAL CARE,EQUINOX CARE,"3,914.00",PHY LTS 18-64,RESIDENTIAL CARE,2103492763,11297438
07.06.2022,ADULT SOCIAL CARE,EQUINOX CARE,"5,985.00",PHY LTS 18-64,RESIDENTIAL CARE,2103493426,11297438
07.06.2022,ADULT SOCIAL CARE,HAVELOCK COURT (BUPA CARE),"6,768.57",PHY LTS 18-64,RESIDENTIAL CARE,2103492446,1000028902
07.06.2022,ADULT SOCIAL CARE,VOYAGE LTD (EVESLEIGH KENT),"7,267.68",PHY LTS 18-64,RESIDENTIAL CARE,2103492954,1000041320
07.06.2022,ADULT SOCIAL CARE,LEONARD CHESHIRE (CHIPSTEAD LAKE),"8,438.40",PHY LTS 18-64,RESIDENTIAL CARE,2103493309,1000049764
07.06.2022,ADULT SOCIAL CARE,LEONARD CHESHIRE DISABILITY,"10,043.68",PHY LTS 18-64,RESIDENTIAL CARE,2103492828,1000052504
07.06.2022,ADULT SOCIAL CARE,LEONARD CHESHIRE DISABILITY,"10,438.40",PHY LTS 18-64,RESIDENTIAL CARE,2103492369,1000052504
07.06.2022,ADULT SOCIAL CARE,PARKVIEW RESIDENTIAL CARE HOME,"1,818.28",PHY LTS 18-64,RESIDENTIAL CARE,2103492767,1000052646
07.06.2022,ADULT SOCIAL CARE,SANCTUARY CARE (ASHLEY COOPER HSE),"3,898.00",PHY LTS 18-64,RESIDENTIAL CARE,2103492465,1000053702
07.06.2022,ADULT SOCIAL CARE,LEONARD CHESHIRE DISABILITY,"4,495.32",PHY LTS 18-64,RESIDENTIAL CARE,2103493311,1000058141
07.06.2022,ADULT SOCIAL CARE,NORBURY HALL RESIDENTIAL CARE HOME,"2,786.20",PHY LTS 18-64,RESIDENTIAL CARE,2103493310,1000060513
07.06.2022,ADULT SOCIAL CARE,NORBURY HALL RESIDENTIAL CARE HOME,"2,855.84",PHY LTS 18-64,RESIDENTIAL CARE,2103492682,1000060513
07.06.2022,ADULT SOCIAL CARE,HIGH VIEW CARE SERVICES LTD,"5,093.32",PHY LTS 18-64,RESIDENTIAL CARE,2103493366,1000065920
07.06.2022,ADULT SOCIAL CARE,THE ABBEYFIELD SOCIETY,"5,168.96",PHY LTS 18-64,RESIDENTIAL CARE,2103492804,1000073695
07.06.2022,ADULT SOCIAL CARE,THE WHITE HOUSE CARE HOME,"3,343.44",PHY LTS 18-64,RESIDENTIAL CARE,2103493076,1000076369
07.06.2022,ADULT SOCIAL CARE,P.A.K.S,"4,007.80",PHY LTS 18-64,RESIDENTIAL CARE,2103493001,1000078011
07.06.2022,ADULT SOCIAL CARE,GATE HOUSE,"3,400.00",PHY LTS 18-64,RESIDENTIAL CARE,2103492795,1000079839
07.06.2022,ADULT SOCIAL CARE,GATE HOUSE,"3,441.76",PHY LTS 18-64,RESIDENTIAL CARE,2103492603,1000079839
07.06.2022,ADULT SOCIAL CARE,DOLPHIN HOMES LTD,"5,442.08",PHY LTS 18-64,RESIDENTIAL CARE,2103492334,1000079959
07.06.2022,ADULT SOCIAL CARE,JENNIFERS LODGE RESIDENTIAL CARE HOME,"2,349.28",PHY LTS 18-64,RESIDENTIAL CARE,2103492333,1000083478
07.06.2022,ADULT SOCIAL CARE,CARECALL LIMITED,"2,597.28",PHY LTS 18-64,RESIDENTIAL CARE,2103493148,1000085138
07.06.2022,ADULT SOCIAL CARE,HAMBERLEY CARE 1 LIMITED,"3,606.72",PHY LTS 18-64,RESIDENTIAL CARE,2103492559,1000087416
07.06.2022,ADULT SOCIAL CARE,REDACTED PERSONAL DATA,"3,264.00",PHY LTS 18-64,RESIDENTIAL CARE,REDACTED,REDACTED
07.06.2022,ADULT SOCIAL CARE,REDACTED PERSONAL DATA,"10,644.72",PHY LTS 18-64,RESIDENTIAL CARE,REDACTED,REDACTED
07.06.2022,ADULT SOCIAL CARE,THE REGARD PARTNERSHIP,"2,941.36",PHY LTS 18-64,SUPPORTED LIVING,2103492437,1823223
07.06.2022,ADULT SOCIAL CARE,SEEABILITY,"3,188.04",PHY LTS 18-64,SUPPORTED LIVING,2103386657,1000043641
07.06.2022,ADULT SOCIAL CARE,SEEABILITY,"3,188.04",PHY LTS 18-64,SUPPORTED LIVING,2103400613,1000043641
07.06.2022,ADULT SOCIAL CARE,SEEABILITY,"3,188.04",PHY LTS 18-64,SUPPORTED LIVING,2103460862,1000043641
07.06.2022,ADULT SOCIAL CARE,SEEABILITY,"3,188.04",PHY LTS 18-64,SUPPORTED LIVING,2103475237,1000043641
07.06.2022,ADULT SOCIAL CARE,SEEABILITY,"3,188.04",PHY LTS 18-64,SUPPORTED LIVING,2103493396,1000043641
07.06.2022,ADULT SOCIAL CARE,SUPREME CARE SERVICES LTD,629.3,PHY LTS 65+,HOMECARE - C&V,2103492192,1000059416
07.06.2022,ADULT SOCIAL CARE,SUPREME CARE SERVICES LTD,718.76,PHY LTS 65+,HOMECARE - C&V,2103492172,1000059416
07.06.2022,ADULT SOCIAL CARE,SUPREME CARE SERVICES LTD,921.52,PHY LTS 65+,HOMECARE - C&V,2103492180,1000059416
07.06.2022,ADULT SOCIAL CARE,SUPREME CARE SERVICES LTD,"1,290.12",PHY LTS 65+,HOMECARE - C&V,2103492188,1000059416
07.06.2022,ADULT SOCIAL CARE,SUPREME CARE SERVICES LTD,"3,344.28",PHY LTS 65+,HOMECARE - C&V,2103492165,1000059416
07.06.2022,ADULT SOCIAL CARE,SUPREME CARE SERVICES LTD,"3,344.28",PHY LTS 65+,HOMECARE - C&V,2103492175,1000059416
07.06.2022,ADULT SOCIAL CARE,INSPIRE SUPPORT WORKERS LTD,"5,133.75",PHY LTS 65+,HOMECARE - SPOT,2103492197,1000080725
07.06.2022,ADULT SOCIAL CARE,PAYDENS (NURSING HOME) LTD,-574.36,PHY LTS 65+,INCOME FOR THIRD PARTIES/AGENCY ARRANGEMENTS,2103492404,1000051653
07.06.2022,ADULT SOCIAL CARE,CARE UK,"-3,650.88",PHY LTS 65+,INCOME FOR THIRD PARTIES/AGENCY ARRANGEMENTS,2103492895,1000063363
07.06.2022,ADULT SOCIAL CARE,GOLD CARE HOMES (BAUGH HOUSE),"-1,056.00",PHY LTS 65+,INCOME FOR THIRD PARTIES/AGENCY ARRANGEMENTS,2103492609,1000067495
07.06.2022,ADULT SOCIAL CARE,BEECHES RESIDENTIAL HOME,"-1,011.80",PHY LTS 65+,INCOME FOR THIRD PARTIES/AGENCY ARRANGEMENTS,2103493243,1000084503
07.06.2022,ADULT SOCIAL CARE,BRITISH HOME & HOSPITAL FOR INCURABLES,-608.8,PHY LTS 65+,"MAND STATUTORY CHARGES, NURSING",2103492851,1001606
07.06.2022,ADULT SOCIAL CARE,PARKVIEW NURSING HOME,-905.92,PHY LTS 65+,"MAND STATUTORY CHARGES, NURSING",2103493017,1776618
07.06.2022,ADULT SOCIAL CARE,PARKVIEW NURSING HOME,-703.52,PHY LTS 65+,"MAND STATUTORY CHARGES, NURSING",2103492511,1776618
07.06.2022,ADULT SOCIAL CARE,PARKVIEW NURSING HOME,-608.8,PHY LTS 65+,"MAND STATUTORY CHARGES, NURSING",2103493029,1776618
07.06.2022,ADULT SOCIAL CARE,PARKVIEW NURSING HOME,-595.4,PHY LTS 65+,"MAND STATUTORY CHARGES, NURSING",2103492945,1776618
07.06.2022,ADULT SOCIAL CARE,WESTCOMBE PARK NURSING HOME,-608.8,PHY LTS 65+,"MAND STATUTORY CHARGES, NURSING",2103492820,1792988
07.06.2022,ADULT SOCIAL CARE,LITTLE SISTERS OF THE POOR,-673.32,PHY LTS 65+,"MAND STATUTORY CHARGES, NURSING",2103492506,1860341
07.06.2022,ADULT SOCIAL CARE,COLLINGWOOD COURT (BUPA CARE HOMES),-683.88,PHY LTS 65+,"MAND STATUTORY CHARGES, NURSING",2103493035,11042563
07.06.2022,ADULT SOCIAL CARE,CHARLTON PARK (FOUR SEASONS),-608.8,PHY LTS 65+,"MAND STATUTORY CHARGES, NURSING",2103493111,11180076
07.06.2022,ADULT SOCIAL CARE,FOUR SEASONS (UPLANDS CARE HOME),-552.4,PHY LTS 65+,"MAND STATUTORY CHARGES, NURSING",2103493286,11290299
07.06.2022,ADULT SOCIAL CARE,HAVELOCK COURT (BUPA CARE),-604.8,PHY LTS 65+,"MAND STATUTORY CHARGES, NURSING",2103492691,1000028902
07.06.2022,ADULT SOCIAL CARE,LONDON RESIDENTIAL HEALTHCARE LTD,-701.84,PHY LTS 65+,"MAND STATUTORY CHARGES, NURSING",2103493385,1000030895
07.06.2022,ADULT SOCIAL CARE,LONDON RESIDENTIAL HEALTHCARE LTD,-665.96,PHY LTS 65+,"MAND STATUTORY CHARGES, NURSING",2103492919,1000030895
07.06.2022,ADULT SOCIAL CARE,LONDON RESIDENTIAL HEALTHCARE LTD,-608.8,PHY LTS 65+,"MAND STATUTORY CHARGES, NURSING",2103492831,1000030895
07.06.2022,ADULT SOCIAL CARE,LONDON RESIDENTIAL HEALTHCARE LTD,"3,721.55",PHY LTS 65+,"MAND STATUTORY CHARGES, NURSING",2103492486,1000030895
07.06.2022,ADULT SOCIAL CARE,RIVERLEE CARE HOME,-692.56,PHY LTS 65+,"MAND STATUTORY CHARGES, NURSING",2103493037,1000031567
07.06.2022,ADULT SOCIAL CARE,QUEENS OAK CARE CENTRE,"-3,334.88",PHY LTS 65+,"MAND STATUTORY CHARGES, NURSING",2103492454,1000049621
07.06.2022,ADULT SOCIAL CARE,QUEENS OAK CARE CENTRE,"-1,425.72",PHY LTS 65+,"MAND STATUTORY CHARGES, NURSING",2103492578,1000049621
07.06.2022,ADULT SOCIAL CARE,QUEENS OAK CARE CENTRE,-925.88,PHY LTS 65+,"MAND STATUTORY CHARGES, NURSING",2103493131,1000049621
07.06.2022,ADULT SOCIAL CARE,QUEENS OAK CARE CENTRE,-806.72,PHY LTS 65+,"MAND STATUTORY CHARGES, NURSING",2103493198,1000049621
07.06.2022,ADULT SOCIAL CARE,QUEENS OAK CARE CENTRE,-652.32,PHY LTS 65+,"MAND STATUTORY CHARGES, NURSING",2103493478,1000049621
07.06.2022,ADULT SOCIAL CARE,QUEENS OAK CARE CENTRE,-608.8,PHY LTS 65+,"MAND STATUTORY CHARGES, NURSING",2103492395,1000049621
07.06.2022,ADULT SOCIAL CARE,QUEENS OAK CARE CENTRE,-608.8,PHY LTS 65+,"MAND STATUTORY CHARGES, NURSING",2103492724,1000049621
07.06.2022,ADULT SOCIAL CARE,QUEENS OAK CARE CENTRE,-608.8,PHY LTS 65+,"MAND STATUTORY CHARGES, NURSING",2103493136,1000049621
07.06.2022,ADULT SOCIAL CARE,QUEENS OAK CARE CENTRE,-608.8,PHY LTS 65+,"MAND STATUTORY CHARGES, NURSING",2103493180,1000049621
07.06.2022,ADULT SOCIAL CARE,QUEENS OAK CARE CENTRE,-608.8,PHY LTS 65+,"MAND STATUTORY CHARGES, NURSING",2103493424,1000049621
07.06.2022,ADULT SOCIAL CARE,QUEENS OAK CARE CENTRE,-608.8,PHY LTS 65+,"MAND STATUTORY CHARGES, NURSING",2103493482,1000049621
07.06.2022,ADULT SOCIAL CARE,QUEENS OAK CARE CENTRE,-522.8,PHY LTS 65+,"MAND STATUTORY CHARGES, NURSING",2103492776,1000049621
07.06.2022,ADULT SOCIAL CARE,QUEENS OAK CARE CENTRE,587.06,PHY LTS 65+,"MAND STATUTORY CHARGES, NURSING",2103493427,1000049621
07.06.2022,ADULT SOCIAL CARE,QUEENS OAK CARE CENTRE,"1,174.11",PHY LTS 65+,"MAND STATUTORY CHARGES, NURSING",2103492393,1000049621
07.06.2022,ADULT SOCIAL CARE,PAYDENS (NURSING HOME) LTD,-832.44,PHY LTS 65+,"MAND STATUTORY CHARGES, NURSING",2103492403,1000051653
07.06.2022,ADULT SOCIAL CARE,NELLSAR LTD,-408.44,PHY LTS 65+,"MAND STATUTORY CHARGES, NURSING",2103492581,1000053219
07.06.2022,ADULT SOCIAL CARE,ALBANY LODGE,-719.72,PHY LTS 65+,"MAND STATUTORY CHARGES, NURSING",2103493054,1000060280
07.06.2022,ADULT SOCIAL CARE,ALBANY LODGE,-636.8,PHY LTS 65+,"MAND STATUTORY CHARGES, NURSING",2103493344,1000060280
07.06.2022,ADULT SOCIAL CARE,ALBANY LODGE,-608.8,PHY LTS 65+,"MAND STATUTORY CHARGES, NURSING",2103493318,1000060280
07.06.2022,ADULT SOCIAL CARE,CARE UK,"-2,675.20",PHY LTS 65+,"MAND STATUTORY CHARGES, NURSING",2103493435,1000063363
07.06.2022,ADULT SOCIAL CARE,CARE UK,-595.4,PHY LTS 65+,"MAND STATUTORY CHARGES, NURSING",2103493024,1000063363
07.06.2022,ADULT SOCIAL CARE,"WILMINGTON MANOR NURSING HOME, BUPA","-2,750.80",PHY LTS 65+,"MAND STATUTORY CHARGES, NURSING",2103493405,1000064678
07.06.2022,ADULT SOCIAL CARE,GOLD CARE HOMES (BAUGH HOUSE),-608.8,PHY LTS 65+,"MAND STATUTORY CHARGES, NURSING",2103492590,1000067495
07.06.2022,ADULT SOCIAL CARE,GOLD CARE HOMES (BAUGH HOUSE),-608.8,PHY LTS 65+,"MAND STATUTORY CHARGES, NURSING",2103492607,1000067495
07.06.2022,ADULT SOCIAL CARE,HC-ONE LTD (TOWER BRIDGE CARE HOME),"-1,311.44",PHY LTS 65+,"MAND STATUTORY CHARGES, NURSING",2103493329,1000067670
07.06.2022,ADULT SOCIAL CARE,HC-ONE LTD (TOWER BRIDGE CARE HOME),"-1,304.57",PHY LTS 65+,"MAND STATUTORY CHARGES, NURSING",2103492542,1000067670
07.06.2022,ADULT SOCIAL CARE,HC-ONE LTD (TOWER BRIDGE CARE HOME),"-1,304.57",PHY LTS 65+,"MAND STATUTORY CHARGES, NURSING",2103492657,1000067670
07.06.2022,ADULT SOCIAL CARE,HC-ONE LTD (TOWER BRIDGE CARE HOME),"-1,153.52",PHY LTS 65+,"MAND STATUTORY CHARGES, NURSING",2103493337,1000067670
07.06.2022,ADULT SOCIAL CARE,HC-ONE LTD (TOWER BRIDGE CARE HOME),"-1,152.37",PHY LTS 65+,"MAND STATUTORY CHARGES, NURSING",2103493439,1000067670
07.06.2022,ADULT SOCIAL CARE,HC-ONE LTD (TOWER BRIDGE CARE HOME),-993.2,PHY LTS 65+,"MAND STATUTORY CHARGES, NURSING",2103492817,1000067670
07.06.2022,ADULT SOCIAL CARE,HC-ONE LTD (TOWER BRIDGE CARE HOME),-718.64,PHY LTS 65+,"MAND STATUTORY CHARGES, NURSING",2103492689,1000067670
07.06.2022,ADULT SOCIAL CARE,HC-ONE LTD (TOWER BRIDGE CARE HOME),-626.92,PHY LTS 65+,"MAND STATUTORY CHARGES, NURSING",2103492838,1000067670
07.06.2022,ADULT SOCIAL CARE,HC-ONE LTD (TOWER BRIDGE CARE HOME),-608.8,PHY LTS 65+,"MAND STATUTORY CHARGES, NURSING",2103492399,1000067670
07.06.2022,ADULT SOCIAL CARE,HC-ONE LTD (TOWER BRIDGE CARE HOME),-608.8,PHY LTS 65+,"MAND STATUTORY CHARGES, NURSING",2103492836,1000067670
07.06.2022,ADULT SOCIAL CARE,HC-ONE LTD (TOWER BRIDGE CARE HOME),-608.8,PHY LTS 65+,"MAND STATUTORY CHARGES, NURSING",2103493174,1000067670
07.06.2022,ADULT SOCIAL CARE,HC-ONE LTD (TOWER BRIDGE CARE HOME),-608.8,PHY LTS 65+,"MAND STATUTORY CHARGES, NURSING",2103493341,1000067670
07.06.2022,ADULT SOCIAL CARE,HC-ONE LTD (TOWER BRIDGE CARE HOME),-608.8,PHY LTS 65+,"MAND STATUTORY CHARGES, NURSING",2103493449,1000067670
07.06.2022,ADULT SOCIAL CARE,HC-ONE LTD (TOWER BRIDGE CARE HOME),-595.4,PHY LTS 65+,"MAND STATUTORY CHARGES, NURSING",2103492320,1000067670
07.06.2022,ADULT SOCIAL CARE,HC-ONE LTD (TOWER BRIDGE CARE HOME),-595.4,PHY LTS 65+,"MAND STATUTORY CHARGES, NURSING",2103492552,1000067670
07.06.2022,ADULT SOCIAL CARE,HC-ONE LTD (TOWER BRIDGE CARE HOME),-595.4,PHY LTS 65+,"MAND STATUTORY CHARGES, NURSING",2103493322,1000067670
07.06.2022,ADULT SOCIAL CARE,HC-ONE LTD (TOWER BRIDGE CARE HOME),-569.4,PHY LTS 65+,"MAND STATUTORY CHARGES, NURSING",2103493234,1000067670
07.06.2022,ADULT SOCIAL CARE,HC-ONE LTD (TOWER BRIDGE CARE HOME),-356.8,PHY LTS 65+,"MAND STATUTORY CHARGES, NURSING",2103493105,1000067670
07.06.2022,ADULT SOCIAL CARE,HC-ONE LTD (TOWER BRIDGE CARE HOME),383.16,PHY LTS 65+,"MAND STATUTORY CHARGES, NURSING",2103492498,1000067670
07.06.2022,ADULT SOCIAL CARE,HEATHERDENE NURSING HOME LTD,-603,PHY LTS 65+,"MAND STATUTORY CHARGES, NURSING",2103493107,1000076774
07.06.2022,ADULT SOCIAL CARE,ST MARY'S CARE HOMES,-608.8,PHY LTS 65+,"MAND STATUTORY CHARGES, NURSING",2103492372,1000079984
07.06.2022,ADULT SOCIAL CARE,ST MARY'S CARE HOMES,-608.8,PHY LTS 65+,"MAND STATUTORY CHARGES, NURSING",2103492695,1000079984
07.06.2022,ADULT SOCIAL CARE,THE GRESHAM CARE HOME LTD,-931.72,PHY LTS 65+,"MAND STATUTORY CHARGES, NURSING",2103492612,1000080194
07.06.2022,ADULT SOCIAL CARE,CARING HOMES HEALTHCARE GROUP LTD,-595.4,PHY LTS 65+,"MAND STATUTORY CHARGES, NURSING",2103492314,1000080206
07.06.2022,ADULT SOCIAL CARE,PUDDINGSTONE GRANGE CARE HOME,-595.4,PHY LTS 65+,"MAND STATUTORY CHARGES, NURSING",2103493303,1000080394
07.06.2022,ADULT SOCIAL CARE,THE CONIFERS HEALTHCARE LTD,-670.08,PHY LTS 65+,"MAND STATUTORY CHARGES, NURSING",2103492303,1000082175
07.06.2022,ADULT SOCIAL CARE,ARLINGTON COURT CARE HOME,"-10,638.24",PHY LTS 65+,"MAND STATUTORY CHARGES, NURSING",2103337168,1000084313
07.06.2022,ADULT SOCIAL CARE,ARLINGTON COURT CARE HOME,"-1,463.20",PHY LTS 65+,"MAND STATUTORY CHARGES, NURSING",2103400770,1000084313
07.06.2022,ADULT SOCIAL CARE,ARLINGTON COURT CARE HOME,"-1,090.12",PHY LTS 65+,"MAND STATUTORY CHARGES, NURSING",2103348785,1000084313
07.06.2022,ADULT SOCIAL CARE,ARLINGTON COURT CARE HOME,"-1,090.12",PHY LTS 65+,"MAND STATUTORY CHARGES, NURSING",2103362421,1000084313
07.06.2022,ADULT SOCIAL CARE,ARLINGTON COURT CARE HOME,"-1,090.12",PHY LTS 65+,"MAND STATUTORY CHARGES, NURSING",2103373067,1000084313
07.06.2022,ADULT SOCIAL CARE,ARLINGTON COURT CARE HOME,"-1,090.12",PHY LTS 65+,"MAND STATUTORY CHARGES, NURSING",2103386211,1000084313
07.06.2022,ADULT SOCIAL CARE,ARLINGTON COURT CARE HOME,"-1,090.12",PHY LTS 65+,"MAND STATUTORY CHARGES, NURSING",2103460435,1000084313
07.06.2022,ADULT SOCIAL CARE,ARLINGTON COURT CARE HOME,"-1,090.12",PHY LTS 65+,"MAND STATUTORY CHARGES, NURSING",2103476027,1000084313
07.06.2022,ADULT SOCIAL CARE,ARLINGTON COURT CARE HOME,"-1,090.12",PHY LTS 65+,"MAND STATUTORY CHARGES, NURSING",2103493039,1000084313
07.06.2022,ADULT SOCIAL CARE,MIDLAND CARE HOME,-325.37,PHY LTS 65+,"MAND STATUTORY CHARGES, NURSING",2103177418,1000084517
07.06.2022,ADULT SOCIAL CARE,MIDLAND CARE HOME,"3,253.44",PHY LTS 65+,"MAND STATUTORY CHARGES, NURSING",2103492424,1000084517
07.06.2022,ADULT SOCIAL CARE,GCH (MIDLANDS) LTD T\A BLETCHLEY HOUSE,-608.8,PHY LTS 65+,"MAND STATUTORY CHARGES, NURSING",2103493348,1000087260
07.06.2022,ADULT SOCIAL CARE,CHURCHILL RESIDENTIAL CARE & NURS'G,"2,283.00",PHY LTS 65+,"MAND STATUTORY CHARGES, NURSING",2103493197,1000087931
07.06.2022,ADULT SOCIAL CARE,HYDEFALL LTD T/A SUTTON COURT CARE CENTRE,-608.8,PHY LTS 65+,"MAND STATUTORY CHARGES, NURSING",2103492584,1000088089
07.06.2022,ADULT SOCIAL CARE,LOVE WALK HOSTEL FOR DISABLED,-946.8,PHY LTS 65+,"MAND STATUTORY CHARGES, RESIDENTIAL",2103492377,1008978
07.06.2022,ADULT SOCIAL CARE,STRODE PARK FNDN FOR THE DISABLED,-608.8,PHY LTS 65+,"MAND STATUTORY CHARGES, RESIDENTIAL",2103493113,1030892
07.06.2022,ADULT SOCIAL CARE,SOUTH EAST LONDON BAPTIST HOME,-622,PHY LTS 65+,"MAND STATUTORY CHARGES, RESIDENTIAL",2103493331,1670766
07.06.2022,ADULT SOCIAL CARE,SOUTH EAST LONDON BAPTIST HOME,-569.4,PHY LTS 65+,"MAND STATUTORY CHARGES, RESIDENTIAL",2103493232,1670766
07.06.2022,ADULT SOCIAL CARE,PARKVIEW NURSING HOME,-608.8,PHY LTS 65+,"MAND STATUTORY CHARGES, RESIDENTIAL",2103492698,1776618
07.06.2022,ADULT SOCIAL CARE,LITTLE SISTERS OF THE POOR,-522.8,PHY LTS 65+,"MAND STATUTORY CHARGES, RESIDENTIAL",2103492878,1860341
07.06.2022,ADULT SOCIAL CARE,AVANTE PARTNERSHIP (WEYBOURNE),-840.24,PHY LTS 65+,"MAND STATUTORY CHARGES, RESIDENTIAL",2103493391,11130185
07.06.2022,ADULT SOCIAL CARE,AVANTE PARTNERSHIP (WEYBOURNE),-608.8,PHY LTS 65+,"MAND STATUTORY CHARGES, RESIDENTIAL",2103492781,11130185
07.06.2022,ADULT SOCIAL CARE,SIDCUP NURSING & RESIDENTIAL CENTRE,-628.72,PHY LTS 65+,"MAND STATUTORY CHARGES, RESIDENTIAL",2103493043,11251534
07.06.2022,ADULT SOCIAL CARE,ANCHOR TRUST,-677.08,PHY LTS 65+,"MAND STATUTORY CHARGES, RESIDENTIAL",2103493003,11257534
07.06.2022,ADULT SOCIAL CARE,ANCHOR TRUST,-608.8,PHY LTS 65+,"MAND STATUTORY CHARGES, RESIDENTIAL",2103492788,11257534
07.06.2022,ADULT SOCIAL CARE,CHARING COURT INVESTMENTS LTD,"-1,012.12",PHY LTS 65+,"MAND STATUTORY CHARGES, RESIDENTIAL",2103493058,1000015545
07.06.2022,ADULT SOCIAL CARE,HAVELOCK COURT (BUPA CARE),-608.8,PHY LTS 65+,"MAND STATUTORY CHARGES, RESIDENTIAL",2103493324,1000028902
07.06.2022,ADULT SOCIAL CARE,MEDICREST LTD (ACORN LODGE),-608.8,PHY LTS 65+,"MAND STATUTORY CHARGES, RESIDENTIAL",2103492386,1000037363
07.06.2022,ADULT SOCIAL CARE,QUEENS OAK CARE CENTRE,-608.8,PHY LTS 65+,"MAND STATUTORY CHARGES, RESIDENTIAL",2103493509,1000049621
07.06.2022,ADULT SOCIAL CARE,QUEENS OAK CARE CENTRE,-597.48,PHY LTS 65+,"MAND STATUTORY CHARGES, RESIDENTIAL",2103493511,1000049621
07.06.2022,ADULT SOCIAL CARE,CHISLEHURST CARE LTD,"6,004.65",PHY LTS 65+,"MAND STATUTORY CHARGES, RESIDENTIAL",2103492819,1000050236
07.06.2022,ADULT SOCIAL CARE,NELLSAR LTD,-764.92,PHY LTS 65+,"MAND STATUTORY CHARGES, RESIDENTIAL",2103492495,1000053219
07.06.2022,ADULT SOCIAL CARE,HAYDALE NURSING HOME,-850.24,PHY LTS 65+,"MAND STATUTORY CHARGES, RESIDENTIAL",2103492416,1000057063
07.06.2022,ADULT SOCIAL CARE,N NOTARO HOMES LTD,-883.92,PHY LTS 65+,"MAND STATUTORY CHARGES, RESIDENTIAL",2103492381,1000061594
07.06.2022,ADULT SOCIAL CARE,HC-ONE LTD (TOWER BRIDGE CARE HOME),"-1,139.32",PHY LTS 65+,"MAND STATUTORY CHARGES, RESIDENTIAL",2103492363,1000067670
07.06.2022,ADULT SOCIAL CARE,HC-ONE LTD (TOWER BRIDGE CARE HOME),"-1,070.00",PHY LTS 65+,"MAND STATUTORY CHARGES, RESIDENTIAL",2103492365,1000067670
07.06.2022,ADULT SOCIAL CARE,HC-ONE LTD (TOWER BRIDGE CARE HOME),-608.8,PHY LTS 65+,"MAND STATUTORY CHARGES, RESIDENTIAL",2103493012,1000067670
07.06.2022,ADULT SOCIAL CARE,HC-ONE LTD (TOWER BRIDGE CARE HOME),-595.4,PHY LTS 65+,"MAND STATUTORY CHARGES, RESIDENTIAL",2103492751,1000067670
07.06.2022,ADULT SOCIAL CARE,HC-ONE LTD (TOWER BRIDGE CARE HOME),-569.4,PHY LTS 65+,"MAND STATUTORY CHARGES, RESIDENTIAL",2103493236,1000067670
07.06.2022,ADULT SOCIAL CARE,C & P LTD (KIMBERLEY CARE),-608.8,PHY LTS 65+,"MAND STATUTORY CHARGES, RESIDENTIAL",2103492834,1000068510
07.06.2022,ADULT SOCIAL CARE,GOLD CARE HOMES (BURROWS HOUSE) LTD,"-1,132.44",PHY LTS 65+,"MAND STATUTORY CHARGES, RESIDENTIAL",2103493033,1000070656
07.06.2022,ADULT SOCIAL CARE,MERRYHILL CARE LTD,"-3,861.28",PHY LTS 65+,"MAND STATUTORY CHARGES, RESIDENTIAL",2103492648,1000075483
07.06.2022,ADULT SOCIAL CARE,MERRYHILL CARE LTD,"3,283.12",PHY LTS 65+,"MAND STATUTORY CHARGES, RESIDENTIAL",2103492546,1000075483
07.06.2022,ADULT SOCIAL CARE,ASHFIELD RESIDENTIAL CARE HOME,-608.8,PHY LTS 65+,"MAND STATUTORY CHARGES, RESIDENTIAL",2103493447,1000079717
07.06.2022,ADULT SOCIAL CARE,LYMEHURST REST HOME,"-1,116.64",PHY LTS 65+,"MAND STATUTORY CHARGES, RESIDENTIAL",2103493381,1000080964
07.06.2022,ADULT SOCIAL CARE,FOXLEY LODGE CARE HOME,"1,435.03",PHY LTS 65+,"MAND STATUTORY CHARGES, RESIDENTIAL",2103493472,1000083209
07.06.2022,ADULT SOCIAL CARE,REGAL CARE TRADING LTD,"-1,294.68",PHY LTS 65+,"MAND STATUTORY CHARGES, RESIDENTIAL",2103493117,1000086854
07.06.2022,ADULT SOCIAL CARE,ACCOMMODATING CARE (DRIFFIELD) LIMITED,-663.24,PHY LTS 65+,"MAND STATUTORY CHARGES, RESIDENTIAL",2103492589,1000087930
07.06.2022,ADULT SOCIAL CARE,SALUTEM SHARED SERVICES III LTD,-608.8,PHY LTS 65+,"MAND STATUTORY CHARGES, RESIDENTIAL",2103493201,1000088099
07.06.2022,ADULT SOCIAL CARE,REDACTED PERSONAL DATA,-608.8,PHY LTS 65+,"MAND STATUTORY CHARGES, RESIDENTIAL",REDACTED,REDACTED
07.06.2022,ADULT SOCIAL CARE,BRITISH HOME & HOSPITAL FOR INCURABLES,"3,419.88",PHY LTS 65+,NURSING PLACEMENTS FEES,2103492852,1001606
07.06.2022,ADULT SOCIAL CARE,ROYAL HOSPITAL FOR NEURODISABILITY,"10,060.68",PHY LTS 65+,NURSING PLACEMENTS FEES,2103493145,1010365
07.06.2022,ADULT SOCIAL CARE,PARKVIEW NURSING HOME,"2,691.96",PHY LTS 65+,NURSING PLACEMENTS FEES,2103492925,1776618
07.06.2022,ADULT SOCIAL CARE,PARKVIEW NURSING HOME,"2,916.40",PHY LTS 65+,NURSING PLACEMENTS FEES,2103492512,1776618
07.06.2022,ADULT SOCIAL CARE,PARKVIEW NURSING HOME,"3,075.52",PHY LTS 65+,NURSING PLACEMENTS FEES,2103493487,1776618
07.06.2022,ADULT SOCIAL CARE,PARKVIEW NURSING HOME,"3,230.60",PHY LTS 65+,NURSING PLACEMENTS FEES,2103493018,1776618
07.06.2022,ADULT SOCIAL CARE,PARKVIEW NURSING HOME,"3,295.20",PHY LTS 65+,NURSING PLACEMENTS FEES,2103493030,1776618
07.06.2022,ADULT SOCIAL CARE,PARKVIEW NURSING HOME,"3,295.20",PHY LTS 65+,NURSING PLACEMENTS FEES,2103493209,1776618
07.06.2022,ADULT SOCIAL CARE,PARKVIEW NURSING HOME,"3,378.40",PHY LTS 65+,NURSING PLACEMENTS FEES,2103492452,1776618
07.06.2022,ADULT SOCIAL CARE,PARKVIEW NURSING HOME,"3,445.96",PHY LTS 65+,NURSING PLACEMENTS FEES,2103492946,1776618
07.06.2022,ADULT SOCIAL CARE,WESTCOMBE PARK NURSING HOME,"2,732.16",PHY LTS 65+,NURSING PLACEMENTS FEES,2103492821,1792988
07.06.2022,ADULT SOCIAL CARE,LITTLE SISTERS OF THE POOR,"2,742.12",PHY LTS 65+,NURSING PLACEMENTS FEES,2103492507,1860341
07.06.2022,ADULT SOCIAL CARE,COLLINGWOOD COURT (BUPA CARE HOMES),"2,469.04",PHY LTS 65+,NURSING PLACEMENTS FEES,2103492653,11042563
07.06.2022,ADULT SOCIAL CARE,COLLINGWOOD COURT (BUPA CARE HOMES),"2,683.80",PHY LTS 65+,NURSING PLACEMENTS FEES,2103493144,11042563
07.06.2022,ADULT SOCIAL CARE,COLLINGWOOD COURT (BUPA CARE HOMES),"3,545.20",PHY LTS 65+,NURSING PLACEMENTS FEES,2103493036,11042563
07.06.2022,ADULT SOCIAL CARE,MANLEY COURT NURSING HOME (BUPA),"2,836.96",PHY LTS 65+,NURSING PLACEMENTS FEES,2103492488,11101434
07.06.2022,ADULT SOCIAL CARE,MANLEY COURT NURSING HOME (BUPA),"2,886.16",PHY LTS 65+,NURSING PLACEMENTS FEES,2103493156,11101434
07.06.2022,ADULT SOCIAL CARE,MANLEY COURT NURSING HOME (BUPA),"2,907.88",PHY LTS 65+,NURSING PLACEMENTS FEES,2103493493,11101434
07.06.2022,ADULT SOCIAL CARE,MANLEY COURT NURSING HOME (BUPA),"2,907.88",PHY LTS 65+,NURSING PLACEMENTS FEES,2103493494,11101434
07.06.2022,ADULT SOCIAL CARE,MANLEY COURT NURSING HOME (BUPA),"3,114.40",PHY LTS 65+,NURSING PLACEMENTS FEES,2103492526,11101434
07.06.2022,ADULT SOCIAL CARE,MANLEY COURT NURSING HOME (BUPA),"3,174.24",PHY LTS 65+,NURSING PLACEMENTS FEES,2103492935,11101434
07.06.2022,ADULT SOCIAL CARE,MANLEY COURT NURSING HOME (BUPA),"9,030.21",PHY LTS 65+,NURSING PLACEMENTS FEES,2103492986,11101434
07.06.2022,ADULT SOCIAL CARE,CHARLTON PARK (FOUR SEASONS),"2,553.80",PHY LTS 65+,NURSING PLACEMENTS FEES,2103492282,11180076
07.06.2022,ADULT SOCIAL CARE,CHARLTON PARK (FOUR SEASONS),"2,742.12",PHY LTS 65+,NURSING PLACEMENTS FEES,2103492451,11180076
07.06.2022,ADULT SOCIAL CARE,CHARLTON PARK (FOUR SEASONS),"2,742.12",PHY LTS 65+,NURSING PLACEMENTS FEES,2103493429,11180076
07.06.2022,ADULT SOCIAL CARE,CHARLTON PARK (FOUR SEASONS),"2,870.32",PHY LTS 65+,NURSING PLACEMENTS FEES,2103493112,11180076
07.06.2022,ADULT SOCIAL CARE,SIDCUP NURSING & RESIDENTIAL CENTRE,"3,083.20",PHY LTS 65+,NURSING PLACEMENTS FEES,2103492992,11251534
07.06.2022,ADULT SOCIAL CARE,FOUR SEASONS (UPLANDS CARE HOME),"3,230.60",PHY LTS 65+,NURSING PLACEMENTS FEES,2103493287,11290299
07.06.2022,ADULT SOCIAL CARE,FOUR SEASONS (UPLANDS CARE HOME),"3,295.20",PHY LTS 65+,NURSING PLACEMENTS FEES,2103492671,11290299
07.06.2022,ADULT SOCIAL CARE,HAVELOCK COURT (BUPA CARE),"3,668.72",PHY LTS 65+,NURSING PLACEMENTS FEES,2103493096,1000028902
07.06.2022,ADULT SOCIAL CARE,HAVELOCK COURT (BUPA CARE),"3,684.00",PHY LTS 65+,NURSING PLACEMENTS FEES,2103492692,1000028902
07.06.2022,ADULT SOCIAL CARE,HAVELOCK COURT (BUPA CARE),"4,053.16",PHY LTS 65+,NURSING PLACEMENTS FEES,2103493316,1000028902
07.06.2022,ADULT SOCIAL CARE,LONDON RESIDENTIAL HEALTHCARE LTD,"-17,228.72",PHY LTS 65+,NURSING PLACEMENTS FEES,2103492487,1000030895
07.06.2022,ADULT SOCIAL CARE,LONDON RESIDENTIAL HEALTHCARE LTD,"2,394.88",PHY LTS 65+,NURSING PLACEMENTS FEES,2103492832,1000030895
07.06.2022,ADULT SOCIAL CARE,LONDON RESIDENTIAL HEALTHCARE LTD,"2,733.04",PHY LTS 65+,NURSING PLACEMENTS FEES,2103492288,1000030895
07.06.2022,ADULT SOCIAL CARE,LONDON RESIDENTIAL HEALTHCARE LTD,"2,742.12",PHY LTS 65+,NURSING PLACEMENTS FEES,2103492920,1000030895
07.06.2022,ADULT SOCIAL CARE,LONDON RESIDENTIAL HEALTHCARE LTD,"2,905.12",PHY LTS 65+,NURSING PLACEMENTS FEES,2103492528,1000030895
07.06.2022,ADULT SOCIAL CARE,LONDON RESIDENTIAL HEALTHCARE LTD,"2,920.84",PHY LTS 65+,NURSING PLACEMENTS FEES,2103492864,1000030895
07.06.2022,ADULT SOCIAL CARE,LONDON RESIDENTIAL HEALTHCARE LTD,"3,024.00",PHY LTS 65+,NURSING PLACEMENTS FEES,2103493386,1000030895
07.06.2022,ADULT SOCIAL CARE,RIVERLEE CARE HOME,"2,912.96",PHY LTS 65+,NURSING PLACEMENTS FEES,2103493038,1000031567
07.06.2022,ADULT SOCIAL CARE,RIVERLEE CARE HOME,"3,059.16",PHY LTS 65+,NURSING PLACEMENTS FEES,2103493146,1000031567
07.06.2022,ADULT SOCIAL CARE,GREENHILL CARE HOME,"3,209.48",PHY LTS 65+,NURSING PLACEMENTS FEES,2103493258,1000040358
07.06.2022,ADULT SOCIAL CARE,QUEENS OAK CARE CENTRE,"-6,274.72",PHY LTS 65+,NURSING PLACEMENTS FEES,2103492394,1000049621
07.06.2022,ADULT SOCIAL CARE,QUEENS OAK CARE CENTRE,"3,142.40",PHY LTS 65+,NURSING PLACEMENTS FEES,2103492294,1000049621
07.06.2022,ADULT SOCIAL CARE,QUEENS OAK CARE CENTRE,"3,142.40",PHY LTS 65+,NURSING PLACEMENTS FEES,2103492295,1000049621
07.06.2022,ADULT SOCIAL CARE,QUEENS OAK CARE CENTRE,"3,142.40",PHY LTS 65+,NURSING PLACEMENTS FEES,2103492680,1000049621
07.06.2022,ADULT SOCIAL CARE,QUEENS OAK CARE CENTRE,"3,142.40",PHY LTS 65+,NURSING PLACEMENTS FEES,2103492777,1000049621
07.06.2022,ADULT SOCIAL CARE,QUEENS OAK CARE CENTRE,"3,142.40",PHY LTS 65+,NURSING PLACEMENTS FEES,2103493132,1000049621
07.06.2022,ADULT SOCIAL CARE,QUEENS OAK CARE CENTRE,"3,142.40",PHY LTS 65+,NURSING PLACEMENTS FEES,2103493211,1000049621
07.06.2022,ADULT SOCIAL CARE,QUEENS OAK CARE CENTRE,"3,142.40",PHY LTS 65+,NURSING PLACEMENTS FEES,2103493212,1000049621
07.06.2022,ADULT SOCIAL CARE,QUEENS OAK CARE CENTRE,"3,142.40",PHY LTS 65+,NURSING PLACEMENTS FEES,2103493276,1000049621
07.06.2022,ADULT SOCIAL CARE,QUEENS OAK CARE CENTRE,"3,142.40",PHY LTS 65+,NURSING PLACEMENTS FEES,2103493479,1000049621
07.06.2022,ADULT SOCIAL CARE,QUEENS OAK CARE CENTRE,"3,213.56",PHY LTS 65+,NURSING PLACEMENTS FEES,2103493425,1000049621
07.06.2022,ADULT SOCIAL CARE,QUEENS OAK CARE CENTRE,"3,227.43",PHY LTS 65+,NURSING PLACEMENTS FEES,2103493485,1000049621
07.06.2022,ADULT SOCIAL CARE,QUEENS OAK CARE CENTRE,"3,334.88",PHY LTS 65+,NURSING PLACEMENTS FEES,2103492296,1000049621
07.06.2022,ADULT SOCIAL CARE,QUEENS OAK CARE CENTRE,"3,334.88",PHY LTS 65+,NURSING PLACEMENTS FEES,2103492448,1000049621
07.06.2022,ADULT SOCIAL CARE,QUEENS OAK CARE CENTRE,"3,334.88",PHY LTS 65+,NURSING PLACEMENTS FEES,2103492455,1000049621
07.06.2022,ADULT SOCIAL CARE,QUEENS OAK CARE CENTRE,"3,334.88",PHY LTS 65+,NURSING PLACEMENTS FEES,2103492536,1000049621
07.06.2022,ADULT SOCIAL CARE,QUEENS OAK CARE CENTRE,"3,334.88",PHY LTS 65+,NURSING PLACEMENTS FEES,2103492537,1000049621
07.06.2022,ADULT SOCIAL CARE,QUEENS OAK CARE CENTRE,"3,334.88",PHY LTS 65+,NURSING PLACEMENTS FEES,2103492579,1000049621
07.06.2022,ADULT SOCIAL CARE,QUEENS OAK CARE CENTRE,"3,334.88",PHY LTS 65+,NURSING PLACEMENTS FEES,2103492725,1000049621
07.06.2022,ADULT SOCIAL CARE,QUEENS OAK CARE CENTRE,"3,334.88",PHY LTS 65+,NURSING PLACEMENTS FEES,2103492869,1000049621
07.06.2022,ADULT SOCIAL CARE,QUEENS OAK CARE CENTRE,"3,334.88",PHY LTS 65+,NURSING PLACEMENTS FEES,2103492993,1000049621
07.06.2022,ADULT SOCIAL CARE,QUEENS OAK CARE CENTRE,"3,334.88",PHY LTS 65+,NURSING PLACEMENTS FEES,2103493181,1000049621
07.06.2022,ADULT SOCIAL CARE,QUEENS OAK CARE CENTRE,"3,334.88",PHY LTS 65+,NURSING PLACEMENTS FEES,2103493199,1000049621
07.06.2022,ADULT SOCIAL CARE,QUEENS OAK CARE CENTRE,"3,407.49",PHY LTS 65+,NURSING PLACEMENTS FEES,2103493137,1000049621
07.06.2022,ADULT SOCIAL CARE,QUEENS OAK CARE CENTRE,"3,413.30",PHY LTS 65+,NURSING PLACEMENTS FEES,2103493428,1000049621
07.06.2022,ADULT SOCIAL CARE,QUEENS OAK CARE CENTRE,"3,413.30",PHY LTS 65+,NURSING PLACEMENTS FEES,2103493483,1000049621
07.06.2022,ADULT SOCIAL CARE,QUEENS OAK CARE CENTRE,"3,485.90",PHY LTS 65+,NURSING PLACEMENTS FEES,2103492846,1000049621
07.06.2022,ADULT SOCIAL CARE,QUEENS OAK CARE CENTRE,"3,692.34",PHY LTS 65+,NURSING PLACEMENTS FEES,2103492396,1000049621
07.06.2022,ADULT SOCIAL CARE,QUEENS OAK CARE CENTRE,"6,274.72",PHY LTS 65+,NURSING PLACEMENTS FEES,2103492593,1000049621
07.06.2022,ADULT SOCIAL CARE,PAYDENS (NURSING HOME) LTD,"2,742.12",PHY LTS 65+,NURSING PLACEMENTS FEES,2103492402,1000051653
07.06.2022,ADULT SOCIAL CARE,NELLSAR LTD,"2,870.00",PHY LTS 65+,NURSING PLACEMENTS FEES,2103492582,1000053219
07.06.2022,ADULT SOCIAL CARE,PRIORY MEWS CARE HOME,"2,607.84",PHY LTS 65+,NURSING PLACEMENTS FEES,2103492630,1000060038
07.06.2022,ADULT SOCIAL CARE,ALBANY LODGE,"2,715.84",PHY LTS 65+,NURSING PLACEMENTS FEES,2103493319,1000060280
07.06.2022,ADULT SOCIAL CARE,ALBANY LODGE,"2,730.92",PHY LTS 65+,NURSING PLACEMENTS FEES,2103492450,1000060280
07.06.2022,ADULT SOCIAL CARE,ALBANY LODGE,"2,730.92",PHY LTS 65+,NURSING PLACEMENTS FEES,2103493055,1000060280
07.06.2022,ADULT SOCIAL CARE,ALBANY LODGE,"2,812.84",PHY LTS 65+,NURSING PLACEMENTS FEES,2103492801,1000060280
07.06.2022,ADULT SOCIAL CARE,ALBANY LODGE,"2,812.84",PHY LTS 65+,NURSING PLACEMENTS FEES,2103493142,1000060280
07.06.2022,ADULT SOCIAL CARE,ALBANY LODGE,"2,819.00",PHY LTS 65+,NURSING PLACEMENTS FEES,2103493345,1000060280
07.06.2022,ADULT SOCIAL CARE,CARE UK,"2,675.20",PHY LTS 65+,NURSING PLACEMENTS FEES,2103493436,1000063363
07.06.2022,ADULT SOCIAL CARE,CARE UK,"3,140.92",PHY LTS 65+,NURSING PLACEMENTS FEES,2103493025,1000063363
07.06.2022,ADULT SOCIAL CARE,CARE UK,"3,895.00",PHY LTS 65+,NURSING PLACEMENTS FEES,2103493502,1000063363
07.06.2022,ADULT SOCIAL CARE,CARE UK,"6,588.00",PHY LTS 65+,NURSING PLACEMENTS FEES,2103492894,1000063363
07.06.2022,ADULT SOCIAL CARE,"WILMINGTON MANOR NURSING HOME, BUPA","2,400.60",PHY LTS 65+,NURSING PLACEMENTS FEES,2103492677,1000064678
07.06.2022,ADULT SOCIAL CARE,"WILMINGTON MANOR NURSING HOME, BUPA","2,750.80",PHY LTS 65+,NURSING PLACEMENTS FEES,2103493406,1000064678
07.06.2022,ADULT SOCIAL CARE,GOLD CARE HOMES (BAUGH HOUSE),"2,675.16",PHY LTS 65+,NURSING PLACEMENTS FEES,2103492608,1000067495
07.06.2022,ADULT SOCIAL CARE,GOLD CARE HOMES (BAUGH HOUSE),"3,333.28",PHY LTS 65+,NURSING PLACEMENTS FEES,2103492934,1000067495
07.06.2022,ADULT SOCIAL CARE,GOLD CARE HOMES (BAUGH HOUSE),"3,649.60",PHY LTS 65+,NURSING PLACEMENTS FEES,2103493438,1000067495
07.06.2022,ADULT SOCIAL CARE,GOLD CARE HOMES (BAUGH HOUSE),"4,150.84",PHY LTS 65+,NURSING PLACEMENTS FEES,2103492591,1000067495
07.06.2022,ADULT SOCIAL CARE,HC-ONE LTD (TOWER BRIDGE CARE HOME),"-1,838.57",PHY LTS 65+,NURSING PLACEMENTS FEES,2103493052,1000067670
07.06.2022,ADULT SOCIAL CARE,HC-ONE LTD (TOWER BRIDGE CARE HOME),"-1,657.14",PHY LTS 65+,NURSING PLACEMENTS FEES,2103493176,1000067670
07.06.2022,ADULT SOCIAL CARE,HC-ONE LTD (TOWER BRIDGE CARE HOME),"-1,430.00",PHY LTS 65+,NURSING PLACEMENTS FEES,2103492499,1000067670
07.06.2022,ADULT SOCIAL CARE,HC-ONE LTD (TOWER BRIDGE CARE HOME),"-1,139.29",PHY LTS 65+,NURSING PLACEMENTS FEES,2103492711,1000067670
07.06.2022,ADULT SOCIAL CARE,HC-ONE LTD (TOWER BRIDGE CARE HOME),-408.57,PHY LTS 65+,NURSING PLACEMENTS FEES,2103493400,1000067670
07.06.2022,ADULT SOCIAL CARE,HC-ONE LTD (TOWER BRIDGE CARE HOME),"2,860.00",PHY LTS 65+,NURSING PLACEMENTS FEES,2103492390,1000067670
07.06.2022,ADULT SOCIAL CARE,HC-ONE LTD (TOWER BRIDGE CARE HOME),"2,860.00",PHY LTS 65+,NURSING PLACEMENTS FEES,2103492397,1000067670
07.06.2022,ADULT SOCIAL CARE,HC-ONE LTD (TOWER BRIDGE CARE HOME),"2,860.00",PHY LTS 65+,NURSING PLACEMENTS FEES,2103492554,1000067670
07.06.2022,ADULT SOCIAL CARE,HC-ONE LTD (TOWER BRIDGE CARE HOME),"2,860.00",PHY LTS 65+,NURSING PLACEMENTS FEES,2103492576,1000067670
07.06.2022,ADULT SOCIAL CARE,HC-ONE LTD (TOWER BRIDGE CARE HOME),"2,860.00",PHY LTS 65+,NURSING PLACEMENTS FEES,2103492690,1000067670
07.06.2022,ADULT SOCIAL CARE,HC-ONE LTD (TOWER BRIDGE CARE HOME),"2,860.00",PHY LTS 65+,NURSING PLACEMENTS FEES,2103492716,1000067670
07.06.2022,ADULT SOCIAL CARE,HC-ONE LTD (TOWER BRIDGE CARE HOME),"2,860.00",PHY LTS 65+,NURSING PLACEMENTS FEES,2103492837,1000067670
07.06.2022,ADULT SOCIAL CARE,HC-ONE LTD (TOWER BRIDGE CARE HOME),"2,860.00",PHY LTS 65+,NURSING PLACEMENTS FEES,2103492839,1000067670
07.06.2022,ADULT SOCIAL CARE,HC-ONE LTD (TOWER BRIDGE CARE HOME),"2,860.00",PHY LTS 65+,NURSING PLACEMENTS FEES,2103492847,1000067670
07.06.2022,ADULT SOCIAL CARE,HC-ONE LTD (TOWER BRIDGE CARE HOME),"2,860.00",PHY LTS 65+,NURSING PLACEMENTS FEES,2103492855,1000067670
07.06.2022,ADULT SOCIAL CARE,HC-ONE LTD (TOWER BRIDGE CARE HOME),"2,860.00",PHY LTS 65+,NURSING PLACEMENTS FEES,2103492857,1000067670
07.06.2022,ADULT SOCIAL CARE,HC-ONE LTD (TOWER BRIDGE CARE HOME),"2,860.00",PHY LTS 65+,NURSING PLACEMENTS FEES,2103492909,1000067670
07.06.2022,ADULT SOCIAL CARE,HC-ONE LTD (TOWER BRIDGE CARE HOME),"2,860.00",PHY LTS 65+,NURSING PLACEMENTS FEES,2103493057,1000067670
07.06.2022,ADULT SOCIAL CARE,HC-ONE LTD (TOWER BRIDGE CARE HOME),"2,860.00",PHY LTS 65+,NURSING PLACEMENTS FEES,2103493106,1000067670
07.06.2022,ADULT SOCIAL CARE,HC-ONE LTD (TOWER BRIDGE CARE HOME),"2,860.00",PHY LTS 65+,NURSING PLACEMENTS FEES,2103493121,1000067670
07.06.2022,ADULT SOCIAL CARE,HC-ONE LTD (TOWER BRIDGE CARE HOME),"2,860.00",PHY LTS 65+,NURSING PLACEMENTS FEES,2103493178,1000067670
07.06.2022,ADULT SOCIAL CARE,HC-ONE LTD (TOWER BRIDGE CARE HOME),"2,860.00",PHY LTS 65+,NURSING PLACEMENTS FEES,2103493323,1000067670
07.06.2022,ADULT SOCIAL CARE,HC-ONE LTD (TOWER BRIDGE CARE HOME),"2,860.00",PHY LTS 65+,NURSING PLACEMENTS FEES,2103493330,1000067670
07.06.2022,ADULT SOCIAL CARE,HC-ONE LTD (TOWER BRIDGE CARE HOME),"2,860.00",PHY LTS 65+,NURSING PLACEMENTS FEES,2103493338,1000067670
07.06.2022,ADULT SOCIAL CARE,HC-ONE LTD (TOWER BRIDGE CARE HOME),"2,860.00",PHY LTS 65+,NURSING PLACEMENTS FEES,2103493342,1000067670
07.06.2022,ADULT SOCIAL CARE,HC-ONE LTD (TOWER BRIDGE CARE HOME),"2,900.00",PHY LTS 65+,NURSING PLACEMENTS FEES,2103492321,1000067670
07.06.2022,ADULT SOCIAL CARE,HC-ONE LTD (TOWER BRIDGE CARE HOME),"2,900.00",PHY LTS 65+,NURSING PLACEMENTS FEES,2103492398,1000067670
07.06.2022,ADULT SOCIAL CARE,HC-ONE LTD (TOWER BRIDGE CARE HOME),"2,900.00",PHY LTS 65+,NURSING PLACEMENTS FEES,2103492400,1000067670
07.06.2022,ADULT SOCIAL CARE,HC-ONE LTD (TOWER BRIDGE CARE HOME),"2,900.00",PHY LTS 65+,NURSING PLACEMENTS FEES,2103492551,1000067670
07.06.2022,ADULT SOCIAL CARE,HC-ONE LTD (TOWER BRIDGE CARE HOME),"2,900.00",PHY LTS 65+,NURSING PLACEMENTS FEES,2103492553,1000067670
07.06.2022,ADULT SOCIAL CARE,HC-ONE LTD (TOWER BRIDGE CARE HOME),"2,900.00",PHY LTS 65+,NURSING PLACEMENTS FEES,2103492580,1000067670
07.06.2022,ADULT SOCIAL CARE,HC-ONE LTD (TOWER BRIDGE CARE HOME),"2,900.00",PHY LTS 65+,NURSING PLACEMENTS FEES,2103492720,1000067670
07.06.2022,ADULT SOCIAL CARE,HC-ONE LTD (TOWER BRIDGE CARE HOME),"2,900.00",PHY LTS 65+,NURSING PLACEMENTS FEES,2103492818,1000067670
07.06.2022,ADULT SOCIAL CARE,HC-ONE LTD (TOWER BRIDGE CARE HOME),"2,900.00",PHY LTS 65+,NURSING PLACEMENTS FEES,2103492850,1000067670
07.06.2022,ADULT SOCIAL CARE,HC-ONE LTD (TOWER BRIDGE CARE HOME),"2,900.00",PHY LTS 65+,NURSING PLACEMENTS FEES,2103492860,1000067670
07.06.2022,ADULT SOCIAL CARE,HC-ONE LTD (TOWER BRIDGE CARE HOME),"2,900.00",PHY LTS 65+,NURSING PLACEMENTS FEES,2103493045,1000067670
07.06.2022,ADULT SOCIAL CARE,HC-ONE LTD (TOWER BRIDGE CARE HOME),"2,900.00",PHY LTS 65+,NURSING PLACEMENTS FEES,2103493051,1000067670
07.06.2022,ADULT SOCIAL CARE,HC-ONE LTD (TOWER BRIDGE CARE HOME),"2,900.00",PHY LTS 65+,NURSING PLACEMENTS FEES,2103493067,1000067670
07.06.2022,ADULT SOCIAL CARE,HC-ONE LTD (TOWER BRIDGE CARE HOME),"2,900.00",PHY LTS 65+,NURSING PLACEMENTS FEES,2103493170,1000067670
07.06.2022,ADULT SOCIAL CARE,HC-ONE LTD (TOWER BRIDGE CARE HOME),"2,900.00",PHY LTS 65+,NURSING PLACEMENTS FEES,2103493175,1000067670
07.06.2022,ADULT SOCIAL CARE,HC-ONE LTD (TOWER BRIDGE CARE HOME),"2,900.00",PHY LTS 65+,NURSING PLACEMENTS FEES,2103493235,1000067670
07.06.2022,ADULT SOCIAL CARE,HC-ONE LTD (TOWER BRIDGE CARE HOME),"2,900.00",PHY LTS 65+,NURSING PLACEMENTS FEES,2103493347,1000067670
07.06.2022,ADULT SOCIAL CARE,HC-ONE LTD (TOWER BRIDGE CARE HOME),"2,900.00",PHY LTS 65+,NURSING PLACEMENTS FEES,2103493450,1000067670
07.06.2022,ADULT SOCIAL CARE,HC-ONE LTD (TOWER BRIDGE CARE HOME),"2,900.00",PHY LTS 65+,NURSING PLACEMENTS FEES,2103493453,1000067670
07.06.2022,ADULT SOCIAL CARE,HC-ONE LTD (TOWER BRIDGE CARE HOME),"4,764.29",PHY LTS 65+,NURSING PLACEMENTS FEES,2103492798,1000067670
07.06.2022,ADULT SOCIAL CARE,HC-ONE LTD (TOWER BRIDGE CARE HOME),"5,413.57",PHY LTS 65+,NURSING PLACEMENTS FEES,2103493440,1000067670
07.06.2022,ADULT SOCIAL CARE,HC-ONE LTD (TOWER BRIDGE CARE HOME),"6,128.57",PHY LTS 65+,NURSING PLACEMENTS FEES,2103492543,1000067670
07.06.2022,ADULT SOCIAL CARE,HC-ONE LTD (TOWER BRIDGE CARE HOME),"6,214.29",PHY LTS 65+,NURSING PLACEMENTS FEES,2103492658,1000067670
07.06.2022,ADULT SOCIAL CARE,HC-ONE LTD (TOWER BRIDGE CARE HOME),"23,925.00",PHY LTS 65+,NURSING PLACEMENTS FEES,2103492924,1000067670
07.06.2022,ADULT SOCIAL CARE,HC-ONE LTD (ALEXANDER CARE CENTRE),"3,039.64",PHY LTS 65+,NURSING PLACEMENTS FEES,2103493157,1000068551
07.06.2022,ADULT SOCIAL CARE,ABBEY HEALTHCARE GROUP,"3,060.24",PHY LTS 65+,NURSING PLACEMENTS FEES,2103492654,1000072304
07.06.2022,ADULT SOCIAL CARE,MIDDLETON GROVE LIMITED,"2,675.16",PHY LTS 65+,NURSING PLACEMENTS FEES,2103492938,1000076128
07.06.2022,ADULT SOCIAL CARE,HEATHERDENE NURSING HOME LTD,"2,445.72",PHY LTS 65+,NURSING PLACEMENTS FEES,2103493108,1000076774
07.06.2022,ADULT SOCIAL CARE,ST MARY'S CARE HOMES,"2,742.16",PHY LTS 65+,NURSING PLACEMENTS FEES,2103492373,1000079984
07.06.2022,ADULT SOCIAL CARE,ST MARY'S CARE HOMES,"3,690.00",PHY LTS 65+,NURSING PLACEMENTS FEES,2103492696,1000079984
07.06.2022,ADULT SOCIAL CARE,THE GRESHAM CARE HOME LTD,"2,599.04",PHY LTS 65+,NURSING PLACEMENTS FEES,2103492613,1000080194
07.06.2022,ADULT SOCIAL CARE,CARING HOMES HEALTHCARE GROUP LTD,"2,449.24",PHY LTS 65+,NURSING PLACEMENTS FEES,2103492315,1000080206
07.06.2022,ADULT SOCIAL CARE,PUDDINGSTONE GRANGE CARE HOME,"2,730.92",PHY LTS 65+,NURSING PLACEMENTS FEES,2103493304,1000080394
07.06.2022,ADULT SOCIAL CARE,LORVEN HOUSING LTD,"3,112.56",PHY LTS 65+,NURSING PLACEMENTS FEES,2103492281,1000081693
07.06.2022,ADULT SOCIAL CARE,LORVEN HOUSING LTD,"4,011.84",PHY LTS 65+,NURSING PLACEMENTS FEES,2103492811,1000081693
07.06.2022,ADULT SOCIAL CARE,LORVEN HOUSING LTD,"6,891.92",PHY LTS 65+,NURSING PLACEMENTS FEES,2103493267,1000081693
07.06.2022,ADULT SOCIAL CARE,THE CONIFERS HEALTHCARE LTD,"3,119.44",PHY LTS 65+,NURSING PLACEMENTS FEES,2103492304,1000082175
07.06.2022,ADULT SOCIAL CARE,AMBRECK LLP,"7,380.00",PHY LTS 65+,NURSING PLACEMENTS FEES,2103493161,1000083467
07.06.2022,ADULT SOCIAL CARE,ARLINGTON COURT CARE HOME,434.64,PHY LTS 65+,NURSING PLACEMENTS FEES,2103401582,1000084313
07.06.2022,ADULT SOCIAL CARE,ARLINGTON COURT CARE HOME,"2,472.32",PHY LTS 65+,NURSING PLACEMENTS FEES,2103337169,1000084313
07.06.2022,ADULT SOCIAL CARE,ARLINGTON COURT CARE HOME,"2,472.32",PHY LTS 65+,NURSING PLACEMENTS FEES,2103348786,1000084313
07.06.2022,ADULT SOCIAL CARE,ARLINGTON COURT CARE HOME,"2,472.32",PHY LTS 65+,NURSING PLACEMENTS FEES,2103362422,1000084313
07.06.2022,ADULT SOCIAL CARE,ARLINGTON COURT CARE HOME,"2,472.32",PHY LTS 65+,NURSING PLACEMENTS FEES,2103373068,1000084313
07.06.2022,ADULT SOCIAL CARE,ARLINGTON COURT CARE HOME,"2,472.32",PHY LTS 65+,NURSING PLACEMENTS FEES,2103386212,1000084313
07.06.2022,ADULT SOCIAL CARE,ARLINGTON COURT CARE HOME,"2,674.56",PHY LTS 65+,NURSING PLACEMENTS FEES,2103460436,1000084313
07.06.2022,ADULT SOCIAL CARE,ARLINGTON COURT CARE HOME,"2,741.44",PHY LTS 65+,NURSING PLACEMENTS FEES,2103493040,1000084313
07.06.2022,ADULT SOCIAL CARE,ARLINGTON COURT CARE HOME,"2,798.77",PHY LTS 65+,NURSING PLACEMENTS FEES,2103476028,1000084313
07.06.2022,ADULT SOCIAL CARE,ARLINGTON COURT CARE HOME,"5,639.39",PHY LTS 65+,NURSING PLACEMENTS FEES,2103400771,1000084313
07.06.2022,ADULT SOCIAL CARE,INDIGO CARE SERVICES LIMITED,"2,400.60",PHY LTS 65+,NURSING PLACEMENTS FEES,2103492991,1000086418
07.06.2022,ADULT SOCIAL CARE,GCH (MIDLANDS) LTD T\A BLETCHLEY HOUSE,"2,785.44",PHY LTS 65+,NURSING PLACEMENTS FEES,2103493349,1000087260
07.06.2022,ADULT SOCIAL CARE,CHURCHILL RESIDENTIAL CARE & NURS'G,"3,334.88",PHY LTS 65+,NURSING PLACEMENTS FEES,2103493196,1000087931
07.06.2022,ADULT SOCIAL CARE,HYDEFALL LTD T/A SUTTON COURT CARE CENTRE,"3,330.84",PHY LTS 65+,NURSING PLACEMENTS FEES,2103492583,1000088089
07.06.2022,ADULT SOCIAL CARE,WOODFIELD CARE HOME LTD,"2,737.04",PHY LTS 65+,NURSING PLACEMENTS FEES,2103492678,1000088158
07.06.2022,ADULT SOCIAL CARE,MIDDLETON GROVE LIMITED,-997.14,PHY LTS 65+,RECOVERABLE COSTS INCL. HEALTH,2103493508,1000076128
07.06.2022,ADULT SOCIAL CARE,MIDDLETON GROVE LIMITED,997.14,PHY LTS 65+,RECOVERABLE COSTS INCL. HEALTH,2103492939,1000076128
07.06.2022,ADULT SOCIAL CARE,LOVE WALK HOSTEL FOR DISABLED,"3,529.60",PHY LTS 65+,RESIDENTIAL CARE,2103493218,1008978
07.06.2022,ADULT SOCIAL CARE,LOVE WALK HOSTEL FOR DISABLED,"3,648.24",PHY LTS 65+,RESIDENTIAL CARE,2103492378,1008978
07.06.2022,ADULT SOCIAL CARE,STRODE PARK FNDN FOR THE DISABLED,"4,462.72",PHY LTS 65+,RESIDENTIAL CARE,2103493114,1030892
07.06.2022,ADULT SOCIAL CARE,SOUTH EAST LONDON BAPTIST HOME,"2,410.80",PHY LTS 65+,RESIDENTIAL CARE,2103493506,1670766
07.06.2022,ADULT SOCIAL CARE,SOUTH EAST LONDON BAPTIST HOME,"2,843.28",PHY LTS 65+,RESIDENTIAL CARE,2103493332,1670766
07.06.2022,ADULT SOCIAL CARE,SOUTH EAST LONDON BAPTIST HOME,"3,174.80",PHY LTS 65+,RESIDENTIAL CARE,2103493233,1670766
07.06.2022,ADULT SOCIAL CARE,PARKVIEW NURSING HOME,"3,514.88",PHY LTS 65+,RESIDENTIAL CARE,2103492699,1776618
07.06.2022,ADULT SOCIAL CARE,LITTLE SISTERS OF THE POOR,"2,469.92",PHY LTS 65+,RESIDENTIAL CARE,2103492874,1860341
07.06.2022,ADULT SOCIAL CARE,LITTLE SISTERS OF THE POOR,"5,403.99",PHY LTS 65+,RESIDENTIAL CARE,2103492797,1860341
07.06.2022,ADULT SOCIAL CARE,PENERLEY LODGE LTD,"3,167.24",PHY LTS 65+,RESIDENTIAL CARE,2103492875,1958913
07.06.2022,ADULT SOCIAL CARE,AVANTE PARTNERSHIP (WEYBOURNE),"2,391.04",PHY LTS 65+,RESIDENTIAL CARE,2103493390,11130185
07.06.2022,ADULT SOCIAL CARE,AVANTE PARTNERSHIP (WEYBOURNE),"2,842.88",PHY LTS 65+,RESIDENTIAL CARE,2103492780,11130185
07.06.2022,ADULT SOCIAL CARE,AVANTE PARTNERSHIP (WEYBOURNE),"2,856.76",PHY LTS 65+,RESIDENTIAL CARE,2103493214,11130185
07.06.2022,ADULT SOCIAL CARE,AVANTE PARTNERSHIP (WEYBOURNE),"2,856.76",PHY LTS 65+,RESIDENTIAL CARE,2103493215,11130185
07.06.2022,ADULT SOCIAL CARE,SIDCUP NURSING & RESIDENTIAL CENTRE,"2,700.80",PHY LTS 65+,RESIDENTIAL CARE,2103493044,11251534
07.06.2022,ADULT SOCIAL CARE,ANCHOR TRUST,-560.26,PHY LTS 65+,RESIDENTIAL CARE,2103492585,11257534
07.06.2022,ADULT SOCIAL CARE,ANCHOR TRUST,"2,158.96",PHY LTS 65+,RESIDENTIAL CARE,2103492277,11257534
07.06.2022,ADULT SOCIAL CARE,ANCHOR TRUST,"2,167.12",PHY LTS 65+,RESIDENTIAL CARE,2103492686,11257534
07.06.2022,ADULT SOCIAL CARE,ANCHOR TRUST,"2,167.12",PHY LTS 65+,RESIDENTIAL CARE,2103492853,11257534
07.06.2022,ADULT SOCIAL CARE,ANCHOR TRUST,"2,167.12",PHY LTS 65+,RESIDENTIAL CARE,2103493379,11257534
07.06.2022,ADULT SOCIAL CARE,ANCHOR TRUST,"2,167.12",PHY LTS 65+,RESIDENTIAL CARE,2103493394,11257534
07.06.2022,ADULT SOCIAL CARE,ANCHOR TRUST,"2,167.12",PHY LTS 65+,RESIDENTIAL CARE,2103493476,11257534
07.06.2022,ADULT SOCIAL CARE,ANCHOR TRUST,"2,241.04",PHY LTS 65+,RESIDENTIAL CARE,2103492358,11257534
07.06.2022,ADULT SOCIAL CARE,ANCHOR TRUST,"2,241.04",PHY LTS 65+,RESIDENTIAL CARE,2103492391,11257534
07.06.2022,ADULT SOCIAL CARE,ANCHOR TRUST,"2,241.04",PHY LTS 65+,RESIDENTIAL CARE,2103492411,11257534
07.06.2022,ADULT SOCIAL CARE,ANCHOR TRUST,"2,241.04",PHY LTS 65+,RESIDENTIAL CARE,2103492413,11257534
07.06.2022,ADULT SOCIAL CARE,ANCHOR TRUST,"2,241.04",PHY LTS 65+,RESIDENTIAL CARE,2103492423,11257534
07.06.2022,ADULT SOCIAL CARE,ANCHOR TRUST,"2,241.04",PHY LTS 65+,RESIDENTIAL CARE,2103492441,11257534
07.06.2022,ADULT SOCIAL CARE,ANCHOR TRUST,"2,241.04",PHY LTS 65+,RESIDENTIAL CARE,2103492481,11257534
07.06.2022,ADULT SOCIAL CARE,ANCHOR TRUST,"2,241.04",PHY LTS 65+,RESIDENTIAL CARE,2103492484,11257534
07.06.2022,ADULT SOCIAL CARE,ANCHOR TRUST,"2,241.04",PHY LTS 65+,RESIDENTIAL CARE,2103492493,11257534
07.06.2022,ADULT SOCIAL CARE,ANCHOR TRUST,"2,241.04",PHY LTS 65+,RESIDENTIAL CARE,2103492561,11257534
07.06.2022,ADULT SOCIAL CARE,ANCHOR TRUST,"2,241.04",PHY LTS 65+,RESIDENTIAL CARE,2103492614,11257534
07.06.2022,ADULT SOCIAL CARE,ANCHOR TRUST,"2,241.04",PHY LTS 65+,RESIDENTIAL CARE,2103492697,11257534
07.06.2022,ADULT SOCIAL CARE,ANCHOR TRUST,"2,241.04",PHY LTS 65+,RESIDENTIAL CARE,2103492714,11257534
07.06.2022,ADULT SOCIAL CARE,ANCHOR TRUST,"2,241.04",PHY LTS 65+,RESIDENTIAL CARE,2103492748,11257534
07.06.2022,ADULT SOCIAL CARE,ANCHOR TRUST,"2,241.04",PHY LTS 65+,RESIDENTIAL CARE,2103492753,11257534
07.06.2022,ADULT SOCIAL CARE,ANCHOR TRUST,"2,241.04",PHY LTS 65+,RESIDENTIAL CARE,2103492754,11257534
07.06.2022,ADULT SOCIAL CARE,ANCHOR TRUST,"2,241.04",PHY LTS 65+,RESIDENTIAL CARE,2103492782,11257534
07.06.2022,ADULT SOCIAL CARE,ANCHOR TRUST,"2,241.04",PHY LTS 65+,RESIDENTIAL CARE,2103492814,11257534
07.06.2022,ADULT SOCIAL CARE,ANCHOR TRUST,"2,241.04",PHY LTS 65+,RESIDENTIAL CARE,2103492833,11257534
07.06.2022,ADULT SOCIAL CARE,ANCHOR TRUST,"2,241.04",PHY LTS 65+,RESIDENTIAL CARE,2103492842,11257534
07.06.2022,ADULT SOCIAL CARE,ANCHOR TRUST,"2,241.04",PHY LTS 65+,RESIDENTIAL CARE,2103492888,11257534
07.06.2022,ADULT SOCIAL CARE,ANCHOR TRUST,"2,241.04",PHY LTS 65+,RESIDENTIAL CARE,2103492916,11257534
07.06.2022,ADULT SOCIAL CARE,ANCHOR TRUST,"2,241.04",PHY LTS 65+,RESIDENTIAL CARE,2103492941,11257534
07.06.2022,ADULT SOCIAL CARE,ANCHOR TRUST,"2,241.04",PHY LTS 65+,RESIDENTIAL CARE,2103492978,11257534
07.06.2022,ADULT SOCIAL CARE,ANCHOR TRUST,"2,241.04",PHY LTS 65+,RESIDENTIAL CARE,2103493004,11257534
07.06.2022,ADULT SOCIAL CARE,ANCHOR TRUST,"2,241.04",PHY LTS 65+,RESIDENTIAL CARE,2103493010,11257534
07.06.2022,ADULT SOCIAL CARE,ANCHOR TRUST,"2,241.04",PHY LTS 65+,RESIDENTIAL CARE,2103493015,11257534
07.06.2022,ADULT SOCIAL CARE,ANCHOR TRUST,"2,241.04",PHY LTS 65+,RESIDENTIAL CARE,2103493098,11257534
07.06.2022,ADULT SOCIAL CARE,ANCHOR TRUST,"2,241.04",PHY LTS 65+,RESIDENTIAL CARE,2103493124,11257534
07.06.2022,ADULT SOCIAL CARE,ANCHOR TRUST,"2,241.04",PHY LTS 65+,RESIDENTIAL CARE,2103493169,11257534
07.06.2022,ADULT SOCIAL CARE,ANCHOR TRUST,"2,241.04",PHY LTS 65+,RESIDENTIAL CARE,2103493191,11257534
07.06.2022,ADULT SOCIAL CARE,ANCHOR TRUST,"2,241.04",PHY LTS 65+,RESIDENTIAL CARE,2103493225,11257534
07.06.2022,ADULT SOCIAL CARE,ANCHOR TRUST,"2,241.04",PHY LTS 65+,RESIDENTIAL CARE,2103493248,11257534
07.06.2022,ADULT SOCIAL CARE,ANCHOR TRUST,"2,241.04",PHY LTS 65+,RESIDENTIAL CARE,2103493249,11257534
07.06.2022,ADULT SOCIAL CARE,ANCHOR TRUST,"2,241.04",PHY LTS 65+,RESIDENTIAL CARE,2103493280,11257534
07.06.2022,ADULT SOCIAL CARE,ANCHOR TRUST,"2,241.04",PHY LTS 65+,RESIDENTIAL CARE,2103493291,11257534
07.06.2022,ADULT SOCIAL CARE,ANCHOR TRUST,"2,241.04",PHY LTS 65+,RESIDENTIAL CARE,2103493312,11257534
07.06.2022,ADULT SOCIAL CARE,ANCHOR TRUST,"2,241.04",PHY LTS 65+,RESIDENTIAL CARE,2103493367,11257534
07.06.2022,ADULT SOCIAL CARE,ANCHOR TRUST,"2,656.26",PHY LTS 65+,RESIDENTIAL CARE,2103492355,11257534
07.06.2022,ADULT SOCIAL CARE,ANCHOR TRUST,"2,656.26",PHY LTS 65+,RESIDENTIAL CARE,2103492356,11257534
07.06.2022,ADULT SOCIAL CARE,ANCHOR TRUST,"2,656.26",PHY LTS 65+,RESIDENTIAL CARE,2103492456,11257534
07.06.2022,ADULT SOCIAL CARE,ANCHOR TRUST,"2,656.26",PHY LTS 65+,RESIDENTIAL CARE,2103492640,11257534
07.06.2022,ADULT SOCIAL CARE,ANCHOR TRUST,"2,656.26",PHY LTS 65+,RESIDENTIAL CARE,2103492812,11257534
07.06.2022,ADULT SOCIAL CARE,ANCHOR TRUST,"2,656.26",PHY LTS 65+,RESIDENTIAL CARE,2103492848,11257534
07.06.2022,ADULT SOCIAL CARE,ANCHOR TRUST,"2,656.26",PHY LTS 65+,RESIDENTIAL CARE,2103492854,11257534
07.06.2022,ADULT SOCIAL CARE,ANCHOR TRUST,"2,656.26",PHY LTS 65+,RESIDENTIAL CARE,2103492861,11257534
07.06.2022,ADULT SOCIAL CARE,ANCHOR TRUST,"2,656.26",PHY LTS 65+,RESIDENTIAL CARE,2103492914,11257534
07.06.2022,ADULT SOCIAL CARE,ANCHOR TRUST,"2,656.26",PHY LTS 65+,RESIDENTIAL CARE,2103493346,11257534
07.06.2022,ADULT SOCIAL CARE,ANCHOR TRUST,"2,656.26",PHY LTS 65+,RESIDENTIAL CARE,2103493419,11257534
07.06.2022,ADULT SOCIAL CARE,ANCHOR TRUST,"2,746.83",PHY LTS 65+,RESIDENTIAL CARE,2103492508,11257534
07.06.2022,ADULT SOCIAL CARE,ANCHOR TRUST,"2,746.83",PHY LTS 65+,RESIDENTIAL CARE,2103492813,11257534
07.06.2022,ADULT SOCIAL CARE,ANCHOR TRUST,"2,746.83",PHY LTS 65+,RESIDENTIAL CARE,2103492983,11257534
07.06.2022,ADULT SOCIAL CARE,ANCHOR TRUST,"2,746.83",PHY LTS 65+,RESIDENTIAL CARE,2103493104,11257534
07.06.2022,ADULT SOCIAL CARE,ANCHOR TRUST,"2,746.83",PHY LTS 65+,RESIDENTIAL CARE,2103493167,11257534
07.06.2022,ADULT SOCIAL CARE,ANCHOR TRUST,"2,746.83",PHY LTS 65+,RESIDENTIAL CARE,2103493395,11257534
07.06.2022,ADULT SOCIAL CARE,ANCHOR TRUST,"2,746.87",PHY LTS 65+,RESIDENTIAL CARE,2103492354,11257534
07.06.2022,ADULT SOCIAL CARE,ANCHOR TRUST,"2,746.87",PHY LTS 65+,RESIDENTIAL CARE,2103492642,11257534
07.06.2022,ADULT SOCIAL CARE,ANCHOR TRUST,"2,746.87",PHY LTS 65+,RESIDENTIAL CARE,2103492643,11257534
07.06.2022,ADULT SOCIAL CARE,ANCHOR TRUST,"2,746.87",PHY LTS 65+,RESIDENTIAL CARE,2103492769,11257534
07.06.2022,ADULT SOCIAL CARE,ANCHOR TRUST,"2,746.87",PHY LTS 65+,RESIDENTIAL CARE,2103492789,11257534
07.06.2022,ADULT SOCIAL CARE,ANCHOR TRUST,"2,746.87",PHY LTS 65+,RESIDENTIAL CARE,2103492926,11257534
07.06.2022,ADULT SOCIAL CARE,ANCHOR TRUST,"2,746.87",PHY LTS 65+,RESIDENTIAL CARE,2103492973,11257534
07.06.2022,ADULT SOCIAL CARE,ANCHOR TRUST,"2,746.87",PHY LTS 65+,RESIDENTIAL CARE,2103492974,11257534
07.06.2022,ADULT SOCIAL CARE,ANCHOR TRUST,"2,746.87",PHY LTS 65+,RESIDENTIAL CARE,2103493060,11257534
07.06.2022,ADULT SOCIAL CARE,ANCHOR TRUST,"2,746.87",PHY LTS 65+,RESIDENTIAL CARE,2103493090,11257534
07.06.2022,ADULT SOCIAL CARE,ANCHOR TRUST,"2,746.87",PHY LTS 65+,RESIDENTIAL CARE,2103493093,11257534
07.06.2022,ADULT SOCIAL CARE,ANCHOR TRUST,"2,746.87",PHY LTS 65+,RESIDENTIAL CARE,2103493094,11257534
07.06.2022,ADULT SOCIAL CARE,ANCHOR TRUST,"2,746.87",PHY LTS 65+,RESIDENTIAL CARE,2103493368,11257534
07.06.2022,ADULT SOCIAL CARE,ANCHOR TRUST,"2,746.87",PHY LTS 65+,RESIDENTIAL CARE,2103493370,11257534
07.06.2022,ADULT SOCIAL CARE,ANCHOR TRUST,"2,746.87",PHY LTS 65+,RESIDENTIAL CARE,2103493371,11257534
07.06.2022,ADULT SOCIAL CARE,ANCHOR TRUST,"2,746.87",PHY LTS 65+,RESIDENTIAL CARE,2103493372,11257534
07.06.2022,ADULT SOCIAL CARE,ANCHOR TRUST,"3,292.65",PHY LTS 65+,RESIDENTIAL CARE,2103492687,11257534
07.06.2022,ADULT SOCIAL CARE,ANCHOR TRUST,"3,292.65",PHY LTS 65+,RESIDENTIAL CARE,2103492849,11257534
07.06.2022,ADULT SOCIAL CARE,ANCHOR TRUST,"3,292.65",PHY LTS 65+,RESIDENTIAL CARE,2103493393,11257534
07.06.2022,ADULT SOCIAL CARE,ANCHOR TRUST,"3,292.70",PHY LTS 65+,RESIDENTIAL CARE,2103492405,11257534
07.06.2022,ADULT SOCIAL CARE,ANCHOR TRUST,"3,627.06",PHY LTS 65+,RESIDENTIAL CARE,2103493261,11257534
07.06.2022,ADULT SOCIAL CARE,CHARING COURT INVESTMENTS LTD,"2,767.52",PHY LTS 65+,RESIDENTIAL CARE,2103493059,1000015545
07.06.2022,ADULT SOCIAL CARE,HAVELOCK COURT (BUPA CARE),"4,011.84",PHY LTS 65+,RESIDENTIAL CARE,2103492679,1000028902
07.06.2022,ADULT SOCIAL CARE,HAVELOCK COURT (BUPA CARE),"4,257.40",PHY LTS 65+,RESIDENTIAL CARE,2103493325,1000028902
07.06.2022,ADULT SOCIAL CARE,LONDON RESIDENTIAL HEALTHCARE LTD,"3,485.00",PHY LTS 65+,RESIDENTIAL CARE,2103492453,1000030895
07.06.2022,ADULT SOCIAL CARE,MEDICREST LTD (ACORN LODGE),"2,799.84",PHY LTS 65+,RESIDENTIAL CARE,2103492387,1000037363
07.06.2022,ADULT SOCIAL CARE,QUEENS OAK CARE CENTRE,883.04,PHY LTS 65+,RESIDENTIAL CARE,2103492981,1000049621
07.06.2022,ADULT SOCIAL CARE,QUEENS OAK CARE CENTRE,"3,259.52",PHY LTS 65+,RESIDENTIAL CARE,2103492733,1000049621
07.06.2022,ADULT SOCIAL CARE,QUEENS OAK CARE CENTRE,"3,259.52",PHY LTS 65+,RESIDENTIAL CARE,2103492910,1000049621
07.06.2022,ADULT SOCIAL CARE,QUEENS OAK CARE CENTRE,"3,634.28",PHY LTS 65+,RESIDENTIAL CARE,2103492651,1000049621
07.06.2022,ADULT SOCIAL CARE,NELLSAR LTD,"2,550.24",PHY LTS 65+,RESIDENTIAL CARE,2103492497,1000053219
07.06.2022,ADULT SOCIAL CARE,HAYDALE NURSING HOME,"2,359.12",PHY LTS 65+,RESIDENTIAL CARE,2103492417,1000057063
07.06.2022,ADULT SOCIAL CARE,N NOTARO HOMES LTD,"2,338.64",PHY LTS 65+,RESIDENTIAL CARE,2103492382,1000061594
07.06.2022,ADULT SOCIAL CARE,HIGH VIEW CARE SERVICES LTD,"5,538.04",PHY LTS 65+,RESIDENTIAL CARE,2103493210,1000066240
07.06.2022,ADULT SOCIAL CARE,WESTHOPE LTD,"5,431.56",PHY LTS 65+,RESIDENTIAL CARE,2103492871,1000066612
07.06.2022,ADULT SOCIAL CARE,GOLD CARE HOMES (BAUGH HOUSE),"2,956.08",PHY LTS 65+,RESIDENTIAL CARE,2103492873,1000067495
07.06.2022,ADULT SOCIAL CARE,GOLD CARE HOMES (BAUGH HOUSE),"2,956.08",PHY LTS 65+,RESIDENTIAL CARE,2103493505,1000067495
07.06.2022,ADULT SOCIAL CARE,HC-ONE LTD (TOWER BRIDGE CARE HOME),"2,670.84",PHY LTS 65+,RESIDENTIAL CARE,2103492364,1000067670
07.06.2022,ADULT SOCIAL CARE,HC-ONE LTD (TOWER BRIDGE CARE HOME),"2,670.84",PHY LTS 65+,RESIDENTIAL CARE,2103492366,1000067670
07.06.2022,ADULT SOCIAL CARE,HC-ONE LTD (TOWER BRIDGE CARE HOME),"2,670.84",PHY LTS 65+,RESIDENTIAL CARE,2103492425,1000067670
07.06.2022,ADULT SOCIAL CARE,HC-ONE LTD (TOWER BRIDGE CARE HOME),"2,670.84",PHY LTS 65+,RESIDENTIAL CARE,2103492556,1000067670
07.06.2022,ADULT SOCIAL CARE,HC-ONE LTD (TOWER BRIDGE CARE HOME),"2,670.84",PHY LTS 65+,RESIDENTIAL CARE,2103492752,1000067670
07.06.2022,ADULT SOCIAL CARE,HC-ONE LTD (TOWER BRIDGE CARE HOME),"2,670.84",PHY LTS 65+,RESIDENTIAL CARE,2103493237,1000067670
07.06.2022,ADULT SOCIAL CARE,HC-ONE LTD (TOWER BRIDGE CARE HOME),"2,670.84",PHY LTS 65+,RESIDENTIAL CARE,2103493240,1000067670
07.06.2022,ADULT SOCIAL CARE,HC-ONE LTD (TOWER BRIDGE CARE HOME),"2,675.08",PHY LTS 65+,RESIDENTIAL CARE,2103493013,1000067670
07.06.2022,ADULT SOCIAL CARE,C & P LTD (KIMBERLEY CARE),"2,552.08",PHY LTS 65+,RESIDENTIAL CARE,2103492835,1000068510
07.06.2022,ADULT SOCIAL CARE,GOLD CARE HOMES (BURROWS HOUSE) LTD,"2,798.72",PHY LTS 65+,RESIDENTIAL CARE,2103493034,1000070656
07.06.2022,ADULT SOCIAL CARE,ABBEY HEALTHCARE GROUP,"3,198.00",PHY LTS 65+,RESIDENTIAL CARE,2103492297,1000072304
07.06.2022,ADULT SOCIAL CARE,MERRYHILL CARE LTD,"-4,343.19",PHY LTS 65+,RESIDENTIAL CARE,2103492547,1000075483
07.06.2022,ADULT SOCIAL CARE,MERRYHILL CARE LTD,"20,035.71",PHY LTS 65+,RESIDENTIAL CARE,2103492649,1000075483
07.06.2022,ADULT SOCIAL CARE,MINSA CARE LTD,"2,622.60",PHY LTS 65+,RESIDENTIAL CARE,2103492538,1000075831
07.06.2022,ADULT SOCIAL CARE,SIGNATURE HEALTH AND LIVING LTD,"3,998.16",PHY LTS 65+,RESIDENTIAL CARE,2103492996,1000077751
07.06.2022,ADULT SOCIAL CARE,SIGNATURE HEALTH AND LIVING LTD,"4,173.92",PHY LTS 65+,RESIDENTIAL CARE,2103492655,1000077751
07.06.2022,ADULT SOCIAL CARE,SIGNATURE HEALTH AND LIVING LTD,"5,707.88",PHY LTS 65+,RESIDENTIAL CARE,2103492802,1000077751
07.06.2022,ADULT SOCIAL CARE,DEEPDENE CARE LTD,"4,141.00",PHY LTS 65+,RESIDENTIAL CARE,2103492867,1000078215
07.06.2022,ADULT SOCIAL CARE,ASHFIELD RESIDENTIAL CARE HOME,"3,167.24",PHY LTS 65+,RESIDENTIAL CARE,2103493448,1000079717
07.06.2022,ADULT SOCIAL CARE,LYMEHURST REST HOME,"2,500.24",PHY LTS 65+,RESIDENTIAL CARE,2103493382,1000080964
07.06.2022,ADULT SOCIAL CARE,FOXLEY LODGE CARE HOME,"-7,071.43",PHY LTS 65+,RESIDENTIAL CARE,2103493473,1000083209
07.06.2022,ADULT SOCIAL CARE,FOXLEY LODGE CARE HOME,"2,744.96",PHY LTS 65+,RESIDENTIAL CARE,2103493147,1000083209
07.06.2022,ADULT SOCIAL CARE,FOXLEY LODGE CARE HOME,"10,071.43",PHY LTS 65+,RESIDENTIAL CARE,2103492449,1000083209
07.06.2022,ADULT SOCIAL CARE,GREENSLEEVES HOMES TRUST,"3,954.56",PHY LTS 65+,RESIDENTIAL CARE,2103493387,1000084160
07.06.2022,ADULT SOCIAL CARE,BEECHES RESIDENTIAL HOME,"3,568.44",PHY LTS 65+,RESIDENTIAL CARE,2103493244,1000084503
07.06.2022,ADULT SOCIAL CARE,REGAL CARE TRADING LTD,"2,665.00",PHY LTS 65+,RESIDENTIAL CARE,2103493118,1000086854
07.06.2022,ADULT SOCIAL CARE,PEASMARSH PLACE (COUNTY CARE LTD),"2,460.00",PHY LTS 65+,RESIDENTIAL CARE,2103493433,1000087042
07.06.2022,ADULT SOCIAL CARE,ANCHOR HANOVER GROUP,"2,927.40",PHY LTS 65+,RESIDENTIAL CARE,2103493434,1000087256
07.06.2022,ADULT SOCIAL CARE,ACCOMMODATING CARE (DRIFFIELD) LIMITED,"2,329.32",PHY LTS 65+,RESIDENTIAL CARE,2103492588,1000087930
07.06.2022,ADULT SOCIAL CARE,AMBIENT SUPPORT LIMITED,"2,460.00",PHY LTS 65+,RESIDENTIAL CARE,2103492272,1000088004
07.06.2022,ADULT SOCIAL CARE,SALUTEM SHARED SERVICES III LTD,"5,954.68",PHY LTS 65+,RESIDENTIAL CARE,2103493200,1000088099
07.06.2022,ADULT SOCIAL CARE,MARIA MALLABAND LTD,"9,600.00",PHY LTS 65+,RESIDENTIAL CARE,2103493443,1000088283
07.06.2022,ADULT SOCIAL CARE,REDACTED PERSONAL DATA,"2,660.48",PHY LTS 65+,RESIDENTIAL CARE,REDACTED,REDACTED
07.06.2022,ADULT SOCIAL CARE,REDACTED PERSONAL DATA,"3,075.00",PHY LTS 65+,RESIDENTIAL CARE,REDACTED,REDACTED
07.06.2022,ADULT SOCIAL CARE,CHOICE SUPPORT,"4,500.92",PHY LTS 65+,SUPPORTED LIVING,2103493411,1104183
07.06.2022,ADULT SOCIAL CARE,PAYDENS (NURSING HOME) LTD,574.36,PHY LTS 65+,THIRD PARTY TOP UP CARE,2103492401,1000051653
07.06.2022,ADULT SOCIAL CARE,GOLD CARE HOMES (BAUGH HOUSE),"1,056.00",PHY LTS 65+,THIRD PARTY TOP UP CARE,2103492606,1000067495
07.06.2022,ADULT SOCIAL CARE,SUPREME CARE SERVICES LTD,377.58,PHY STS 18-64,HOMECARE - IC,2103492193,1000059416
07.06.2022,ADULT SOCIAL CARE,SUPREME CARE SERVICES LTD,701.22,PHY STS 18-64,HOMECARE - IC,2103492189,1000059416
07.06.2022,ADULT SOCIAL CARE,SUPREME CARE SERVICES LTD,"1,456.38",PHY STS 18-64,HOMECARE - IC,2103492163,1000059416
07.06.2022,ADULT SOCIAL CARE,SUPREME CARE SERVICES LTD,251.72,PHY STS 65+,HOMECARE - IC,2103492183,1000059416
07.06.2022,ADULT SOCIAL CARE,SUPREME CARE SERVICES LTD,314.05,PHY STS 65+,HOMECARE - IC,2103492184,1000059416
07.06.2022,ADULT SOCIAL CARE,SUPREME CARE SERVICES LTD,462.99,PHY STS 65+,HOMECARE - IC,2103492194,1000059416
07.06.2022,ADULT SOCIAL CARE,SUPREME CARE SERVICES LTD,503.44,PHY STS 65+,HOMECARE - IC,2103492190,1000059416
07.06.2022,ADULT SOCIAL CARE,SUPREME CARE SERVICES LTD,579.86,PHY STS 65+,HOMECARE - IC,2103492161,1000059416
07.06.2022,ADULT SOCIAL CARE,SUPREME CARE SERVICES LTD,952.94,PHY STS 65+,HOMECARE - IC,2103492170,1000059416
07.06.2022,ADULT SOCIAL CARE,SUPREME CARE SERVICES LTD,"1,011.38",PHY STS 65+,HOMECARE - IC,2103492162,1000059416
07.06.2022,ADULT SOCIAL CARE,SUPREME CARE SERVICES LTD,"1,132.74",PHY STS 65+,HOMECARE - IC,2103492173,1000059416
07.06.2022,ADULT SOCIAL CARE,SUPREME CARE SERVICES LTD,"1,510.32",PHY STS 65+,HOMECARE - IC,2103492179,1000059416
07.06.2022,ADULT SOCIAL CARE,SUPREME CARE SERVICES LTD,"2,337.40",PHY STS 65+,HOMECARE - IC,2103492186,1000059416
07.06.2022,ADULT SOCIAL CARE,FLAGSWAN TWO LIMITED,-363.88,SEN LTS 18-64,"MAND STATUTORY CHARGES, NURSING",2103492615,1000059148
07.06.2022,ADULT SOCIAL CARE,FLAGSWAN TWO LIMITED,"3,511.12",SEN LTS 18-64,NURSING PLACEMENTS FEES,2103492616,1000059148
07.06.2022,ADULT SOCIAL CARE,GREENHILL CARE HOME,-608.8,SEN LTS 65+,"MAND STATUTORY CHARGES, NURSING",2103492389,1000040358
07.06.2022,ADULT SOCIAL CARE,GREENHILL CARE HOME,"2,845.72",SEN LTS 65+,NURSING PLACEMENTS FEES,2103492388,1000040358
07.06.2022,ADULT SOCIAL CARE,PEARTREE CARE CENTRE (EXCELCARE),"3,105.32",SEN LTS 65+,NURSING PLACEMENTS FEES,2103492527,1000048698
07.06.2022,ADULT SOCIAL CARE,HC-ONE LTD (ALEXANDER CARE CENTRE),"3,039.64",SEN LTS 65+,NURSING PLACEMENTS FEES,2103492280,1000068551
07.06.2022,ADULT SOCIAL CARE,ANCHOR TRUST,"2,167.12",SEN LTS 65+,RESIDENTIAL CARE,2103493374,11257534
07.06.2022,ADULT SOCIAL CARE,HC-ONE LTD (TOWER BRIDGE CARE HOME),-522.8,SOCIAL ISOLATION,"MAND STATUTORY CHARGES, NURSING",2103493195,1000067670
07.06.2022,ADULT SOCIAL CARE,MANLEY COURT NURSING HOME (BUPA),"2,907.88",SOCIAL ISOLATION,NURSING PLACEMENTS FEES,2103492279,11101434
07.06.2022,ADULT SOCIAL CARE,HC-ONE LTD (TOWER BRIDGE CARE HOME),"2,900.00",SOCIAL ISOLATION,NURSING PLACEMENTS FEES,2103493056,1000067670
07.06.2022,ADULT SOCIAL CARE,HC-ONE LTD (TOWER BRIDGE CARE HOME),"2,900.00",SOCIAL ISOLATION,NURSING PLACEMENTS FEES,2103493194,1000067670
07.06.2022,ADULT SOCIAL CARE,ANCHOR TRUST,"2,656.26",SOCIAL ISOLATION,RESIDENTIAL CARE,2103492921,11257534
07.06.2022,ADULT SOCIAL CARE,ANCHOR TRUST,"2,746.87",SOCIAL ISOLATION,RESIDENTIAL CARE,2103492639,11257534
07.06.2022,ADULT SOCIAL CARE,ANCHOR TRUST,"3,022.55",SOCIAL ISOLATION,RESIDENTIAL CARE,2103493141,11257534
07.06.2022,ADULT SOCIAL CARE,ANCHOR TRUST,"3,184.04",SOCIAL ISOLATION,RESIDENTIAL CARE,2103493179,11257534
07.06.2022,ADULT SOCIAL CARE,PEABODY TRUST,421.92,SOCIAL ISOLATION,SUPPORTED LIVING,2103493007,11275862
07.06.2022,ADULT SOCIAL CARE,KIDS,600,SPECIALIST CARE,SECTION 17 PAYMENTS TO AGENCIES/CARERS,2103492227,1000030036
07.06.2022,ADULT SOCIAL CARE,PARK VIEW CARE HOME,"4,449.28",SUB LTS 18-64,NURSING PLACEMENTS FEES,2103492645,1000062452
07.06.2022,ADULT SOCIAL CARE,ANAHITA REHABILITATION CENTRE LLP,"4,623.56",SUB LTS 18-64,RESIDENTIAL CARE,2103492762,1000081146
07.06.2022,ADULT SOCIAL CARE,MANLEY COURT NURSING HOME (BUPA),"2,875.36",SUB LTS 65+,NURSING PLACEMENTS FEES,2103492670,11101434
07.06.2022,ADULT SOCIAL CARE,EQUINOX CARE,"2,976.36",SUB LTS 65+,RESIDENTIAL CARE,2103492466,11297438
07.06.2022,ADULT SOCIAL CARE,THE WHITE HOUSE CARE HOME,"4,313.04",SUB LTS 65+,RESIDENTIAL CARE,2103492876,1000076369
07.06.2022,ASSET MANAGEMENT,ANTONY HODARI  SOLICITORS,"1,276.67",DISREPAIR,PAYMENTS FOR LEGAL SERVICES,2103492088,1000031040
07.06.2022,ASSET MANAGEMENT,CHESHIRE ESTATE AND LEGAL LTD,541.67,DISREPAIR,PAYMENTS FOR LEGAL SERVICES,2103492078,1000081908
07.06.2022,ASSET MANAGEMENT,CHESHIRE ESTATE AND LEGAL LTD,"3,750.00",DISREPAIR,PAYMENTS FOR LEGAL SERVICES,2103492080,1000081908
07.06.2022,ASSET MANAGEMENT,BARNES SOLICITORS LLP,"4,000.00",DISREPAIR,PAYMENTS FOR LEGAL SERVICES,2103492083,1000083820
07.06.2022,ASSET MANAGEMENT,CLEARWATER  SOLICITORS,"2,750.00",DISREPAIR,PAYMENTS FOR LEGAL SERVICES,2103492079,1000084327
07.06.2022,ASSET MANAGEMENT,BOND TURNER  SOLICITORS,"1,731.67",DISREPAIR,PAYMENTS FOR LEGAL SERVICES,2103492086,1000085362
07.06.2022,ASSET MANAGEMENT,BOND TURNER  SOLICITORS,"3,541.67",DISREPAIR,PAYMENTS FOR LEGAL SERVICES,2103492085,1000085362
07.06.2022,ASSET MANAGEMENT,SATCHELL MORAN SOLICITORS LTD,"4,166.67",DISREPAIR,PAYMENTS FOR LEGAL SERVICES,2103492082,1000087281
07.06.2022,ASSET MANAGEMENT,VERITAS  SOLICITORS,"1,785.62",DISREPAIR,PAYMENTS FOR LEGAL SERVICES,2103492081,1000088269
07.06.2022,ASSET MANAGEMENT,MCDERMOTT SMITH  LAW LTD,"2,500.00",DISREPAIR,PAYMENTS FOR LEGAL SERVICES,2103492084,1000088449
07.06.2022,ASSET MANAGEMENT,BSI ASSURANCE UK LIMITED,"2,329.00",ENG CONTRACTS,SUBSCRIPTIONS,5902527759,1000001195
07.06.2022,ASSET MANAGEMENT HGF,PULSE CORPORATION LTD,"1,950.00",REPAIR AND MAINTENANCE SERVICES,HARDWARE,5902527842,1000072911
07.06.2022,CENTRAL FUNCTIONS,SAFER BUSINESS NETWORK,810,LEDBURY ESTATE,SECURITY SERVICES,5902527830,1000076641
07.06.2022,CENTRAL FUNCTIONS,ALISTAIR TOWNSEND LTD,"10,500.00",OPERATIONAL TEAM,LEGAL FEES & COURT COSTS,2103492107,1000081236
07.06.2022,CENTRAL FUNCTIONS,DSI BILLING SERVICES LTD,303.06,OPERATIONAL TEAM,POSTAGES,5902527775,1000058640
07.06.2022,CHIEF EXECUTIVE,GREENGAGE ENVIROMENTAL LTD,490,CAPITAL PS (REGEN),CONSTRUCTION FEES  - EXTERNAL,5902527288,1000086955
07.06.2022,CHIEF EXECUTIVE,PELLINGS LLP,"1,088.00",CAPITAL PS (REGEN),CONSTRUCTION FEES - QUANTITY SURVEYOR,5902527751,1009262
07.06.2022,CHILDREN AND ADULT,STANDAGE & CO LTD,"2,858.01",CAPITAL PS (EDUCATION),CONSTRUCTION FEES - INTERNAL,5902527805,11223389
07.06.2022,CHILDREN AND ADULT,STANDAGE & CO LTD,"16,833.38",CAPITAL PS (EDUCATION),CONSTRUCTION FEES - INTERNAL,5902527806,11223389
07.06.2022,CHILDREN AND ADULT,ST JOSEPHS RC PRIMARY SCHOOL,"58,103.86",CAPITAL PS (EDUCATION),CONSTRUCTION FEES - INTERNAL,5902527849,5001000077
07.06.2022,CHILDREN AND ADULT,FAITHFUL & GOULD,"168,273.19",CAPITAL PS (SOC SERV),CONSTRUCTION FEES,5902527811,1000061390
07.06.2022,CHILDREN AND FAMILIES,DOG KENNEL HILL ADVENTURE PLAYGROUND LTD,300,ADOPT LONDON SOUTH,EXTERNAL AGENCIES AND BODIES,5902527717,11134529
07.06.2022,CHILDREN AND FAMILIES,C E RICHARDSON CONSULTANTS LTD,286,ADOPTION SUPP FUND,EXTERNAL AGENCIES AND BODIES,5902527747,1000085808
07.06.2022,CHILDREN AND FAMILIES,THERAPEUTIC LIFE STORY WORK,"2,900.00",ADOPTION SUPP FUND,EXTERNAL AGENCIES AND BODIES,5902527742,1000086959
07.06.2022,CHILDREN AND FAMILIES,ALEX VOLOVISKY LTD,600,ADOPTION SUPP FUND,EXTERNAL AGENCIES AND BODIES,5902527746,1000088469
07.06.2022,CHILDREN AND FAMILIES,REDACTED PERSONAL DATA,280,ADOPTION SUPP FUND,EXTERNAL AGENCIES AND BODIES,REDACTED,REDACTED
07.06.2022,CHILDREN AND FAMILIES,REDACTED PERSONAL DATA,336,ADOPTION SUPP FUND,EXTERNAL AGENCIES AND BODIES,REDACTED,REDACTED
07.06.2022,CHILDREN AND FAMILIES,DIAGRAMA FOUNDATION CHILDREN SERVICES,"2,352.90",ALS INTER AGENCY,EXTERNAL AGENCIES AND BODIES,5902527739,1000078697
07.06.2022,CHILDREN AND FAMILIES,DIAGRAMA FOUNDATION CHILDREN SERVICES,"2,352.90",ALS INTER AGENCY,EXTERNAL AGENCIES AND BODIES,5902527740,1000078697
07.06.2022,CHILDREN AND FAMILIES,CASTLE HOMES LIMITED,"19,348.30",CHILDREN�S RESID,RESIDENTIAL CARE,2103492239,1000019388
07.06.2022,CHILDREN AND FAMILIES,CAMERON & COOPER LIMITED,"27,987.80",CHILDREN�S RESID,RESIDENTIAL CARE,2103492237,1000087598
07.06.2022,CHILDREN AND FAMILIES,CONTACT PROFESSIONALS,743,CONTACT SERVICE,OTHER PAYMENTS FOR CLIENTS,2103492231,1000057263
07.06.2022,CHILDREN AND FAMILIES,CONTACT PROFESSIONALS,903,CONTACT SERVICE,OTHER PAYMENTS FOR CLIENTS,2103492234,1000057263
07.06.2022,CHILDREN AND FAMILIES,REDACTED PERSONAL DATA,266.5,FAMILY GROUP CONF�S,EXTERNAL AGENCIES AND BODIES,REDACTED,REDACTED
07.06.2022,CHILDREN AND FAMILIES,PETALOUDA CONSULTANCY LTD,"1,031.33",FAMILY GROUP CONF�S,PROFESSIONAL FEES,5902527737,1000081394
07.06.2022,CHILDREN AND FAMILIES,PETALOUDA CONSULTANCY LTD,"1,146.17",FAMILY GROUP CONF�S,PROFESSIONAL FEES,5902527736,1000081394
07.06.2022,CHILDREN AND FAMILIES,BLERINA TAHIRAJ-PRITCHARD,262.5,FAMILY GROUP CONF�S,PROFESSIONAL FEES,5902527719,1000083304
07.06.2022,CHILDREN AND FAMILIES,FGC PRACTICE UK LTD,552.5,FAMILY GROUP CONF�S,PROFESSIONAL FEES,5902527728,1000088322
07.06.2022,CHILDREN AND FAMILIES,FGC PRACTICE UK LTD,585,FAMILY GROUP CONF�S,PROFESSIONAL FEES,5902527730,1000088322
07.06.2022,CHILDREN AND FAMILIES,REDACTED PERSONAL DATA,531.13,FAMILY GROUP CONF�S,PROFESSIONAL FEES,REDACTED,REDACTED
07.06.2022,CHILDREN AND FAMILIES,REDACTED PERSONAL DATA,300,FOSTERING ALLOWANCES,OTHER PAYMENTS FOR CLIENTS,REDACTED,REDACTED
07.06.2022,CHILDREN AND FAMILIES,REDACTED PERSONAL DATA,"1,032.15",FOSTERING ALLOWANCES,PAYMENTS TO CARERS,REDACTED,REDACTED
07.06.2022,CHILDREN AND FAMILIES,REDACTED PERSONAL DATA,"2,044.86",FOSTERING ALLOWANCES,PAYMENTS TO CARERS,REDACTED,REDACTED
07.06.2022,CHILDREN AND FAMILIES,REDACTED PERSONAL DATA,"2,783.00",FOSTERING ALLOWANCES,PAYMENTS TO CARERS,REDACTED,REDACTED
07.06.2022,CHILDREN AND FAMILIES,REDACTED PERSONAL DATA,"4,826.13",FOSTERING ALLOWANCES,PAYMENTS TO CARERS,REDACTED,REDACTED
07.06.2022,CHILDREN AND FAMILIES,GREATER LONDON FOSTERING,"3,534.00",FRIENDS & FAMILY FOSTERING,EXTERNAL AGENCIES AND BODIES,2103492216,1000029184
07.06.2022,CHILDREN AND FAMILIES,GREATER LONDON FOSTERING,"3,760.30",FRIENDS & FAMILY FOSTERING,EXTERNAL AGENCIES AND BODIES,2103492211,1000029184
07.06.2022,CHILDREN AND FAMILIES,GREATER LONDON FOSTERING,"3,760.30",FRIENDS & FAMILY FOSTERING,EXTERNAL AGENCIES AND BODIES,2103492215,1000029184
07.06.2022,CHILDREN AND FAMILIES,GREATER LONDON FOSTERING,"4,645.35",FRIENDS & FAMILY FOSTERING,EXTERNAL AGENCIES AND BODIES,2103492224,1000029184
07.06.2022,CHILDREN AND FAMILIES,GREATER LONDON FOSTERING,"5,108.80",FRIENDS & FAMILY FOSTERING,EXTERNAL AGENCIES AND BODIES,2103492210,1000029184
07.06.2022,CHILDREN AND FAMILIES,KASPER FOSTERING,"2,153.25",FRIENDS & FAMILY FOSTERING,EXTERNAL AGENCIES AND BODIES,2103492225,1000036628
07.06.2022,CHILDREN AND FAMILIES,KASPER FOSTERING,"3,513.23",FRIENDS & FAMILY FOSTERING,EXTERNAL AGENCIES AND BODIES,2103492223,1000036628
07.06.2022,CHILDREN AND FAMILIES,KASPER FOSTERING,"4,640.39",FRIENDS & FAMILY FOSTERING,EXTERNAL AGENCIES AND BODIES,2103492218,1000036628
07.06.2022,CHILDREN AND FAMILIES,FAMILY FOSTERING LTD,"4,424.63",FRIENDS & FAMILY FOSTERING,EXTERNAL AGENCIES AND BODIES,2103492213,1000075179
07.06.2022,CHILDREN AND FAMILIES,FOSTERING LONDON LTD,"5,092.68",FRIENDS & FAMILY FOSTERING,EXTERNAL AGENCIES AND BODIES,2103492222,1000077541
07.06.2022,CHILDREN AND FAMILIES,FOSTERING LONDON LTD,"8,368.00",FRIENDS & FAMILY FOSTERING,EXTERNAL AGENCIES AND BODIES,2103492214,1000077541
07.06.2022,CHILDREN AND FAMILIES,DIVERSITY FOSTER CARE LTD,"4,108.69",FRIENDS & FAMILY FOSTERING,EXTERNAL AGENCIES AND BODIES,2103492209,1000081399
07.06.2022,CHILDREN AND FAMILIES,DIVERSITY FOSTER CARE LTD,"4,108.69",FRIENDS & FAMILY FOSTERING,EXTERNAL AGENCIES AND BODIES,2103492220,1000081399
07.06.2022,CHILDREN AND FAMILIES,CARING HEARTS FOSTERING,"3,542.99",FRIENDS & FAMILY FOSTERING,EXTERNAL AGENCIES AND BODIES,2103492212,1000087065
07.06.2022,CHILDREN AND FAMILIES,CARING HEARTS FOSTERING,"3,542.99",FRIENDS & FAMILY FOSTERING,EXTERNAL AGENCIES AND BODIES,2103492217,1000087065
07.06.2022,CHILDREN AND FAMILIES,SILVER LINING FOSTERING LTD,"3,432.14",FRIENDS & FAMILY FOSTERING,EXTERNAL AGENCIES AND BODIES,2103492226,1000087318
07.06.2022,CHILDREN AND FAMILIES,ALEX VOLOVISKY LTD,600,NEW ASF,EXTERNAL AGENCIES AND BODIES,5902527744,1000088469
07.06.2022,CHILDREN AND FAMILIES,ZENITH CARS LTD,540,P & R CARE TEAM,CLIENT TRANSPORT,5902527857,1000070570
07.06.2022,CHILDREN AND FAMILIES,DSA CARE AND SUPPORT SERVICES LTD,"2,100.00",P & R CARE TEAM,HIRED VEHICLES,5902527711,1000088302
07.06.2022,CHILDREN AND FAMILIES,REDACTED PERSONAL DATA,300,P & R CARE TEAM,OTHER PAYMENTS FOR CLIENTS,REDACTED,REDACTED
07.06.2022,CHILDREN AND FAMILIES,ELLIOT LEIGH TLC LTD,-650,SEMI-IND CARELEAVERS,COSTS RECOVERED,2103493513,1000079022
07.06.2022,CHILDREN AND FAMILIES,ELLIOT LEIGH TLC LTD,-624.52,SEMI-IND CARELEAVERS,COSTS RECOVERED,2103493514,1000079022
07.06.2022,CHILDREN AND FAMILIES,THE ARTEMIS TEAM LTD,259.5,SEMI-IND CARELEAVERS,EXTERNAL AGENCIES AND BODIES,2103492261,1000057937
07.06.2022,CHILDREN AND FAMILIES,ELLIOT LEIGH TLC LTD,"1,090.38",SEMI-IND CARELEAVERS,EXTERNAL AGENCIES AND BODIES,2103492258,1000079022
07.06.2022,CHILDREN AND FAMILIES,ELLIOT LEIGH TLC LTD,"2,015.00",SEMI-IND CARELEAVERS,EXTERNAL AGENCIES AND BODIES,2103492271,1000079022
07.06.2022,CHILDREN AND FAMILIES,ELLIOT LEIGH TLC LTD,"2,901.91",SEMI-IND CARELEAVERS,EXTERNAL AGENCIES AND BODIES,2103492257,1000079022
07.06.2022,CHILDREN AND FAMILIES,ELLIOT LEIGH TLC LTD,"3,367.53",SEMI-IND CARELEAVERS,EXTERNAL AGENCIES AND BODIES,2103492259,1000079022
07.06.2022,CHILDREN AND FAMILIES,SYDNEY CARE LTD,"5,314.28",SEMI-IND CARELEAVERS,EXTERNAL AGENCIES AND BODIES,2103492256,1000081598
07.06.2022,CHILDREN AND FAMILIES,TRANSFORMING LIVES COMPANY LTD,361.92,SEMI-IND CARELEAVERS,EXTERNAL AGENCIES AND BODIES,2103492266,1000083352
07.06.2022,CHILDREN AND FAMILIES,TRANSFORMING LIVES COMPANY LTD,401.55,SEMI-IND CARELEAVERS,EXTERNAL AGENCIES AND BODIES,2103492263,1000083352
07.06.2022,CHILDREN AND FAMILIES,GREATER LONDON FOSTERING,265.71,SEMI-IND CARELEAVERS,OTHER PAYMENTS FOR CLIENTS,2103492269,1000029184
07.06.2022,CHILDREN AND FAMILIES,SYDNEY CARE LTD,"7,612.71",SEMI-IND LAC 16-17,EXTERNAL AGENCIES AND BODIES,2103492205,1000081598
07.06.2022,CHILDREN AND FAMILIES,DREAMFO HOUSING LTD,"3,586.91",SEMI-IND LAC 16-17,EXTERNAL AGENCIES AND BODIES,2103492200,1000087273
07.06.2022,CHILDREN AND FAMILIES,DREAMFO HOUSING LTD,"5,712.64",SEMI-IND LAC 16-17,EXTERNAL AGENCIES AND BODIES,2103492201,1000087273
07.06.2022,CHILDREN AND FAMILIES,SYDNEY CARE LTD,265.71,SEMI-IND LAC 16-17,OTHER PAYMENTS FOR CLIENTS,2103492208,1000081598
07.06.2022,CHILDREN AND FAMILIES,DREAMFO HOUSING LTD,265.71,SEMI-IND LAC 16-17,OTHER PAYMENTS FOR CLIENTS,2103492202,1000087273
07.06.2022,CHILDREN AND FAMILIES,DREAMFO HOUSING LTD,"1,392.80",SEMI-IND LAC 16-17,RESIDENTIAL CARE,2103492206,1000087273
07.06.2022,CHILDREN AND FAMILIES,KATE LAMONT,750,SFS MGMT & SUPPORT,LEGAL FEES & COURT COSTS,2103492134,1000064216
07.06.2022,CHILDREN AND FAMILIES,E4 LAW LTD,380,SFS MGMT & SUPPORT,LEGAL FEES & COURT COSTS,2103492138,1000072222
07.06.2022,CHILDREN AND FAMILIES,GREATER LONDON FOSTERING,"1,882.01",STAYPUT- FOST CARERS,EXTERNAL AGENCIES AND BODIES,2103492265,1000029184
07.06.2022,CHILDREN AND FAMILIES,GREATER LONDON FOSTERING,"2,213.98",STAYPUT- FOST CARERS,EXTERNAL AGENCIES AND BODIES,2103492268,1000029184
07.06.2022,CHILDREN AND FAMILIES,ZENITH CARS LTD,665,TEAM B,CLIENT TRANSPORT,5902527856,1000070570
07.06.2022,CHILDREN AND FAMILIES,ZENITH CARS LTD,330,TEAM C,CLIENT TRANSPORT,5902527856,1000070570
07.06.2022,CHILDREN AND FAMILIES,OWNLIFE LTD,"2,790.00",UASC CARELEAVERS,EXTERNAL AGENCIES AND BODIES,2103492262,1000056219
07.06.2022,CHILDREN AND FAMILIES,ELLIOT LEIGH TLC LTD,"1,713.68",UASC CARELEAVERS,EXTERNAL AGENCIES AND BODIES,2103492270,1000079022
07.06.2022,CHILDREN AND FAMILIES,ELLIOT LEIGH TLC LTD,"1,727.01",UASC CARELEAVERS,EXTERNAL AGENCIES AND BODIES,2103492260,1000079022
07.06.2022,CHILDREN AND FAMILIES,ELLIOT LEIGH TLC LTD,"2,426.06",UASC CARELEAVERS,EXTERNAL AGENCIES AND BODIES,2103492267,1000079022
07.06.2022,CHILDREN AND FAMILIES,DREAMFO HOUSING LTD,"3,678.44",UASC CARELEAVERS,EXTERNAL AGENCIES AND BODIES,2103492264,1000087273
07.06.2022,CHILDREN AND FAMILIES,DREAMFO HOUSING LTD,"3,621.30",UASC LAC 16-17,EXTERNAL AGENCIES AND BODIES,2103492203,1000087273
07.06.2022,CHILDREN AND FAMILIES,DREAMFO HOUSING LTD,265.71,UASC LAC 16-17,OTHER PAYMENTS FOR CLIENTS,2103492204,1000087273
07.06.2022,COMMUNITIES,A & M PROPERTY AND CONSTRUCTION LTD,"3,317.00",NO RECOURSE TO PUBLIC FUNDS,ACCOMMODATION CHARGES,5902527822,1000014564
07.06.2022,COMMUNITIES,METROPOLITAN HOUSING TRUST LTD,517.96,NO RECOURSE TO PUBLIC FUNDS,ACCOMMODATION CHARGES,5902527792,1000047547
07.06.2022,COMMUNITIES,METROPOLITAN HOUSING TRUST LTD,895.32,NO RECOURSE TO PUBLIC FUNDS,ACCOMMODATION CHARGES,5902527803,1000047547
07.06.2022,COMMUNITIES,METROPOLITAN HOUSING TRUST LTD,895.32,NO RECOURSE TO PUBLIC FUNDS,ACCOMMODATION CHARGES,5902527814,1000047547
07.06.2022,COMMUNITIES,METROPOLITAN HOUSING TRUST LTD,"1,035.96",NO RECOURSE TO PUBLIC FUNDS,ACCOMMODATION CHARGES,5902527799,1000047547
07.06.2022,COMMUNITIES,METROPOLITAN HOUSING TRUST LTD,"1,035.96",NO RECOURSE TO PUBLIC FUNDS,ACCOMMODATION CHARGES,5902527807,1000047547
07.06.2022,COMMUNITIES,KINDLY PROPERTIES LTD,"30,928.00",NO RECOURSE TO PUBLIC FUNDS,ACCOMMODATION CHARGES,5902527825,1000060734
07.06.2022,COMMUNITIES,SK HOUSING LTD,"1,488.00",NO RECOURSE TO PUBLIC FUNDS,ACCOMMODATION CHARGES,5902527798,1000070716
07.06.2022,COMMUNITIES,RS REAL ESTATE LTD,"8,277.00",NO RECOURSE TO PUBLIC FUNDS,ACCOMMODATION CHARGES,5902527787,1000072485
07.06.2022,COMMUNITIES,TAAKSVALE HOUSING LTD,"32,882.50",NO RECOURSE TO PUBLIC FUNDS,ACCOMMODATION CHARGES,5902527804,1000073665
07.06.2022,COMMUNITIES,STENFORD PROPERTY LTD,"9,080.70",NO RECOURSE TO PUBLIC FUNDS,ACCOMMODATION CHARGES,5902527795,1000074759
07.06.2022,COMMUNITIES,NORBURY PROPERTY SERVICES (LONDON) LTD,"2,449.00",NO RECOURSE TO PUBLIC FUNDS,ACCOMMODATION CHARGES,5902527788,1000075566
07.06.2022,COMMUNITIES,FINEFAIR LTD,"5,230.32",NO RECOURSE TO PUBLIC FUNDS,ACCOMMODATION CHARGES,5902527817,1000075570
07.06.2022,COMMUNITIES,APEX HOUSING SOLUTIONS LTD,930,NO RECOURSE TO PUBLIC FUNDS,ACCOMMODATION CHARGES,5902527797,1000079786
07.06.2022,COMMUNITIES,ZFA ACCOMMODATION LTD,"9,015.00",NO RECOURSE TO PUBLIC FUNDS,ACCOMMODATION CHARGES,5902527848,1000082620
07.06.2022,COMMUNITIES,SUPREME CARE SERVICES LTD,503.44,NO RECOURSE TO PUBLIC FUNDS,HOMECARE - C&V,2103492182,1000059416
07.06.2022,COMMUNITIES,SUPREME CARE SERVICES LTD,755.16,NO RECOURSE TO PUBLIC FUNDS,HOMECARE - C&V,2103492187,1000059416
07.06.2022,COMMUNITIES,SUPREME CARE SERVICES LTD,773.14,NO RECOURSE TO PUBLIC FUNDS,HOMECARE - C&V,2103492169,1000059416
07.06.2022,COMMUNITIES,SUPREME CARE SERVICES LTD,881.02,NO RECOURSE TO PUBLIC FUNDS,HOMECARE - C&V,2103492159,1000059416
07.06.2022,COMMUNITIES,SUPREME CARE SERVICES LTD,"1,456.38",NO RECOURSE TO PUBLIC FUNDS,HOMECARE - C&V,2103492185,1000059416
07.06.2022,COMMUNITIES,SUPREME CARE SERVICES LTD,"3,272.36",NO RECOURSE TO PUBLIC FUNDS,HOMECARE - C&V,2103492195,1000059416
07.06.2022,COMMUNITIES,BRITISH HOME & HOSPITAL FOR INCURABLES,"3,307.36",NO RECOURSE TO PUBLIC FUNDS,NURSING PLACEMENTS FEES,2103492740,1001606
07.06.2022,COMMUNITIES,FOUR SEASONS (UPLANDS CARE HOME),"-15,920.74",NO RECOURSE TO PUBLIC FUNDS,NURSING PLACEMENTS FEES,2103493239,11290299
07.06.2022,COMMUNITIES,FOUR SEASONS (UPLANDS CARE HOME),"17,681.62",NO RECOURSE TO PUBLIC FUNDS,NURSING PLACEMENTS FEES,2103492517,11290299
07.06.2022,COMMUNITIES,HAVELOCK COURT (BUPA CARE),"3,301.68",NO RECOURSE TO PUBLIC FUNDS,NURSING PLACEMENTS FEES,2103493292,1000028902
07.06.2022,COMMUNITIES,GREENHILL CARE HOME,"3,775.68",NO RECOURSE TO PUBLIC FUNDS,NURSING PLACEMENTS FEES,2103492755,1000040358
07.06.2022,COMMUNITIES,PEARTREE CARE CENTRE (EXCELCARE),"3,060.52",NO RECOURSE TO PUBLIC FUNDS,NURSING PLACEMENTS FEES,2103492790,1000048698
07.06.2022,COMMUNITIES,WESTGATE HOUSE CARE HOME,"4,800.00",NO RECOURSE TO PUBLIC FUNDS,NURSING PLACEMENTS FEES,2103492611,1000084504
07.06.2022,COMMUNITIES,LOVE WALK HOSTEL FOR DISABLED,"3,400.00",NO RECOURSE TO PUBLIC FUNDS,RESIDENTIAL CARE,2103492750,1008978
07.06.2022,COMMUNITIES,PENERLEY LODGE LTD,"3,400.00",NO RECOURSE TO PUBLIC FUNDS,RESIDENTIAL CARE,2103492892,1958913
07.06.2022,COMMUNITIES,EQUINOX CARE,"3,990.00",NO RECOURSE TO PUBLIC FUNDS,RESIDENTIAL CARE,2103493133,11297438
07.06.2022,COMMUNITIES,SIGNATURE HEALTH AND LIVING LTD,"3,960.00",NO RECOURSE TO PUBLIC FUNDS,RESIDENTIAL CARE,2103492370,1000077751
07.06.2022,COMMUNITIES,SIGNATURE HEALTH AND LIVING LTD,"5,000.00",NO RECOURSE TO PUBLIC FUNDS,RESIDENTIAL CARE,2103492301,1000077751
07.06.2022,COMMUNITIES,ST MARTIN OF TOURS HA LTD,"3,800.00",NO RECOURSE TO PUBLIC FUNDS,RESIDENTIAL CARE,2103493288,1000083581
07.06.2022,CUSTOMER EXPERIENCE,ROL SOLUTIONS LTD,"2,126.10",PECKHAM MSSP,HARDWARE,5902527826,1000069512
07.06.2022,DSG,SHIRLEY MOYSE,350,SEN INCLUSION TEAM,CONSULTANTS SERVICES,5902527781,1000083073
07.06.2022,EDUCATION,BEVAN BRITTAN LLP,640.2,SCHOOLS HR TRADED SERVICES,SOLICITORS FRAMEWORK LEGAL SERVICES,2103492110,1000047779
07.06.2022,EDUCATION,BEVAN BRITTAN LLP,744.4,SCHOOLS HR TRADED SERVICES,SOLICITORS FRAMEWORK LEGAL SERVICES,2103492109,1000047779
07.06.2022,ENV & LEIS,BLAKEDALE LTD,908.15,MANAGEMENT TEAM,MATERIALS,5902527855,1000076911
07.06.2022,ENVIRONMENT AND LEISURE,QUADRON SERVICES LIMITED,258.06,CAPITAL PS (LEISURE),CONSTRUCTION,5902527703,1000066528
07.06.2022,ENVIRONMENT AND LEISURE,QUADRON SERVICES LIMITED,"1,029.30",CAPITAL PS (LEISURE),CONSTRUCTION,5902527702,1000066528
07.06.2022,ENVIRONMENT AND LEISURE,QUADRON SERVICES LIMITED,"1,303.78",CAPITAL PS (LEISURE),CONSTRUCTION,5902527701,1000066528
07.06.2022,ENVIRONMENT AND LEISURE,RED R DESIGN,"1,220.00",CAPITAL PS (LEISURE),CONSTRUCTION FEES  - EXTERNAL,5902527709,1000035984
07.06.2022,ENVIRONMENT AND LEISURE,PREMIUM PLANTS LIMITED,"5,251.75",CAPITAL PS (LEISURE),CONSTRUCTION SITE COSTS,5902527846,1000088161
07.06.2022,ENVIRONMENT AND LEISURE,WF EDUCATION GROUP LIMITED,424,CAPITAL PS (LEISURE),"PLANT, MACHINERY & EQUIPMENT ACQUISITION",5902527847,1000086286
07.06.2022,ENVIRONMENT DIRECTORATE,RYAN THOMPSON,450,FOOD SAFETY,LEGAL FEES & COURT COSTS,2103492141,1000068997
07.06.2022,ENVIRONMENT DIRECTORATE,SAFER BUSINESS NETWORK,460,TEAMS 1 TO 12,EQUIPMENT PURCHASE & REPAIR,5902527827,1000076641
07.06.2022,ENVIRONMENT DIRECTORATE,SAFER BUSINESS NETWORK,"1,880.00",TEAMS 1 TO 12,EQUIPMENT PURCHASE & REPAIR,5902527827,1000076641
07.06.2022,F & C S EXCLUDING CORPORATE BUDGETS,DSI BILLING SERVICES LTD,"1,833.51",ADMINISTRATIVE SUPPORT,POSTAGES,5902527772,1000058640
07.06.2022,F & C S EXCLUDING CORPORATE BUDGETS,FINANCIAL DATA MANAGEMENT PLC,"3,416.87",BOROUGH COUNCIL ELECTIONS,POSTAGES,2103492125,1000031759
07.06.2022,F & C S EXCLUDING CORPORATE BUDGETS,FINANCIAL DATA MANAGEMENT PLC,"7,602.63",BOROUGH COUNCIL ELECTIONS,POSTAGES,2103492123,1000031759
07.06.2022,F & C S EXCLUDING CORPORATE BUDGETS,FINANCIAL DATA MANAGEMENT PLC,"36,167.77",BOROUGH COUNCIL ELECTIONS,POSTAGES,2103492124,1000031759
07.06.2022,F & C S EXCLUDING CORPORATE BUDGETS,ROYAL MAIL GROUP LTD,"3,742.72",BOROUGH COUNCIL ELECTIONS,POSTAGES,2103492140,1000061535
07.06.2022,F & C S EXCLUDING CORPORATE BUDGETS,FINANCIAL DATA MANAGEMENT PLC,"8,159.72",BOROUGH COUNCIL ELECTIONS,PRINTING,2103492122,1000031759
07.06.2022,F & C S EXCLUDING CORPORATE BUDGETS,FINANCIAL DATA MANAGEMENT PLC,254.83,ELECTORAL REGISTRATION,POSTAGES,2103492128,1000031759
07.06.2022,F & C S EXCLUDING CORPORATE BUDGETS,FINANCIAL DATA MANAGEMENT PLC,693.5,ELECTORAL REGISTRATION,POSTAGES,2103492129,1000031759
